Publisher Label,Publisher URI,"Supplier","Net Amount £","Organisational Unit","Merchant Category Code","Purpose","Payment Date"
"Wolverhampton City Council","http://opendatacommunities.org/id/metropolitan-district-council/wolverhampton","DULUX DECORATOR CENTRE",282.94,"Technician","5198","Materials","31/07/2019"
"Wolverhampton City Council","http://opendatacommunities.org/id/metropolitan-district-council/wolverhampton","London Northwestern Ra",-14.8,"Court Team","4112","Public Transport","31/07/2019"
"Wolverhampton City Council","http://opendatacommunities.org/id/metropolitan-district-council/wolverhampton","WWW.BRISTOWSUTOR.C",0,"Revenues","9399","R9382","31/07/2019"
"Wolverhampton City Council","http://opendatacommunities.org/id/metropolitan-district-council/wolverhampton","Trainline.com",188.75,"Court Team","4112","Accommodation Costs","31/07/2019"
"Wolverhampton City Council","http://opendatacommunities.org/id/metropolitan-district-council/wolverhampton","HM PASSPORT OFFICE",75.5,"LAC Transitions Team","9399","Services - Fees and Charges","31/07/2019"
"Wolverhampton City Council","http://opendatacommunities.org/id/metropolitan-district-council/wolverhampton","POST OFFICE COUNTER",285,"Regional Adoption Agency","9402","Comms - Postage","31/07/2019"
"Wolverhampton City Council","http://opendatacommunities.org/id/metropolitan-district-council/wolverhampton","WWW.EMAP.COM",272,"Communications & Marketing - General","2741","Publications","31/07/2019"
"Wolverhampton City Council","http://opendatacommunities.org/id/metropolitan-district-council/wolverhampton","Trainline.com",39.63,"LAC Transitions Team","4112","Public Transport","31/07/2019"
"Wolverhampton City Council","http://opendatacommunities.org/id/metropolitan-district-council/wolverhampton","Trainline.com",107.55,"LAC Transitions Team","4112","Public Transport","31/07/2019"
"Wolverhampton City Council","http://opendatacommunities.org/id/metropolitan-district-council/wolverhampton","Trainline.com",70.41,"Mayor's Charity","4112","Public Transport","31/07/2019"
"Wolverhampton City Council","http://opendatacommunities.org/id/metropolitan-district-council/wolverhampton","HMCOURTS-SERVICE.G",15,"LAC Transitions Team","9222","Accommodation Costs","31/07/2019"
"Wolverhampton City Council","http://opendatacommunities.org/id/metropolitan-district-council/wolverhampton","AMZNMktplace",15.87,"Bert Williams Leisure Centre","5999","Accommodation Costs","31/07/2019"
"Wolverhampton City Council","http://opendatacommunities.org/id/metropolitan-district-council/wolverhampton","AMZNMktplace",17.46,"Central Baths","5999","Equipment - Purchase","31/07/2019"
"Wolverhampton City Council","http://opendatacommunities.org/id/metropolitan-district-council/wolverhampton","AMZNMktplace",12.46,"Bert Williams Leisure Centre","5999","Accommodation Costs","31/07/2019"
"Wolverhampton City Council","http://opendatacommunities.org/id/metropolitan-district-council/wolverhampton","AMZNMktplace",5.82,"Bert Williams Leisure Centre","5999","Accommodation Costs","31/07/2019"
"Wolverhampton City Council","http://opendatacommunities.org/id/metropolitan-district-council/wolverhampton","AMZNMktplace",32.67,"Bert Williams Leisure Centre","5999","Accommodation Costs","31/07/2019"
"Wolverhampton City Council","http://opendatacommunities.org/id/metropolitan-district-council/wolverhampton","ALDI 94 772",9.03,"Intensive Family Support Team","5411","Provisions (Not for resale)","31/07/2019"
"Wolverhampton City Council","http://opendatacommunities.org/id/metropolitan-district-council/wolverhampton","POUNDSTRETCHER",1.43,"Intensive Family Support Team","5331","Equipment - Purchase","31/07/2019"
"Wolverhampton City Council","http://opendatacommunities.org/id/metropolitan-district-council/wolverhampton","Amazon.co.uk MH5H35VO4",11.89,"Creative Studies Delivery Area","5969","Accommodation Costs","31/07/2019"
"Wolverhampton City Council","http://opendatacommunities.org/id/metropolitan-district-council/wolverhampton","GLASDON U K LTD",191.51,"Civic Centre","7399","Equipment - Purchase","31/07/2019"
"Wolverhampton City Council","http://opendatacommunities.org/id/metropolitan-district-council/wolverhampton","GLASDON U K LTD",244.84,"Civic Centre","7399","Accommodation Costs","31/07/2019"
"Wolverhampton City Council","http://opendatacommunities.org/id/metropolitan-district-council/wolverhampton","Cross Country Trains",16,"Head of Strategic Commissioning � People","4112","Public Transport","31/07/2019"
"Wolverhampton City Council","http://opendatacommunities.org/id/metropolitan-district-council/wolverhampton","AMZNMktplace",442.93,"Global Budgets","5999","Computing - Consumables","31/07/2019"
"Wolverhampton City Council","http://opendatacommunities.org/id/metropolitan-district-council/wolverhampton","AMZNMktplace",20.79,"Global Budgets","5999","Equipment - Purchase","31/07/2019"
"Wolverhampton City Council","http://opendatacommunities.org/id/metropolitan-district-council/wolverhampton","PREMIER INN",161,"LAC Team","3811","Financial Assistance In Exceptional Circ","31/07/2019"
"Wolverhampton City Council","http://opendatacommunities.org/id/metropolitan-district-council/wolverhampton","Virgin Trains",101.5,"Fostering Team","4112","Public Transport","31/07/2019"
"Wolverhampton City Council","http://opendatacommunities.org/id/metropolitan-district-council/wolverhampton","AMZNMKTPLACE AMAZON.CO",10.57,"Trading Standards","5999","Equipment - Purchase","31/07/2019"
"Wolverhampton City Council","http://opendatacommunities.org/id/metropolitan-district-council/wolverhampton","CUMMINGS BROTHERS LOCK",4.17,"Global Budgets","7399","Equipment - Purchase","31/07/2019"
"Wolverhampton City Council","http://opendatacommunities.org/id/metropolitan-district-council/wolverhampton","AMZNMktplace",12.9,"Community Pathways","5999","Accommodation Costs","31/07/2019"
"Wolverhampton City Council","http://opendatacommunities.org/id/metropolitan-district-council/wolverhampton","AMZNMktplace",27.45,"Community Enablement","5999","R4007","31/07/2019"
"Wolverhampton City Council","http://opendatacommunities.org/id/metropolitan-district-council/wolverhampton","AMZNMktplace",17.48,"Community Enablement","5999","R4007","31/07/2019"
"Wolverhampton City Council","http://opendatacommunities.org/id/metropolitan-district-council/wolverhampton","Amazon.co.uk MH03F1XM4",16.47,"Ernest Bold Court","5969","Cleaning Supplies and Materials","31/07/2019"
"Wolverhampton City Council","http://opendatacommunities.org/id/metropolitan-district-council/wolverhampton","GEN REGISTER OFFICE",-35,"Legal Services","9399","Services - Fees and Charges","31/07/2019"
"Wolverhampton City Council","http://opendatacommunities.org/id/metropolitan-district-council/wolverhampton","CITY OF WOLVERHAMPTON",16,"Court Team","9399","Accommodation Costs","31/07/2019"
"Wolverhampton City Council","http://opendatacommunities.org/id/metropolitan-district-council/wolverhampton","Trainline.com",9.82,"Audit Services","4112","Public Transport","31/07/2019"
"Wolverhampton City Council","http://opendatacommunities.org/id/metropolitan-district-council/wolverhampton","PAYPAL  BARNARDOS",45,"EIP Locality 8","8999","Training Expenses","31/07/2019"
"Wolverhampton City Council","http://opendatacommunities.org/id/metropolitan-district-council/wolverhampton","ASDA GROCERIES ONLINE",-0.05,"Bradley Resource Centre","5411","Provisions (Not for resale)","30/07/2019"
"Wolverhampton City Council","http://opendatacommunities.org/id/metropolitan-district-council/wolverhampton","ASDA GROCERIES ONLINE",69.97,"Bradley Resource Centre","5411","Provisions (Not for resale)","30/07/2019"
"Wolverhampton City Council","http://opendatacommunities.org/id/metropolitan-district-council/wolverhampton","WWW.REED.CO.UK",175,"Strategic ICTS (ICT Serv Budget)","7361","R4317","30/07/2019"
"Wolverhampton City Council","http://opendatacommunities.org/id/metropolitan-district-council/wolverhampton","WWW.REED.CO.UK",180,"Strategic ICTS (ICT Serv Budget)","7361","","30/07/2019"
"Wolverhampton City Council","http://opendatacommunities.org/id/metropolitan-district-council/wolverhampton","Virgin Trains",90.35,"Safeguarding Admin Resource","4112","Public Transport","30/07/2019"
"Wolverhampton City Council","http://opendatacommunities.org/id/metropolitan-district-council/wolverhampton","WWW.CORAM.ORG.UK",22,"Regional Adoption Agency","8398","Publications","30/07/2019"
"Wolverhampton City Council","http://opendatacommunities.org/id/metropolitan-district-council/wolverhampton","Trainline.com",19.43,"Youth Offending Team","4112","Public Transport","30/07/2019"
"Wolverhampton City Council","http://opendatacommunities.org/id/metropolitan-district-council/wolverhampton","JOHNSONS",11,"Cemeteries","7210","Equipment - R & M","30/07/2019"
"Wolverhampton City Council","http://opendatacommunities.org/id/metropolitan-district-council/wolverhampton","THE ENTERTAINER 15",25,"Healthy Ageing","5945","Educ Trips, Holidays, Outings, Activity","30/07/2019"
"Wolverhampton City Council","http://opendatacommunities.org/id/metropolitan-district-council/wolverhampton","ALLIANCE DISPOSABLES",141.13,"Creative Studies Delivery Area","5811","Accommodation Costs","30/07/2019"
"Wolverhampton City Council","http://opendatacommunities.org/id/metropolitan-district-council/wolverhampton","ROYAL CARPETS",78.33,"LAC Transitions Team","5713","Client Allowances","30/07/2019"
"Wolverhampton City Council","http://opendatacommunities.org/id/metropolitan-district-council/wolverhampton","AMZNMKTPLACE AMAZON.CO",14.56,"Duke Street Bungalows","5999","Equipment - Purchase","30/07/2019"
"Wolverhampton City Council","http://opendatacommunities.org/id/metropolitan-district-council/wolverhampton","Virgin Trains",104.55,"LAC Team","4112","Public Transport","30/07/2019"
"Wolverhampton City Council","http://opendatacommunities.org/id/metropolitan-district-council/wolverhampton","Virgin Trains",87.45,"LAC Team","4112","Public Transport","30/07/2019"
"Wolverhampton City Council","http://opendatacommunities.org/id/metropolitan-district-council/wolverhampton","ASDA GROCERIES ONLINE",74.14,"Ernest Bold Court","5411","Provisions (Not for resale)","30/07/2019"
"Wolverhampton City Council","http://opendatacommunities.org/id/metropolitan-district-council/wolverhampton","BSI STANDARDS",370,"Central Training","7399","Training Expenses","30/07/2019"
"Wolverhampton City Council","http://opendatacommunities.org/id/metropolitan-district-council/wolverhampton","AMZNMktplace",27.46,"Welfare Rights","5999","Equipment - Purchase","30/07/2019"
"Wolverhampton City Council","http://opendatacommunities.org/id/metropolitan-district-council/wolverhampton","CITY OF WOLVERHAMPTON",27,"Legal Services","9399","Services - Fees and Charges","30/07/2019"
"Wolverhampton City Council","http://opendatacommunities.org/id/metropolitan-district-council/wolverhampton","GEN REGISTER OFFICE",38,"Legal Services","9399","Services - Fees and Charges","30/07/2019"
"Wolverhampton City Council","http://opendatacommunities.org/id/metropolitan-district-council/wolverhampton","Trainline.com",188.75,"Legal Services","4112","Public Transport","30/07/2019"
"Wolverhampton City Council","http://opendatacommunities.org/id/metropolitan-district-council/wolverhampton","CSA.CZ",706.37,"Court Team","4511","Accommodation Costs","30/07/2019"
"Wolverhampton City Council","http://opendatacommunities.org/id/metropolitan-district-council/wolverhampton","AMZNMKTPLACE AMAZON.CO",166.17,"Communications & Marketing - General","5999","Accommodation Costs","29/07/2019"
"Wolverhampton City Council","http://opendatacommunities.org/id/metropolitan-district-council/wolverhampton","SSE",70.18,"LAC Transitions Team","4900","Accommodation Costs","29/07/2019"
"Wolverhampton City Council","http://opendatacommunities.org/id/metropolitan-district-council/wolverhampton","BAKER ROSS",6.24,"Contemporary Gallery","5970","Accommodation Costs","29/07/2019"
"Wolverhampton City Council","http://opendatacommunities.org/id/metropolitan-district-council/wolverhampton","ASDA GROCERIES ONLINE",-0.24,"Key to Inspiration","5411","Provisions (Not for resale)","29/07/2019"
"Wolverhampton City Council","http://opendatacommunities.org/id/metropolitan-district-council/wolverhampton","ASDA GROCERIES ONLINE",159.56,"Key to Inspiration","5411","Provisions (Not for resale)","29/07/2019"
"Wolverhampton City Council","http://opendatacommunities.org/id/metropolitan-district-council/wolverhampton","ASDA GROCERIES ONLINE",-0.5,"Bradley Resource Centre","5411","Provisions (Not for resale)","29/07/2019"
"Wolverhampton City Council","http://opendatacommunities.org/id/metropolitan-district-council/wolverhampton","ASDA GROCERIES ONLINE",150.51,"Bradley Resource Centre","5411","Provisions (Not for resale)","29/07/2019"
"Wolverhampton City Council","http://opendatacommunities.org/id/metropolitan-district-council/wolverhampton","WWW.WMCA.CO.UK",56.5,"IMPACT","9399","Accommodation Costs","29/07/2019"
"Wolverhampton City Council","http://opendatacommunities.org/id/metropolitan-district-council/wolverhampton","M and M Direct Ltd",122.95,"IMPACT","5941","Accommodation Costs","29/07/2019"
"Wolverhampton City Council","http://opendatacommunities.org/id/metropolitan-district-council/wolverhampton","NATWEST BANK",250,"CAT","6011","Financial Assistance In Exceptional Circ","29/07/2019"
"Wolverhampton City Council","http://opendatacommunities.org/id/metropolitan-district-council/wolverhampton","WWW.BRISTOWSUTOR.C",0,"Parking Enforcement","9399","R9382","29/07/2019"
"Wolverhampton City Council","http://opendatacommunities.org/id/metropolitan-district-council/wolverhampton","WWW.BRISTOWSUTOR.C",0,"Revenues","9399","R9382","29/07/2019"
"Wolverhampton City Council","http://opendatacommunities.org/id/metropolitan-district-council/wolverhampton","B&M RETAIL",59.98,"LAC Transitions Team","5310","Client Allowances","29/07/2019"
"Wolverhampton City Council","http://opendatacommunities.org/id/metropolitan-district-council/wolverhampton","ARGOS RETAIL GROUP",24.99,"LAC Transitions Team","5310","Equipment - Purchase","29/07/2019"
"Wolverhampton City Council","http://opendatacommunities.org/id/metropolitan-district-council/wolverhampton","WWW.HOBARTUK.CO.UK",253.82,"Towers Outdoor Education Centre","5722","Fixtures and Fittings - Purchases","29/07/2019"
"Wolverhampton City Council","http://opendatacommunities.org/id/metropolitan-district-council/wolverhampton","B&M RETAIL",17.96,"Aldersley Leisure Village","5310","Equipment - Purchase","29/07/2019"
"Wolverhampton City Council","http://opendatacommunities.org/id/metropolitan-district-council/wolverhampton","NATWEST QUEEN SQUARE",2128,"Aldersley Leisure Village","6010","Financial Assistance In Exceptional Circ","29/07/2019"
"Wolverhampton City Council","http://opendatacommunities.org/id/metropolitan-district-council/wolverhampton","HIGHSTREETVOUCHERS",100,"IMPACT","8641","Client Allowances","29/07/2019"
"Wolverhampton City Council","http://opendatacommunities.org/id/metropolitan-district-council/wolverhampton","HIGHSTREETVOUCHERS",50,"IMPACT","8641","Client Allowances","29/07/2019"
"Wolverhampton City Council","http://opendatacommunities.org/id/metropolitan-district-council/wolverhampton","HIGHSTREETVOUCHERS",100,"IMPACT","8641","Client Allowances","29/07/2019"
"Wolverhampton City Council","http://opendatacommunities.org/id/metropolitan-district-council/wolverhampton","highstreetvouchers",100,"IMPACT","8641","Client Allowances","29/07/2019"
"Wolverhampton City Council","http://opendatacommunities.org/id/metropolitan-district-council/wolverhampton","CENTRAL BATHS",10,"Youth Offending Team","8299","Educ Trips, Holidays, Outings, Activity","29/07/2019"
"Wolverhampton City Council","http://opendatacommunities.org/id/metropolitan-district-council/wolverhampton","POST OFFICE COUNTER",8.7,"Looked After Team 2","9402","Comms - Postage","29/07/2019"
"Wolverhampton City Council","http://opendatacommunities.org/id/metropolitan-district-council/wolverhampton","ASDA GROCERIES ONLINE",3.17,"Upper Pendeford Farm Childrens Home","5411","Provisions (Not for resale)","29/07/2019"
"Wolverhampton City Council","http://opendatacommunities.org/id/metropolitan-district-council/wolverhampton","ASDA GROCERIES ONLINE",204.8,"Upper Pendeford Farm Childrens Home","5411","Provisions (Not for resale)","29/07/2019"
"Wolverhampton City Council","http://opendatacommunities.org/id/metropolitan-district-council/wolverhampton","AMZ Amazon.co.uk",-120,"Children & Young People Support Costs","5969","Equipment - Purchase","29/07/2019"
"Wolverhampton City Council","http://opendatacommunities.org/id/metropolitan-district-council/wolverhampton","AMZ Amazon.co.uk",-8,"Children & Young People Support Costs","5969","Equipment - Purchase","29/07/2019"
"Wolverhampton City Council","http://opendatacommunities.org/id/metropolitan-district-council/wolverhampton","AMZ Amazon.co.uk",-144,"Children & Young People Support Costs","5969","Equipment - Purchase","29/07/2019"
"Wolverhampton City Council","http://opendatacommunities.org/id/metropolitan-district-council/wolverhampton","AMZ Amazon.co.uk",-64,"Children & Young People Support Costs","5969","Equipment - Purchase","29/07/2019"
"Wolverhampton City Council","http://opendatacommunities.org/id/metropolitan-district-council/wolverhampton","AMZ Amazon.co.uk",-8,"Children & Young People Support Costs","5969","Equipment - Purchase","29/07/2019"
"Wolverhampton City Council","http://opendatacommunities.org/id/metropolitan-district-council/wolverhampton","AMZ Amazon.co.uk",-0.07,"Children & Young People Support Costs","5969","Equipment - Purchase","29/07/2019"
"Wolverhampton City Council","http://opendatacommunities.org/id/metropolitan-district-council/wolverhampton","AMZ Amazon.co.uk",-0.07,"Children & Young People Support Costs","5969","Equipment - Purchase","29/07/2019"
"Wolverhampton City Council","http://opendatacommunities.org/id/metropolitan-district-council/wolverhampton","AMZ Amazon.co.uk",-16.69,"Children & Young People Support Costs","5969","Equipment - Purchase","29/07/2019"
"Wolverhampton City Council","http://opendatacommunities.org/id/metropolitan-district-council/wolverhampton","AMZNMktplace",22.47,"Creative Studies Delivery Area","5999","Accommodation Costs","29/07/2019"
"Wolverhampton City Council","http://opendatacommunities.org/id/metropolitan-district-council/wolverhampton","MUSEUMS ASCTN",570,"Research & Development","5971","Accommodation Costs","29/07/2019"
"Wolverhampton City Council","http://opendatacommunities.org/id/metropolitan-district-council/wolverhampton","SAINSBURYS SACAT (2340",9.17,"LAC Transitions Team","5411","Client Allowances","29/07/2019"
"Wolverhampton City Council","http://opendatacommunities.org/id/metropolitan-district-council/wolverhampton","IZ  JMF",150,"Wolverhampton Indoor and Open Market","5999","Equipment - Purchase","29/07/2019"
"Wolverhampton City Council","http://opendatacommunities.org/id/metropolitan-district-council/wolverhampton","ASDA SUPERSTORE",52.4,"Wolverhampton Indoor and Open Market","5411","Provisions (Not for resale)","29/07/2019"
"Wolverhampton City Council","http://opendatacommunities.org/id/metropolitan-district-council/wolverhampton","Central Taxis Limited",30.84,"CIN/CP Social Work Unit - Area 7","4121","Section 17","29/07/2019"
"Wolverhampton City Council","http://opendatacommunities.org/id/metropolitan-district-council/wolverhampton","ARGOS RETAIL GROUP",8,"Duke Street Bungalows","5310","Equipment - Purchase","29/07/2019"
"Wolverhampton City Council","http://opendatacommunities.org/id/metropolitan-district-council/wolverhampton","THE NEW BRIDGE GUEST H",41.67,"MASH","7011","Services - Supplies & Services to users","29/07/2019"
"Wolverhampton City Council","http://opendatacommunities.org/id/metropolitan-district-council/wolverhampton","ASDA SUPERSTORE",24.17,"EIP Locality 3","5411","Grant Payments","29/07/2019"
"Wolverhampton City Council","http://opendatacommunities.org/id/metropolitan-district-council/wolverhampton","ASDA GROCERIES ONLINE",-16.02,"Ernest Bold Court","5411","Provisions (Not for resale)","29/07/2019"
"Wolverhampton City Council","http://opendatacommunities.org/id/metropolitan-district-council/wolverhampton","SAINSBURYS SACAT 2040",12.58,"Ernest Bold Court","5411","Provisions (Not for resale)","29/07/2019"
"Wolverhampton City Council","http://opendatacommunities.org/id/metropolitan-district-council/wolverhampton","WALSALL COUNCIL",25,"Licensing - General","9399","Services - Fees and Charges","29/07/2019"
"Wolverhampton City Council","http://opendatacommunities.org/id/metropolitan-district-council/wolverhampton","ASDA GROCERIES ONLINE",41.23,"EIP Locality 7","5411","Equipment - Purchase","29/07/2019"
"Wolverhampton City Council","http://opendatacommunities.org/id/metropolitan-district-council/wolverhampton","AMZNMKTPLACE AMAZON.CO",11.82,"Communications & Marketing - General","5999","Equipment - Purchase","26/07/2019"
"Wolverhampton City Council","http://opendatacommunities.org/id/metropolitan-district-council/wolverhampton","GOOGLE  ADS6872419364",350,"Communications & Marketing - General","5818","Marketing \ Non-staff advertising","26/07/2019"
"Wolverhampton City Council","http://opendatacommunities.org/id/metropolitan-district-council/wolverhampton","CUMMINGS BROTHERS LOCK",15.42,"Caretakers Community Centre","7399","Equipment - Purchase","26/07/2019"
"Wolverhampton City Council","http://opendatacommunities.org/id/metropolitan-district-council/wolverhampton","CUMMINGS BROTHERS LOCK",5.42,"Caretakers Community Centre","7399","Equipment - Purchase","26/07/2019"
"Wolverhampton City Council","http://opendatacommunities.org/id/metropolitan-district-council/wolverhampton","JACKS CAFE & BAR LTD",3,"Youth Offending Team","5812","Educ Trips, Holidays, Outings, Activity","26/07/2019"
"Wolverhampton City Council","http://opendatacommunities.org/id/metropolitan-district-council/wolverhampton","NATWEST BANK",200,"NRPF","6011","Client Allowances","26/07/2019"
"Wolverhampton City Council","http://opendatacommunities.org/id/metropolitan-district-council/wolverhampton","POST OFFICE COUNTER",26.6,"Safeguarding Admin Resource","9402","Comms - Postage","26/07/2019"
"Wolverhampton City Council","http://opendatacommunities.org/id/metropolitan-district-council/wolverhampton","POST OFFICE COUNTER",3,"Towers Outdoor Education Centre","9402","Comms - Postage","26/07/2019"
"Wolverhampton City Council","http://opendatacommunities.org/id/metropolitan-district-council/wolverhampton","GOOGLE  ADS9680351324",500,"Communications & Marketing - General","5968","Subscriptions","26/07/2019"
"Wolverhampton City Council","http://opendatacommunities.org/id/metropolitan-district-council/wolverhampton","AMZNMKTPLACE AMAZON.CO",14.98,"Business Support Services","5999","Equipment - Purchase","26/07/2019"
"Wolverhampton City Council","http://opendatacommunities.org/id/metropolitan-district-council/wolverhampton","AMZNMKTPLACE AMAZON.CO",23.98,"Public Health Support Costs","5999","Catering","26/07/2019"
"Wolverhampton City Council","http://opendatacommunities.org/id/metropolitan-district-council/wolverhampton","THE ENTERTAINER 15",125,"Healthy Ageing","5945","Educ Trips, Holidays, Outings, Activity","26/07/2019"
"Wolverhampton City Council","http://opendatacommunities.org/id/metropolitan-district-council/wolverhampton","AMZNMktplace",15.82,"EIP Locality 6","5999","Equipment - Purchase","26/07/2019"
"Wolverhampton City Council","http://opendatacommunities.org/id/metropolitan-district-council/wolverhampton","POST OFFICE COUNTER",7.4,"LAC Team","9402","Comms - Postage","26/07/2019"
"Wolverhampton City Council","http://opendatacommunities.org/id/metropolitan-district-council/wolverhampton","ITUNES.COM/BILL",0.51,"Managing Director","5735","Computing - Purchase of Software","26/07/2019"
"Wolverhampton City Council","http://opendatacommunities.org/id/metropolitan-district-council/wolverhampton","AMZ Amazon.co.uk",-2.1,"Children & Young People Support Costs","5969","Equipment - Purchase","26/07/2019"
"Wolverhampton City Council","http://opendatacommunities.org/id/metropolitan-district-council/wolverhampton","AMZ Amazon.co.uk",-14.67,"Children & Young People Support Costs","5969","Equipment - Purchase","26/07/2019"
"Wolverhampton City Council","http://opendatacommunities.org/id/metropolitan-district-council/wolverhampton","AMZ Amazon.co.uk",-500.7,"Children & Young People Support Costs","5969","Equipment - Purchase","26/07/2019"
"Wolverhampton City Council","http://opendatacommunities.org/id/metropolitan-district-council/wolverhampton","AMZ Amazon.co.uk",-0.47,"Children & Young People Support Costs","5969","Equipment - Purchase","26/07/2019"
"Wolverhampton City Council","http://opendatacommunities.org/id/metropolitan-district-council/wolverhampton","AMZ Amazon.co.uk",-383.87,"Children & Young People Support Costs","5969","Equipment - Purchase","26/07/2019"
"Wolverhampton City Council","http://opendatacommunities.org/id/metropolitan-district-council/wolverhampton","AMZ Amazon.co.uk",-1.61,"Children & Young People Support Costs","5969","Equipment - Purchase","26/07/2019"
"Wolverhampton City Council","http://opendatacommunities.org/id/metropolitan-district-council/wolverhampton","AMZ Amazon.co.uk",-0.49,"Children & Young People Support Costs","5969","Equipment - Purchase","26/07/2019"
"Wolverhampton City Council","http://opendatacommunities.org/id/metropolitan-district-council/wolverhampton","AMZ Amazon.co.uk",-0.95,"Children & Young People Support Costs","5969","Equipment - Purchase","26/07/2019"
"Wolverhampton City Council","http://opendatacommunities.org/id/metropolitan-district-council/wolverhampton","AMZ Amazon.co.uk",-0.07,"Children & Young People Support Costs","5969","Equipment - Purchase","26/07/2019"
"Wolverhampton City Council","http://opendatacommunities.org/id/metropolitan-district-council/wolverhampton","AMZ Amazon.co.uk",-0.07,"Children & Young People Support Costs","5969","Equipment - Purchase","26/07/2019"
"Wolverhampton City Council","http://opendatacommunities.org/id/metropolitan-district-council/wolverhampton","AMZ Amazon.co.uk",-0.07,"Children & Young People Support Costs","5969","Equipment - Purchase","26/07/2019"
"Wolverhampton City Council","http://opendatacommunities.org/id/metropolitan-district-council/wolverhampton","AMZ Amazon.co.uk",-33.38,"Children & Young People Support Costs","5969","Equipment - Purchase","26/07/2019"
"Wolverhampton City Council","http://opendatacommunities.org/id/metropolitan-district-council/wolverhampton","AMZ Amazon.co.uk",-4.75,"Children & Young People Support Costs","5969","Equipment - Purchase","26/07/2019"
"Wolverhampton City Council","http://opendatacommunities.org/id/metropolitan-district-council/wolverhampton","AMZ Amazon.co.uk",-3.35,"Children & Young People Support Costs","5969","Equipment - Purchase","26/07/2019"
"Wolverhampton City Council","http://opendatacommunities.org/id/metropolitan-district-council/wolverhampton","AMZ Amazon.co.uk",-0.07,"Mental Health Assessment & Care Mgmt","5969","Equipment - Purchase","26/07/2019"
"Wolverhampton City Council","http://opendatacommunities.org/id/metropolitan-district-council/wolverhampton","AMZ Amazon.co.uk",-0.06,"Children & Young People Support Costs","5969","Equipment - Purchase","26/07/2019"
"Wolverhampton City Council","http://opendatacommunities.org/id/metropolitan-district-council/wolverhampton","AMZ Amazon.co.uk",-66.76,"Children & Young People Support Costs","5969","Equipment - Purchase","26/07/2019"
"Wolverhampton City Council","http://opendatacommunities.org/id/metropolitan-district-council/wolverhampton","AMZ Amazon.co.uk",-14.67,"Children & Young People Support Costs","5969","Equipment - Purchase","26/07/2019"
"Wolverhampton City Council","http://opendatacommunities.org/id/metropolitan-district-council/wolverhampton","AMZ Amazon.co.uk",-0.06,"Children & Young People Support Costs","5969","Equipment - Purchase","26/07/2019"
"Wolverhampton City Council","http://opendatacommunities.org/id/metropolitan-district-council/wolverhampton","AMZ Amazon.co.uk",-233.66,"Children & Young People Support Costs","5969","Equipment - Purchase","26/07/2019"
"Wolverhampton City Council","http://opendatacommunities.org/id/metropolitan-district-council/wolverhampton","AMZ Amazon.co.uk",-4.75,"Children & Young People Support Costs","5969","Equipment - Purchase","26/07/2019"
"Wolverhampton City Council","http://opendatacommunities.org/id/metropolitan-district-council/wolverhampton","AMZ Amazon.co.uk",-16.69,"Children & Young People Support Costs","5969","Equipment - Purchase","26/07/2019"
"Wolverhampton City Council","http://opendatacommunities.org/id/metropolitan-district-council/wolverhampton","AMZ Amazon.co.uk",-116.83,"Children & Young People Support Costs","5969","Equipment - Purchase","26/07/2019"
"Wolverhampton City Council","http://opendatacommunities.org/id/metropolitan-district-council/wolverhampton","AMZ Amazon.co.uk",-16.69,"Children & Young People Support Costs","5969","Equipment - Purchase","26/07/2019"
"Wolverhampton City Council","http://opendatacommunities.org/id/metropolitan-district-council/wolverhampton","AMZ Amazon.co.uk",-16.69,"Children & Young People Support Costs","5969","Equipment - Purchase","26/07/2019"
"Wolverhampton City Council","http://opendatacommunities.org/id/metropolitan-district-council/wolverhampton","AMZ Amazon.co.uk",-16.69,"Children & Young People Support Costs","5969","Equipment - Purchase","26/07/2019"
"Wolverhampton City Council","http://opendatacommunities.org/id/metropolitan-district-council/wolverhampton","AMZ Amazon.co.uk",-14.67,"Children & Young People Support Costs","5969","Equipment - Purchase","26/07/2019"
"Wolverhampton City Council","http://opendatacommunities.org/id/metropolitan-district-council/wolverhampton","AMZ Amazon.co.uk",-14.67,"Children & Young People Support Costs","5969","Equipment - Purchase","26/07/2019"
"Wolverhampton City Council","http://opendatacommunities.org/id/metropolitan-district-council/wolverhampton","AMZ Amazon.co.uk",-14.67,"Children & Young People Support Costs","5969","Equipment - Purchase","26/07/2019"
"Wolverhampton City Council","http://opendatacommunities.org/id/metropolitan-district-council/wolverhampton","BUYABATTERY CO UK",109.16,"Central Costs","5065","Equipment - R & M","26/07/2019"
"Wolverhampton City Council","http://opendatacommunities.org/id/metropolitan-district-council/wolverhampton","WWW.BATHPOTTERS.CO.UK",14.75,"Creative Studies Delivery Area","5046","Accommodation Costs","26/07/2019"
"Wolverhampton City Council","http://opendatacommunities.org/id/metropolitan-district-council/wolverhampton","JOHNSTONES DEC CENTRE",28,"Hickman Avenue Depot","5231","R&M - Departmental planned (external)","26/07/2019"
"Wolverhampton City Council","http://opendatacommunities.org/id/metropolitan-district-council/wolverhampton","ALDERSLEY LEISURE",70,"EIP Locality 1","8299","Grant Payments","26/07/2019"
"Wolverhampton City Council","http://opendatacommunities.org/id/metropolitan-district-council/wolverhampton","PO WILLENHALL RD 5497",40,"EIP Locality 1","6011","Grant Payments","26/07/2019"
"Wolverhampton City Council","http://opendatacommunities.org/id/metropolitan-district-council/wolverhampton","AMZNMktplace",217.42,"Global Budgets","5999","Equipment - Purchase","26/07/2019"
"Wolverhampton City Council","http://opendatacommunities.org/id/metropolitan-district-council/wolverhampton","ASDA GROCERIES ONLINE",65.86,"Ernest Bold Court","5411","Provisions (Not for resale)","26/07/2019"
"Wolverhampton City Council","http://opendatacommunities.org/id/metropolitan-district-council/wolverhampton","ENJOY WOLVERHAMPTON",200,"Environmental Crime and Consumer Protect","5399","Equipment - Purchase","26/07/2019"
"Wolverhampton City Council","http://opendatacommunities.org/id/metropolitan-district-council/wolverhampton","WPY CERBERUS LLC",845.58,"Parking Enforcement","7399","Computing - Purchase of Software","26/07/2019"
"Wolverhampton City Council","http://opendatacommunities.org/id/metropolitan-district-council/wolverhampton","Amazon.co.uk MH4L791V4",18.8,"Cycling Schemes - Bikeability","5969","Equipment - Purchase","26/07/2019"
"Wolverhampton City Council","http://opendatacommunities.org/id/metropolitan-district-council/wolverhampton","WYEVALE NURSERIES LIMI",120,"Arbor Scheme","5261","Materials","26/07/2019"
"Wolverhampton City Council","http://opendatacommunities.org/id/metropolitan-district-council/wolverhampton","HM PASSPORT OFFICE",70.83,"LAC Transitions Team","9399","Client Allowances","26/07/2019"
"Wolverhampton City Council","http://opendatacommunities.org/id/metropolitan-district-council/wolverhampton","PO LOW HILL 1592",40,"EIP Locality 8","6011","Educ Trips, Holidays, Outings, Activity","26/07/2019"
"Wolverhampton City Council","http://opendatacommunities.org/id/metropolitan-district-council/wolverhampton","Amazon.co.uk MH7L711R4",12.67,"Mayoral Expenses","5969","Equipment - Purchase","26/07/2019"
"Wolverhampton City Council","http://opendatacommunities.org/id/metropolitan-district-council/wolverhampton","AMZNMKTPLACE AMAZON.CO",30.94,"Key to Inspiration","5999","Equipment - Purchase","25/07/2019"
"Wolverhampton City Council","http://opendatacommunities.org/id/metropolitan-district-council/wolverhampton","ARGOS WOLVERHAMPTO",59.99,"Key to Inspiration","5310","Equipment - Purchase","25/07/2019"
"Wolverhampton City Council","http://opendatacommunities.org/id/metropolitan-district-council/wolverhampton","ASDA SUPERSTORE",27.3,"Key to Inspiration","5411","Equipment - Purchase","25/07/2019"
"Wolverhampton City Council","http://opendatacommunities.org/id/metropolitan-district-council/wolverhampton","CITY DIRECT",40,"Court Team","8299","Services - Fees and Charges","25/07/2019"
"Wolverhampton City Council","http://opendatacommunities.org/id/metropolitan-district-council/wolverhampton","ASDA GROCERIES ONLINE",-0.09,"Bradley Resource Centre","5411","Provisions (Not for resale)","25/07/2019"
"Wolverhampton City Council","http://opendatacommunities.org/id/metropolitan-district-council/wolverhampton","NATWEST BANK",250,"NRPF","6011","Financial Assistance In Exceptional Circ","25/07/2019"
"Wolverhampton City Council","http://opendatacommunities.org/id/metropolitan-district-council/wolverhampton","ASDA GROCERIES ONLINE",79.71,"Bradley Resource Centre","5411","Provisions (Not for resale)","25/07/2019"
"Wolverhampton City Council","http://opendatacommunities.org/id/metropolitan-district-council/wolverhampton","Trainline.com",3.31,"Head of Service Specialist Int Support","4112","Public Transport","25/07/2019"
"Wolverhampton City Council","http://opendatacommunities.org/id/metropolitan-district-council/wolverhampton","TESCO STORES 6727",2.4,"Youth Offending Team","5411","Provisions (Not for resale)","25/07/2019"
"Wolverhampton City Council","http://opendatacommunities.org/id/metropolitan-district-council/wolverhampton","Virgin Trains",-53.4,"Regional Adoption Agency","4112","Public Transport","25/07/2019"
"Wolverhampton City Council","http://opendatacommunities.org/id/metropolitan-district-council/wolverhampton","VDU01 HOTEL",256.67,"Regional Adoption Agency","7011","Accommodation Costs","25/07/2019"
"Wolverhampton City Council","http://opendatacommunities.org/id/metropolitan-district-council/wolverhampton","SQ  EXCEL PROPERTY",341.67,"Regional Adoption Agency","6513","Accommodation Costs","25/07/2019"
"Wolverhampton City Council","http://opendatacommunities.org/id/metropolitan-district-council/wolverhampton","AMZNMktplace",47.5,"Regional Adoption Agency","5999","Equipment - Purchase","25/07/2019"
"Wolverhampton City Council","http://opendatacommunities.org/id/metropolitan-district-council/wolverhampton","TESCO STORES 5194",128.16,"Towers Outdoor Education Centre","5411","Provisions (Not for resale)","25/07/2019"
"Wolverhampton City Council","http://opendatacommunities.org/id/metropolitan-district-council/wolverhampton","WWW.GSFCARPARTS.COM",110.85,"Aldersley Leisure Village","8999","Services - Professional Fees","25/07/2019"
"Wolverhampton City Council","http://opendatacommunities.org/id/metropolitan-district-council/wolverhampton","ASDA SUPERSTORE",30.96,"Mayoral Expenses","5411","Provisions (Not for resale)","25/07/2019"
"Wolverhampton City Council","http://opendatacommunities.org/id/metropolitan-district-council/wolverhampton","WEST COAST TRAINS",55.7,"LAC Transitions Team","4112","Public Transport","25/07/2019"
"Wolverhampton City Council","http://opendatacommunities.org/id/metropolitan-district-council/wolverhampton","WWW.TRUNINJA.CO.UK",40,"Youth Offending Team","7999","Educ Trips, Holidays, Outings, Activity","25/07/2019"
"Wolverhampton City Council","http://opendatacommunities.org/id/metropolitan-district-council/wolverhampton","W HAMPTON1109",14.14,"Mayor's Charity","5211","Accommodation Costs","25/07/2019"
"Wolverhampton City Council","http://opendatacommunities.org/id/metropolitan-district-council/wolverhampton","HMCOURTS-SERVICE.G",15,"LAC Transitions Team","9222","Accommodation Costs","25/07/2019"
"Wolverhampton City Council","http://opendatacommunities.org/id/metropolitan-district-council/wolverhampton","AMZ Amazon.co.uk",-0.72,"Children & Young People Support Costs","5969","Equipment - Purchase","25/07/2019"
"Wolverhampton City Council","http://opendatacommunities.org/id/metropolitan-district-council/wolverhampton","AMZ Amazon.co.uk",-66.76,"Children & Young People Support Costs","5969","Equipment - Purchase","25/07/2019"
"Wolverhampton City Council","http://opendatacommunities.org/id/metropolitan-district-council/wolverhampton","AMZ Amazon.co.uk",-2.38,"Children & Young People Support Costs","5969","Equipment - Purchase","25/07/2019"
"Wolverhampton City Council","http://opendatacommunities.org/id/metropolitan-district-council/wolverhampton","AMZ Amazon.co.uk",-2.2,"Children & Young People Support Costs","5969","Equipment - Purchase","25/07/2019"
"Wolverhampton City Council","http://opendatacommunities.org/id/metropolitan-district-council/wolverhampton","AMZ Amazon.co.uk",-250.35,"Children & Young People Support Costs","5969","Equipment - Purchase","25/07/2019"
"Wolverhampton City Council","http://opendatacommunities.org/id/metropolitan-district-council/wolverhampton","AMZ Amazon.co.uk",-233.66,"Children & Young People Support Costs","5969","Equipment - Purchase","25/07/2019"
"Wolverhampton City Council","http://opendatacommunities.org/id/metropolitan-district-council/wolverhampton","AMZ Amazon.co.uk",-1.58,"Children & Young People Support Costs","5969","Equipment - Purchase","25/07/2019"
"Wolverhampton City Council","http://opendatacommunities.org/id/metropolitan-district-council/wolverhampton","AMZ Amazon.co.uk",-0.34,"Children & Young People Support Costs","5969","Equipment - Purchase","25/07/2019"
"Wolverhampton City Council","http://opendatacommunities.org/id/metropolitan-district-council/wolverhampton","AMZ Amazon.co.uk",-0.87,"Children & Young People Support Costs","5969","Equipment - Purchase","25/07/2019"
"Wolverhampton City Council","http://opendatacommunities.org/id/metropolitan-district-council/wolverhampton","AMZ Amazon.co.uk",-0.51,"Children & Young People Support Costs","5969","Equipment - Purchase","25/07/2019"
"Wolverhampton City Council","http://opendatacommunities.org/id/metropolitan-district-council/wolverhampton","AMZ Amazon.co.uk",-33.38,"Children & Young People Support Costs","5969","Equipment - Purchase","25/07/2019"
"Wolverhampton City Council","http://opendatacommunities.org/id/metropolitan-district-council/wolverhampton","AMZ Amazon.co.uk",-3.17,"Children & Young People Support Costs","5969","Equipment - Purchase","25/07/2019"
"Wolverhampton City Council","http://opendatacommunities.org/id/metropolitan-district-council/wolverhampton","AMZ Amazon.co.uk",-73.35,"Children & Young People Support Costs","5969","Equipment - Purchase","25/07/2019"
"Wolverhampton City Council","http://opendatacommunities.org/id/metropolitan-district-council/wolverhampton","AMZ Amazon.co.uk",-29.34,"Children & Young People Support Costs","5969","Equipment - Purchase","25/07/2019"
"Wolverhampton City Council","http://opendatacommunities.org/id/metropolitan-district-council/wolverhampton","AMZ Amazon.co.uk",-44.01,"Children & Young People Support Costs","5969","Equipment - Purchase","25/07/2019"
"Wolverhampton City Council","http://opendatacommunities.org/id/metropolitan-district-council/wolverhampton","AMZ Amazon.co.uk",-0.16,"Children & Young People Support Costs","5969","Equipment - Purchase","25/07/2019"
"Wolverhampton City Council","http://opendatacommunities.org/id/metropolitan-district-council/wolverhampton","AMZ Amazon.co.uk",-1.59,"Children & Young People Support Costs","5969","Equipment - Purchase","25/07/2019"
"Wolverhampton City Council","http://opendatacommunities.org/id/metropolitan-district-council/wolverhampton","AMZ Amazon.co.uk",-0.17,"Children & Young People Support Costs","5969","Equipment - Purchase","25/07/2019"
"Wolverhampton City Council","http://opendatacommunities.org/id/metropolitan-district-council/wolverhampton","AMZ Amazon.co.uk",-16.69,"Children & Young People Support Costs","5969","Equipment - Purchase","25/07/2019"
"Wolverhampton City Council","http://opendatacommunities.org/id/metropolitan-district-council/wolverhampton","AMZ Amazon.co.uk",-1.59,"Children & Young People Support Costs","5969","Equipment - Purchase","25/07/2019"
"Wolverhampton City Council","http://opendatacommunities.org/id/metropolitan-district-council/wolverhampton","AMZ Amazon.co.uk",-0.34,"Children & Young People Support Costs","5969","Equipment - Purchase","25/07/2019"
"Wolverhampton City Council","http://opendatacommunities.org/id/metropolitan-district-council/wolverhampton","AMZ Amazon.co.uk",-66.76,"Children & Young People Support Costs","5969","Equipment - Purchase","25/07/2019"
"Wolverhampton City Council","http://opendatacommunities.org/id/metropolitan-district-council/wolverhampton","AMZ Amazon.co.uk",-0.72,"Children & Young People Support Costs","5969","Equipment - Purchase","25/07/2019"
"Wolverhampton City Council","http://opendatacommunities.org/id/metropolitan-district-council/wolverhampton","AMZ Amazon.co.uk",-1.08,"Children & Young People Support Costs","5969","Equipment - Purchase","25/07/2019"
"Wolverhampton City Council","http://opendatacommunities.org/id/metropolitan-district-council/wolverhampton","AMZ Amazon.co.uk",-1.58,"Children & Young People Support Costs","5969","Equipment - Purchase","25/07/2019"
"Wolverhampton City Council","http://opendatacommunities.org/id/metropolitan-district-council/wolverhampton","AMZ Amazon.co.uk",-29.34,"Children & Young People Support Costs","5969","Equipment - Purchase","25/07/2019"
"Wolverhampton City Council","http://opendatacommunities.org/id/metropolitan-district-council/wolverhampton","AMZ Amazon.co.uk",-66.76,"Children & Young People Support Costs","5969","Equipment - Purchase","25/07/2019"
"Wolverhampton City Council","http://opendatacommunities.org/id/metropolitan-district-council/wolverhampton","AMZ Amazon.co.uk",-14.67,"Children & Young People Support Costs","5969","Equipment - Purchase","25/07/2019"
"Wolverhampton City Council","http://opendatacommunities.org/id/metropolitan-district-council/wolverhampton","AMZ Amazon.co.uk",-14.67,"Children & Young People Support Costs","5969","Equipment - Purchase","25/07/2019"
"Wolverhampton City Council","http://opendatacommunities.org/id/metropolitan-district-council/wolverhampton","AMZ Amazon.co.uk",-14.67,"Children & Young People Support Costs","5969","Equipment - Purchase","25/07/2019"
"Wolverhampton City Council","http://opendatacommunities.org/id/metropolitan-district-council/wolverhampton","AMZ Amazon.co.uk",-100.14,"Children & Young People Support Costs","5969","Equipment - Purchase","25/07/2019"
"Wolverhampton City Council","http://opendatacommunities.org/id/metropolitan-district-council/wolverhampton","AMZ Amazon.co.uk",-14.67,"Children & Young People Support Costs","5969","Equipment - Purchase","25/07/2019"
"Wolverhampton City Council","http://opendatacommunities.org/id/metropolitan-district-council/wolverhampton","AMZ Amazon.co.uk",-45.46,"Children & Young People Support Costs","5969","Equipment - Purchase","25/07/2019"
"Wolverhampton City Council","http://opendatacommunities.org/id/metropolitan-district-council/wolverhampton","AMZ Amazon.co.uk",-159.11,"Children & Young People Support Costs","5969","Equipment - Purchase","25/07/2019"
"Wolverhampton City Council","http://opendatacommunities.org/id/metropolitan-district-council/wolverhampton","AMZ Amazon.co.uk",-1.9,"Children & Young People Support Costs","5969","Equipment - Purchase","25/07/2019"
"Wolverhampton City Council","http://opendatacommunities.org/id/metropolitan-district-council/wolverhampton","AMZ Amazon.co.uk",-2.85,"Children & Young People Support Costs","5969","Equipment - Purchase","25/07/2019"
"Wolverhampton City Council","http://opendatacommunities.org/id/metropolitan-district-council/wolverhampton","AMZ Amazon.co.uk",-45.46,"Children & Young People Support Costs","5969","Equipment - Purchase","25/07/2019"
"Wolverhampton City Council","http://opendatacommunities.org/id/metropolitan-district-council/wolverhampton","AMZ Amazon.co.uk",-68.19,"Children & Young People Support Costs","5969","Equipment - Purchase","25/07/2019"
"Wolverhampton City Council","http://opendatacommunities.org/id/metropolitan-district-council/wolverhampton","AMZ Amazon.co.uk",-2.15,"Children & Young People Support Costs","5969","Equipment - Purchase","25/07/2019"
"Wolverhampton City Council","http://opendatacommunities.org/id/metropolitan-district-council/wolverhampton","AMZ Amazon.co.uk",-2.59,"Children & Young People Support Costs","5969","Equipment - Purchase","25/07/2019"
"Wolverhampton City Council","http://opendatacommunities.org/id/metropolitan-district-council/wolverhampton","AMZ Amazon.co.uk",-1.05,"Children & Young People Support Costs","5969","Equipment - Purchase","25/07/2019"
"Wolverhampton City Council","http://opendatacommunities.org/id/metropolitan-district-council/wolverhampton","AMZ Amazon.co.uk",-113.65,"Children & Young People Support Costs","5969","Equipment - Purchase","25/07/2019"
"Wolverhampton City Council","http://opendatacommunities.org/id/metropolitan-district-council/wolverhampton","AMZ Amazon.co.uk",-3.69,"Children & Young People Support Costs","5969","Equipment - Purchase","25/07/2019"
"Wolverhampton City Council","http://opendatacommunities.org/id/metropolitan-district-council/wolverhampton","AMZ Amazon.co.uk",-136.38,"Children & Young People Support Costs","5969","Equipment - Purchase","25/07/2019"
"Wolverhampton City Council","http://opendatacommunities.org/id/metropolitan-district-council/wolverhampton","Trainline",69.7,"CIN/CP Social Work Unit - Area 5","4112","Client Transport","25/07/2019"
"Wolverhampton City Council","http://opendatacommunities.org/id/metropolitan-district-council/wolverhampton","AMZNMktplace",162.39,"Global Budgets","5999","Equipment - Purchase","25/07/2019"
"Wolverhampton City Council","http://opendatacommunities.org/id/metropolitan-district-council/wolverhampton","ASDA GROCERIES ONLINE",5,"Ernest Bold Court","5411","Provisions (Not for resale)","25/07/2019"
"Wolverhampton City Council","http://opendatacommunities.org/id/metropolitan-district-council/wolverhampton","SAINSBURYS SACAT (2340",8.64,"Civic Centre Catering","5411","Provisions (Not for resale)","25/07/2019"
"Wolverhampton City Council","http://opendatacommunities.org/id/metropolitan-district-council/wolverhampton","ASAP STAMPS LTD",71.5,"Cycling Schemes - Bikeability","7399","Equipment - Purchase","25/07/2019"
"Wolverhampton City Council","http://opendatacommunities.org/id/metropolitan-district-council/wolverhampton","LIDL GB  DUDLEY",32.65,"Children & Family Contact Services","5411","Provisions (Not for resale)","25/07/2019"
"Wolverhampton City Council","http://opendatacommunities.org/id/metropolitan-district-council/wolverhampton","WOLVERHAMPTON HOTEL",200,"Court Team","7011","Section 17","25/07/2019"
"Wolverhampton City Council","http://opendatacommunities.org/id/metropolitan-district-council/wolverhampton","WOLVERHAMPTON HOTEL",200,"Court Team","7011","Section 17","25/07/2019"
"Wolverhampton City Council","http://opendatacommunities.org/id/metropolitan-district-council/wolverhampton","WOLVERHAMPTON HOTEL",67,"Court Team","7011","Section 17","25/07/2019"
"Wolverhampton City Council","http://opendatacommunities.org/id/metropolitan-district-council/wolverhampton","GEN REGISTER OFFICE",-6.25,"LAC Transitions Team","9399","Client Allowances","25/07/2019"
"Wolverhampton City Council","http://opendatacommunities.org/id/metropolitan-district-council/wolverhampton","PO LOW HILL 1592",200,"EIP Locality 8","6011","Equipment - Purchase","25/07/2019"
"Wolverhampton City Council","http://opendatacommunities.org/id/metropolitan-district-council/wolverhampton","FACEBK UQT69KEA82",184.98,"Communications & Marketing - General","7311","Marketing \ Non-staff advertising","24/07/2019"
"Wolverhampton City Council","http://opendatacommunities.org/id/metropolitan-district-council/wolverhampton","FACEBK MA8BWNW9R2",249.68,"Communications & Marketing - General","7311","Marketing \ Non-staff advertising","24/07/2019"
"Wolverhampton City Council","http://opendatacommunities.org/id/metropolitan-district-council/wolverhampton","B & Q 1243",19.51,"LAC Transitions Team","5200","Client Allowances","24/07/2019"
"Wolverhampton City Council","http://opendatacommunities.org/id/metropolitan-district-council/wolverhampton","INDIVIDUAL MEMBERSHIP",80,"LEP - Leadership & Management Programme","8299","Accommodation Costs","24/07/2019"
"Wolverhampton City Council","http://opendatacommunities.org/id/metropolitan-district-council/wolverhampton","INDIVIDUAL MEMBERSHIP",80,"LEP - Leadership & Management Programme","8299","Training Expenses","24/07/2019"
"Wolverhampton City Council","http://opendatacommunities.org/id/metropolitan-district-council/wolverhampton","AAIA",395,"LEP - Leadership & Management Programme","8299","Accommodation Costs","24/07/2019"
"Wolverhampton City Council","http://opendatacommunities.org/id/metropolitan-district-council/wolverhampton","WM MORRISONS STORE",4,"Bradley Resource Centre","5411","Provisions (Not for resale)","24/07/2019"
"Wolverhampton City Council","http://opendatacommunities.org/id/metropolitan-district-council/wolverhampton","J P LENNARD LTD",95.05,"Aldersley Leisure Village","5941","Equipment - Purchase","24/07/2019"
"Wolverhampton City Council","http://opendatacommunities.org/id/metropolitan-district-council/wolverhampton","POST OFFICE COUNTER",380,"Fostering Team & Allowances","9402","Comms - Postage","24/07/2019"
"Wolverhampton City Council","http://opendatacommunities.org/id/metropolitan-district-council/wolverhampton","CURRYS S/S",1050,"Long Service Awards","5732","Gratuities","24/07/2019"
"Wolverhampton City Council","http://opendatacommunities.org/id/metropolitan-district-council/wolverhampton","Trainline.com",170.94,"LAC Education Team (LACE)","4112","Public Transport","24/07/2019"
"Wolverhampton City Council","http://opendatacommunities.org/id/metropolitan-district-council/wolverhampton","LIDL GB",10.21,"Youth Offending Team","5411","Provisions (Not for resale)","24/07/2019"
"Wolverhampton City Council","http://opendatacommunities.org/id/metropolitan-district-council/wolverhampton","GEN REGISTER OFFICE",-25,"LAC Team","9399","Services - Fees and Charges","24/07/2019"
"Wolverhampton City Council","http://opendatacommunities.org/id/metropolitan-district-council/wolverhampton","LOYD THREE TUNS PDE",500,"LAC Transitions Team","6011","Accommodation Costs","24/07/2019"
"Wolverhampton City Council","http://opendatacommunities.org/id/metropolitan-district-council/wolverhampton","CURRYS ONLINE",272.99,"Upper Pendeford Farm Childrens Home","5732","Equipment - Purchase","24/07/2019"
"Wolverhampton City Council","http://opendatacommunities.org/id/metropolitan-district-council/wolverhampton","HM PASSPORT OFFICE",58.5,"LAC Team","9399","Services - Fees and Charges","24/07/2019"
"Wolverhampton City Council","http://opendatacommunities.org/id/metropolitan-district-council/wolverhampton","ASDA SUPERSTORE",0.88,"Mayor's Charity","5411","Materials","24/07/2019"
"Wolverhampton City Council","http://opendatacommunities.org/id/metropolitan-district-council/wolverhampton","WM MORRISONS STORE",53,"Foundation Studies","5411","Accommodation Costs","24/07/2019"
"Wolverhampton City Council","http://opendatacommunities.org/id/metropolitan-district-council/wolverhampton","CARVER/WOLVERHAMPTON/L",17.51,"Hickman Avenue Depot","5211","Accommodation Costs","24/07/2019"
"Wolverhampton City Council","http://opendatacommunities.org/id/metropolitan-district-council/wolverhampton","QUEENSWAY INTERIOR",78.33,"EIP Locality 3","5712","Grant Payments to Individuals","24/07/2019"
"Wolverhampton City Council","http://opendatacommunities.org/id/metropolitan-district-council/wolverhampton","THE RANGE",19.31,"Ernest Bold Court","5311","Equipment - Purchase","24/07/2019"
"Wolverhampton City Council","http://opendatacommunities.org/id/metropolitan-district-council/wolverhampton","AMZNMktplace",19.98,"Ernest Bold Court","5999","Equipment - Purchase","24/07/2019"
"Wolverhampton City Council","http://opendatacommunities.org/id/metropolitan-district-council/wolverhampton","Cross Country Trains",181.6,"Court Team","4112","Section 17","24/07/2019"
"Wolverhampton City Council","http://opendatacommunities.org/id/metropolitan-district-council/wolverhampton","ROOKERY Sainsburys Ba",200,"Duke Street Bungalows","6011","Provisions (Not for resale)","24/07/2019"
"Wolverhampton City Council","http://opendatacommunities.org/id/metropolitan-district-council/wolverhampton","ROOKERY Sainsburys Ba",200,"Duke Street Bungalows","6011","Provisions (Not for resale)","24/07/2019"
"Wolverhampton City Council","http://opendatacommunities.org/id/metropolitan-district-council/wolverhampton","BHAM TRAD BLAKESLEY",14.17,"LAC Transitions Team","7991","Client Allowances","24/07/2019"
"Wolverhampton City Council","http://opendatacommunities.org/id/metropolitan-district-council/wolverhampton","HM PASSPORT OFFICE",48.75,"LAC Transitions Team","9399","Client Allowances","24/07/2019"
"Wolverhampton City Council","http://opendatacommunities.org/id/metropolitan-district-council/wolverhampton","PO LOW HILL 1592",120,"EIP Locality 8","6011","Equipment - Purchase","24/07/2019"
"Wolverhampton City Council","http://opendatacommunities.org/id/metropolitan-district-council/wolverhampton","Amazon.co.uk MH3QF8T84",22.94,"Archives","5969","Books","23/07/2019"
"Wolverhampton City Council","http://opendatacommunities.org/id/metropolitan-district-council/wolverhampton","WOLVERHAMPTON SST",4,"Research & Development","4112","Accommodation Costs","23/07/2019"
"Wolverhampton City Council","http://opendatacommunities.org/id/metropolitan-district-council/wolverhampton","AMZNMKTPLACE AMAZON.CO",9.99,"Key to Inspiration","5999","Equipment - Purchase","23/07/2019"
"Wolverhampton City Council","http://opendatacommunities.org/id/metropolitan-district-council/wolverhampton","SMYTHS TOYS WOLVERHAMP",9.95,"Key to Inspiration","5945","Equipment - Purchase","23/07/2019"
"Wolverhampton City Council","http://opendatacommunities.org/id/metropolitan-district-council/wolverhampton","ASDA GROCERIES ONLINE",-12.49,"Bradley Resource Centre","5411","Provisions (Not for resale)","23/07/2019"
"Wolverhampton City Council","http://opendatacommunities.org/id/metropolitan-district-council/wolverhampton","ASDA GROCERIES ONLINE",131.57,"Bradley Resource Centre","5411","Provisions (Not for resale)","23/07/2019"
"Wolverhampton City Council","http://opendatacommunities.org/id/metropolitan-district-council/wolverhampton","PAYPAL  GBGROUP PLC",10,"IMPACT","8999","Accommodation Costs","23/07/2019"
"Wolverhampton City Council","http://opendatacommunities.org/id/metropolitan-district-council/wolverhampton","ARGOS BLACKHEATH",13.98,"Youth Offending Team","5310","Equipment - Purchase","23/07/2019"
"Wolverhampton City Council","http://opendatacommunities.org/id/metropolitan-district-council/wolverhampton","NATWEST BANK",200,"NRPF","6011","Client Allowances","23/07/2019"
"Wolverhampton City Council","http://opendatacommunities.org/id/metropolitan-district-council/wolverhampton","AMZNMKTPLACE AMAZON.CO",20.4,"EIP Locality 2","5999","Equipment - Purchase","23/07/2019"
"Wolverhampton City Council","http://opendatacommunities.org/id/metropolitan-district-council/wolverhampton","ARGOS RETAIL GROUP",20.82,"LAC Transitions Team","5310","Client Allowances","23/07/2019"
"Wolverhampton City Council","http://opendatacommunities.org/id/metropolitan-district-council/wolverhampton","MARSTONS PLC",384.93,"Mayoral Expenses","5921","Hospitality","23/07/2019"
"Wolverhampton City Council","http://opendatacommunities.org/id/metropolitan-district-council/wolverhampton","AMZNMKTPLACE AMAZON.CO",21.58,"Key to Inspiration","5999","Equipment - Purchase","23/07/2019"
"Wolverhampton City Council","http://opendatacommunities.org/id/metropolitan-district-council/wolverhampton","SAINSBURYS SACAT (2340",6.7,"Mayoral Expenses","5411","Hospitality","23/07/2019"
"Wolverhampton City Council","http://opendatacommunities.org/id/metropolitan-district-council/wolverhampton","SMYTHSTOYS.COM",259.96,"Key to Inspiration","5945","Equipment - Purchase","23/07/2019"
"Wolverhampton City Council","http://opendatacommunities.org/id/metropolitan-district-council/wolverhampton","SQ  T.MORGAN & SONS(LO",70,"Mayor's Charity","1520","Accommodation Costs","23/07/2019"
"Wolverhampton City Council","http://opendatacommunities.org/id/metropolitan-district-council/wolverhampton","AMZ Amazon.co.uk",-8.32,"Children & Young People Support Costs","5969","Equipment - Purchase","23/07/2019"
"Wolverhampton City Council","http://opendatacommunities.org/id/metropolitan-district-council/wolverhampton","AMZ Amazon.co.uk",-12.47,"Children & Young People Support Costs","5969","Equipment - Purchase","23/07/2019"
"Wolverhampton City Council","http://opendatacommunities.org/id/metropolitan-district-council/wolverhampton","AMZ Amazon.co.uk",-12.47,"Children & Young People Support Costs","5969","Equipment - Purchase","23/07/2019"
"Wolverhampton City Council","http://opendatacommunities.org/id/metropolitan-district-council/wolverhampton","MAUDESPORT LIMITED",392.23,"Healthy Life Expectancy","5941","Accommodation Costs","23/07/2019"
"Wolverhampton City Council","http://opendatacommunities.org/id/metropolitan-district-council/wolverhampton","AMZ Amazon.co.uk",-12.47,"Children & Young People Support Costs","5969","Equipment - Purchase","23/07/2019"
"Wolverhampton City Council","http://opendatacommunities.org/id/metropolitan-district-council/wolverhampton","AMZ Amazon.co.uk",-12.47,"Children & Young People Support Costs","5969","Equipment - Purchase","23/07/2019"
"Wolverhampton City Council","http://opendatacommunities.org/id/metropolitan-district-council/wolverhampton","AMZ Amazon.co.uk",-4.16,"Children & Young People Support Costs","5969","Equipment - Purchase","23/07/2019"
"Wolverhampton City Council","http://opendatacommunities.org/id/metropolitan-district-council/wolverhampton","AMZ Amazon.co.uk",-12.47,"Children & Young People Support Costs","5969","Equipment - Purchase","23/07/2019"
"Wolverhampton City Council","http://opendatacommunities.org/id/metropolitan-district-council/wolverhampton","AMZ Amazon.co.uk",-4.16,"Children & Young People Support Costs","5969","Equipment - Purchase","23/07/2019"
"Wolverhampton City Council","http://opendatacommunities.org/id/metropolitan-district-council/wolverhampton","AMZ Amazon.co.uk",-12.47,"Children & Young People Support Costs","5969","Equipment - Purchase","23/07/2019"
"Wolverhampton City Council","http://opendatacommunities.org/id/metropolitan-district-council/wolverhampton","AMZ Amazon.co.uk",-4.16,"Children & Young People Support Costs","5969","Equipment - Purchase","23/07/2019"
"Wolverhampton City Council","http://opendatacommunities.org/id/metropolitan-district-council/wolverhampton","AMZ Amazon.co.uk",-12.47,"Children & Young People Support Costs","5969","Equipment - Purchase","23/07/2019"
"Wolverhampton City Council","http://opendatacommunities.org/id/metropolitan-district-council/wolverhampton","AMZ Amazon.co.uk",-12.47,"Children & Young People Support Costs","5969","Equipment - Purchase","23/07/2019"
"Wolverhampton City Council","http://opendatacommunities.org/id/metropolitan-district-council/wolverhampton","AMZ Amazon.co.uk",-12.47,"Children & Young People Support Costs","5969","Equipment - Purchase","23/07/2019"
"Wolverhampton City Council","http://opendatacommunities.org/id/metropolitan-district-council/wolverhampton","WIX.COM",42.57,"Technical Support","5968","Subscriptions","23/07/2019"
"Wolverhampton City Council","http://opendatacommunities.org/id/metropolitan-district-council/wolverhampton","WIX.COM",20.97,"Technical Support","5968","Subscriptions","23/07/2019"
"Wolverhampton City Council","http://opendatacommunities.org/id/metropolitan-district-council/wolverhampton","Wix.com",40.57,"Technical Support","5817","Computing - Purchase of Software","23/07/2019"
"Wolverhampton City Council","http://opendatacommunities.org/id/metropolitan-district-council/wolverhampton","QUEENSWAY INTERIOR",107.5,"EIP Locality 3","5712","Grant Payments","23/07/2019"
"Wolverhampton City Council","http://opendatacommunities.org/id/metropolitan-district-council/wolverhampton","BLOOMS MENSWEAR",150,"Long Service Awards","5611","Gratuities","23/07/2019"
"Wolverhampton City Council","http://opendatacommunities.org/id/metropolitan-district-council/wolverhampton","SAINSBURYS SACAT (2340",16.1,"Civic Centre Catering","5411","Provisions (Not for resale)","23/07/2019"
"Wolverhampton City Council","http://opendatacommunities.org/id/metropolitan-district-council/wolverhampton","CITY OF WOLVERHAMPTON",27,"Court Team","9399","Section 17","23/07/2019"
"Wolverhampton City Council","http://opendatacommunities.org/id/metropolitan-district-council/wolverhampton","UNTOUCHABLES",17.35,"Cemeteries","5231","Materials","22/07/2019"
"Wolverhampton City Council","http://opendatacommunities.org/id/metropolitan-district-council/wolverhampton","AMZNMktplace",17.49,"LAC Team","5999","Equipment - Purchase","22/07/2019"
"Wolverhampton City Council","http://opendatacommunities.org/id/metropolitan-district-council/wolverhampton","Amazon Prime MH9LU8JO4",6.66,"Central Baths","5968","Subscriptions","22/07/2019"
"Wolverhampton City Council","http://opendatacommunities.org/id/metropolitan-district-council/wolverhampton","AMZNMktplace",23.68,"Upper Pendeford Farm Childrens Home","5999","Equipment - Purchase","22/07/2019"
"Wolverhampton City Council","http://opendatacommunities.org/id/metropolitan-district-council/wolverhampton","ASDA GROCERIES ONLINE",-0.28,"Upper Pendeford Farm Childrens Home","5411","Provisions (Not for resale)","22/07/2019"
"Wolverhampton City Council","http://opendatacommunities.org/id/metropolitan-district-council/wolverhampton","ASDA GROCERIES ONLINE",177.15,"Upper Pendeford Farm Childrens Home","5411","Provisions (Not for resale)","22/07/2019"
"Wolverhampton City Council","http://opendatacommunities.org/id/metropolitan-district-council/wolverhampton","AMZNMktplace",24.26,"Upper Pendeford Farm Childrens Home","5999","Equipment - Purchase","22/07/2019"
"Wolverhampton City Council","http://opendatacommunities.org/id/metropolitan-district-council/wolverhampton","ARGOS RETAIL GROUP",75,"Looked After Team 2","5310","Financial Assistance In Exceptional Circ","22/07/2019"
"Wolverhampton City Council","http://opendatacommunities.org/id/metropolitan-district-council/wolverhampton","AMZ Amazon.co.uk",-12.47,"Children & Young People Support Costs","5969","Equipment - Purchase","22/07/2019"
"Wolverhampton City Council","http://opendatacommunities.org/id/metropolitan-district-council/wolverhampton","AMZ Amazon.co.uk",-8.32,"Children & Young People Support Costs","5969","Equipment - Purchase","22/07/2019"
"Wolverhampton City Council","http://opendatacommunities.org/id/metropolitan-district-council/wolverhampton","AMZ Amazon.co.uk",-12.47,"Children & Young People Support Costs","5969","Equipment - Purchase","22/07/2019"
"Wolverhampton City Council","http://opendatacommunities.org/id/metropolitan-district-council/wolverhampton","AMZ Amazon.co.uk",-8.32,"Children & Young People Support Costs","5969","Equipment - Purchase","22/07/2019"
"Wolverhampton City Council","http://opendatacommunities.org/id/metropolitan-district-council/wolverhampton","AMZ Amazon.co.uk",-12.47,"Children & Young People Support Costs","5969","Equipment - Purchase","22/07/2019"
"Wolverhampton City Council","http://opendatacommunities.org/id/metropolitan-district-council/wolverhampton","AMZ Amazon.co.uk",-12.47,"Children & Young People Support Costs","5969","Equipment - Purchase","22/07/2019"
"Wolverhampton City Council","http://opendatacommunities.org/id/metropolitan-district-council/wolverhampton","AMZ Amazon.co.uk",-8.32,"Children & Young People Support Costs","5969","Equipment - Purchase","22/07/2019"
"Wolverhampton City Council","http://opendatacommunities.org/id/metropolitan-district-council/wolverhampton","AMZ Amazon.co.uk",-12.47,"Children & Young People Support Costs","5969","Equipment - Purchase","22/07/2019"
"Wolverhampton City Council","http://opendatacommunities.org/id/metropolitan-district-council/wolverhampton","AMZ Amazon.co.uk",-4.16,"Children & Young People Support Costs","5969","Equipment - Purchase","22/07/2019"
"Wolverhampton City Council","http://opendatacommunities.org/id/metropolitan-district-council/wolverhampton","AMZ Amazon.co.uk",-12.47,"Children & Young People Support Costs","5969","Equipment - Purchase","22/07/2019"
"Wolverhampton City Council","http://opendatacommunities.org/id/metropolitan-district-council/wolverhampton","AMZ Amazon.co.uk",-12.47,"Children & Young People Support Costs","5969","Equipment - Purchase","22/07/2019"
"Wolverhampton City Council","http://opendatacommunities.org/id/metropolitan-district-council/wolverhampton","AMZ Amazon.co.uk",-4.16,"Children & Young People Support Costs","5969","Equipment - Purchase","22/07/2019"
"Wolverhampton City Council","http://opendatacommunities.org/id/metropolitan-district-council/wolverhampton","AMZ Amazon.co.uk",-8.32,"Children & Young People Support Costs","5969","Equipment - Purchase","22/07/2019"
"Wolverhampton City Council","http://opendatacommunities.org/id/metropolitan-district-council/wolverhampton","AMZ Amazon.co.uk",-8.32,"Children & Young People Support Costs","5969","Equipment - Purchase","22/07/2019"
"Wolverhampton City Council","http://opendatacommunities.org/id/metropolitan-district-council/wolverhampton","AMZ Amazon.co.uk",-12.47,"Children & Young People Support Costs","5969","Equipment - Purchase","22/07/2019"
"Wolverhampton City Council","http://opendatacommunities.org/id/metropolitan-district-council/wolverhampton","AMZ Amazon.co.uk",-4.16,"Children & Young People Support Costs","5969","Equipment - Purchase","22/07/2019"
"Wolverhampton City Council","http://opendatacommunities.org/id/metropolitan-district-council/wolverhampton","AMZ Amazon.co.uk",-8.32,"Children & Young People Support Costs","5969","Equipment - Purchase","22/07/2019"
"Wolverhampton City Council","http://opendatacommunities.org/id/metropolitan-district-council/wolverhampton","AMZ Amazon.co.uk",-12.47,"Children & Young People Support Costs","5969","Equipment - Purchase","22/07/2019"
"Wolverhampton City Council","http://opendatacommunities.org/id/metropolitan-district-council/wolverhampton","AMZ Amazon.co.uk",-4.16,"Children & Young People Support Costs","5969","Equipment - Purchase","22/07/2019"
"Wolverhampton City Council","http://opendatacommunities.org/id/metropolitan-district-council/wolverhampton","AMZ Amazon.co.uk",-12.47,"Children & Young People Support Costs","5969","Equipment - Purchase","22/07/2019"
"Wolverhampton City Council","http://opendatacommunities.org/id/metropolitan-district-council/wolverhampton","AMZ Amazon.co.uk",-12.47,"Children & Young People Support Costs","5969","Equipment - Purchase","22/07/2019"
"Wolverhampton City Council","http://opendatacommunities.org/id/metropolitan-district-council/wolverhampton","AMZ Amazon.co.uk",-4.16,"Children & Young People Support Costs","5969","Equipment - Purchase","22/07/2019"
"Wolverhampton City Council","http://opendatacommunities.org/id/metropolitan-district-council/wolverhampton","AMZ Amazon.co.uk",-12.47,"Children & Young People Support Costs","5969","Equipment - Purchase","22/07/2019"
"Wolverhampton City Council","http://opendatacommunities.org/id/metropolitan-district-council/wolverhampton","AMZ Amazon.co.uk",-4.16,"Children & Young People Support Costs","5969","Equipment - Purchase","22/07/2019"
"Wolverhampton City Council","http://opendatacommunities.org/id/metropolitan-district-council/wolverhampton","AMZ Amazon.co.uk",-12.47,"Children & Young People Support Costs","5969","Equipment - Purchase","22/07/2019"
"Wolverhampton City Council","http://opendatacommunities.org/id/metropolitan-district-council/wolverhampton","AMZ Amazon.co.uk",-8.32,"Children & Young People Support Costs","5969","Equipment - Purchase","22/07/2019"
"Wolverhampton City Council","http://opendatacommunities.org/id/metropolitan-district-council/wolverhampton","AMZ Amazon.co.uk",-12.47,"Children & Young People Support Costs","5969","Equipment - Purchase","22/07/2019"
"Wolverhampton City Council","http://opendatacommunities.org/id/metropolitan-district-council/wolverhampton","AMZ Amazon.co.uk",-12.47,"Children & Young People Support Costs","5969","Equipment - Purchase","22/07/2019"
"Wolverhampton City Council","http://opendatacommunities.org/id/metropolitan-district-council/wolverhampton","AMZ Amazon.co.uk",-4.16,"Children & Young People Support Costs","5969","Equipment - Purchase","22/07/2019"
"Wolverhampton City Council","http://opendatacommunities.org/id/metropolitan-district-council/wolverhampton","AMZ Amazon.co.uk",-8.32,"Children & Young People Support Costs","5969","Equipment - Purchase","22/07/2019"
"Wolverhampton City Council","http://opendatacommunities.org/id/metropolitan-district-council/wolverhampton","AMZ Amazon.co.uk",-4.16,"Children & Young People Support Costs","5969","Equipment - Purchase","22/07/2019"
"Wolverhampton City Council","http://opendatacommunities.org/id/metropolitan-district-council/wolverhampton","AMZ Amazon.co.uk",-8.32,"Children & Young People Support Costs","5969","Equipment - Purchase","22/07/2019"
"Wolverhampton City Council","http://opendatacommunities.org/id/metropolitan-district-council/wolverhampton","AMZ Amazon.co.uk",-12.47,"Children & Young People Support Costs","5969","Equipment - Purchase","22/07/2019"
"Wolverhampton City Council","http://opendatacommunities.org/id/metropolitan-district-council/wolverhampton","AMZ Amazon.co.uk",-8.32,"Children & Young People Support Costs","5969","Equipment - Purchase","22/07/2019"
"Wolverhampton City Council","http://opendatacommunities.org/id/metropolitan-district-council/wolverhampton","AMZ Amazon.co.uk",-4.16,"Children & Young People Support Costs","5969","Equipment - Purchase","22/07/2019"
"Wolverhampton City Council","http://opendatacommunities.org/id/metropolitan-district-council/wolverhampton","AMZ Amazon.co.uk",-12.47,"Children & Young People Support Costs","5969","Equipment - Purchase","22/07/2019"
"Wolverhampton City Council","http://opendatacommunities.org/id/metropolitan-district-council/wolverhampton","AMZ Amazon.co.uk",-12.47,"Children & Young People Support Costs","5969","Equipment - Purchase","22/07/2019"
"Wolverhampton City Council","http://opendatacommunities.org/id/metropolitan-district-council/wolverhampton","AMZ Amazon.co.uk",-8.32,"Children & Young People Support Costs","5969","Equipment - Purchase","22/07/2019"
"Wolverhampton City Council","http://opendatacommunities.org/id/metropolitan-district-council/wolverhampton","AMZ Amazon.co.uk",-4.16,"Children & Young People Support Costs","5969","Equipment - Purchase","22/07/2019"
"Wolverhampton City Council","http://opendatacommunities.org/id/metropolitan-district-council/wolverhampton","AMZ Amazon.co.uk",-12.47,"Children & Young People Support Costs","5969","Equipment - Purchase","22/07/2019"
"Wolverhampton City Council","http://opendatacommunities.org/id/metropolitan-district-council/wolverhampton","AMZ Amazon.co.uk",-8.32,"Children & Young People Support Costs","5969","Equipment - Purchase","22/07/2019"
"Wolverhampton City Council","http://opendatacommunities.org/id/metropolitan-district-council/wolverhampton","AMZ Amazon.co.uk",-8.32,"Children & Young People Support Costs","5969","Equipment - Purchase","22/07/2019"
"Wolverhampton City Council","http://opendatacommunities.org/id/metropolitan-district-council/wolverhampton","AMZ Amazon.co.uk",-4.16,"Children & Young People Support Costs","5969","Equipment - Purchase","22/07/2019"
"Wolverhampton City Council","http://opendatacommunities.org/id/metropolitan-district-council/wolverhampton","AMZ Amazon.co.uk",-4.16,"Children & Young People Support Costs","5969","Equipment - Purchase","22/07/2019"
"Wolverhampton City Council","http://opendatacommunities.org/id/metropolitan-district-council/wolverhampton","AMZ Amazon.co.uk",-8.32,"Children & Young People Support Costs","5969","Equipment - Purchase","22/07/2019"
"Wolverhampton City Council","http://opendatacommunities.org/id/metropolitan-district-council/wolverhampton","AMZ Amazon.co.uk",-4.16,"Children & Young People Support Costs","5969","Equipment - Purchase","22/07/2019"
"Wolverhampton City Council","http://opendatacommunities.org/id/metropolitan-district-council/wolverhampton","AMZ Amazon.co.uk",-12.47,"Children & Young People Support Costs","5969","Equipment - Purchase","22/07/2019"
"Wolverhampton City Council","http://opendatacommunities.org/id/metropolitan-district-council/wolverhampton","AMZ Amazon.co.uk",-12.47,"Children & Young People Support Costs","5969","Equipment - Purchase","22/07/2019"
"Wolverhampton City Council","http://opendatacommunities.org/id/metropolitan-district-council/wolverhampton","AMZNMKTPLACE AMAZON.CO",15.79,"Key to Inspiration","5999","Equipment - Purchase","22/07/2019"
"Wolverhampton City Council","http://opendatacommunities.org/id/metropolitan-district-council/wolverhampton","AMZNMKTPLACE AMAZON.CO",5.88,"Key to Inspiration","5999","Equipment - Purchase","22/07/2019"
"Wolverhampton City Council","http://opendatacommunities.org/id/metropolitan-district-council/wolverhampton","ASDA GROCERIES ONLINE",-0.37,"Key to Inspiration","5411","Educ Trips, Holidays, Outings, Activity","22/07/2019"
"Wolverhampton City Council","http://opendatacommunities.org/id/metropolitan-district-council/wolverhampton","ASDA GROCERIES ONLINE",172.5,"Key to Inspiration","5411","Provisions (Not for resale)","22/07/2019"
"Wolverhampton City Council","http://opendatacommunities.org/id/metropolitan-district-council/wolverhampton","SAINSBURYS SACAT (2340",10,"Key to Inspiration","5411","Direct Work With Children","22/07/2019"
"Wolverhampton City Council","http://opendatacommunities.org/id/metropolitan-district-council/wolverhampton","ASDA STORE",58.26,"Bradley Resource Centre","5411","Provisions (Not for resale)","22/07/2019"
"Wolverhampton City Council","http://opendatacommunities.org/id/metropolitan-district-council/wolverhampton","GOOGLE  ADS6872419364",200,"Communications & Marketing - General","5968","R4317","22/07/2019"
"Wolverhampton City Council","http://opendatacommunities.org/id/metropolitan-district-council/wolverhampton","WWW.REED.CO.UK",175,"Strategic ICTS (ICT Serv Budget)","7361","R4317","22/07/2019"
"Wolverhampton City Council","http://opendatacommunities.org/id/metropolitan-district-council/wolverhampton","WOLVERHAMPTON T/O",33.5,"IMPACT","4112","Public Transport","22/07/2019"
"Wolverhampton City Council","http://opendatacommunities.org/id/metropolitan-district-council/wolverhampton","AMZNMktplace",10.75,"IMPACT","5999","Equipment - Purchase","22/07/2019"
"Wolverhampton City Council","http://opendatacommunities.org/id/metropolitan-district-council/wolverhampton","SCREWFIX DIRECT",51.72,"Technician","5200","R4007","22/07/2019"
"Wolverhampton City Council","http://opendatacommunities.org/id/metropolitan-district-council/wolverhampton","ROSPA",710,"Technical Material","5964","Training Expenses","22/07/2019"
"Wolverhampton City Council","http://opendatacommunities.org/id/metropolitan-district-council/wolverhampton","ROSPA",280,"Technical Material","5964","Training Expenses","22/07/2019"
"Wolverhampton City Council","http://opendatacommunities.org/id/metropolitan-district-council/wolverhampton","HOME BARGAINS MERRY HI",3.88,"Youth Offending Team","5251","Equipment - Purchase","22/07/2019"
"Wolverhampton City Council","http://opendatacommunities.org/id/metropolitan-district-council/wolverhampton","HOME BARGAINS MERRY HI",24.68,"Youth Offending Team","5251","Equipment - Purchase","22/07/2019"
"Wolverhampton City Council","http://opendatacommunities.org/id/metropolitan-district-council/wolverhampton","DECATHLON",16.58,"Youth Offending Team","5941","Equipment - Health and Safety","22/07/2019"
"Wolverhampton City Council","http://opendatacommunities.org/id/metropolitan-district-council/wolverhampton","BURGER KING",7.49,"Youth Offending Team","5812","Educ Trips, Holidays, Outings, Activity","22/07/2019"
"Wolverhampton City Council","http://opendatacommunities.org/id/metropolitan-district-council/wolverhampton","ARGOS LTD",6.99,"Youth Offending Team","5310","Equipment - Health and Safety","22/07/2019"
"Wolverhampton City Council","http://opendatacommunities.org/id/metropolitan-district-council/wolverhampton","PRIMARK",5.2,"Youth Offending Team","5651","Services - Supplies & Services to users","22/07/2019"
"Wolverhampton City Council","http://opendatacommunities.org/id/metropolitan-district-council/wolverhampton","ASDA GROCERIES ONLINE",5,"Bradley Resource Centre","5411","Provisions (Not for resale)","22/07/2019"
"Wolverhampton City Council","http://opendatacommunities.org/id/metropolitan-district-council/wolverhampton","CURRYS ONLINE",69.99,"RAA - Regional Adoption Agency","5732","Equipment - Purchase","22/07/2019"
"Wolverhampton City Council","http://opendatacommunities.org/id/metropolitan-district-council/wolverhampton","TESCO STORES 5194",-3.03,"Towers Outdoor Education Centre","5411","Provisions (Not for resale)","22/07/2019"
"Wolverhampton City Council","http://opendatacommunities.org/id/metropolitan-district-council/wolverhampton","MARKS&SPENCER PLC SACA",21.1,"Register Office","5411","Provisions (Not for resale)","22/07/2019"
"Wolverhampton City Council","http://opendatacommunities.org/id/metropolitan-district-council/wolverhampton","THE RANGE",80.96,"Cemeteries","5311","Equipment - Purchase","22/07/2019"
"Wolverhampton City Council","http://opendatacommunities.org/id/metropolitan-district-council/wolverhampton","UNTOUCHABLES",94.97,"Cemeteries","5231","Materials","22/07/2019"
"Wolverhampton City Council","http://opendatacommunities.org/id/metropolitan-district-council/wolverhampton","AMZ Amazon.co.uk",-4.16,"Children & Young People Support Costs","5969","Equipment - Purchase","22/07/2019"
"Wolverhampton City Council","http://opendatacommunities.org/id/metropolitan-district-council/wolverhampton","AMZ Amazon.co.uk",-4.16,"Children & Young People Support Costs","5969","Equipment - Purchase","22/07/2019"
"Wolverhampton City Council","http://opendatacommunities.org/id/metropolitan-district-council/wolverhampton","AMZ Amazon.co.uk",-4.16,"Children & Young People Support Costs","5969","Equipment - Purchase","22/07/2019"
"Wolverhampton City Council","http://opendatacommunities.org/id/metropolitan-district-council/wolverhampton","AMZ Amazon.co.uk",-4.16,"Children & Young People Support Costs","5969","Equipment - Purchase","22/07/2019"
"Wolverhampton City Council","http://opendatacommunities.org/id/metropolitan-district-council/wolverhampton","Amazon.co.uk MH9JK4JA4",60.23,"Creative Studies Delivery Area","5969","Accommodation Costs","22/07/2019"
"Wolverhampton City Council","http://opendatacommunities.org/id/metropolitan-district-council/wolverhampton","SQ  SUGAR MEDIA AND MA",45.45,"Creative Studies Delivery Area","8999","Equipment - Purchase","22/07/2019"
"Wolverhampton City Council","http://opendatacommunities.org/id/metropolitan-district-council/wolverhampton","POUNDLAND",14,"Bilston Market & Licensed Operations","5310","Accommodation Costs","22/07/2019"
"Wolverhampton City Council","http://opendatacommunities.org/id/metropolitan-district-council/wolverhampton","WWWSPILLCONTROLCENTRE.",72.85,"Blakenhall Commty & Healthy Living Ctr","1799","R&M - Departmental response (external)","22/07/2019"
"Wolverhampton City Council","http://opendatacommunities.org/id/metropolitan-district-council/wolverhampton","Wix.com",-3,"Technical Support","5817","Computing - Purchase of Software","22/07/2019"
"Wolverhampton City Council","http://opendatacommunities.org/id/metropolitan-district-council/wolverhampton","B & Q 1243",8.33,"Duke Street Bungalows","5200","Equipment - R & M","22/07/2019"
"Wolverhampton City Council","http://opendatacommunities.org/id/metropolitan-district-council/wolverhampton","HALFORDS 0448",2.5,"Ernest Bold Court","5940","Fixtures and Fittings - R&M","22/07/2019"
"Wolverhampton City Council","http://opendatacommunities.org/id/metropolitan-district-council/wolverhampton","HALFORDS 0448",14.17,"Ernest Bold Court","5940","Fixtures and Fittings - R&M","22/07/2019"
"Wolverhampton City Council","http://opendatacommunities.org/id/metropolitan-district-council/wolverhampton","HM PASSPORT OFFICE",63.5,"LAC Team","9399","Financial Assistance In Exceptional Circ","22/07/2019"
"Wolverhampton City Council","http://opendatacommunities.org/id/metropolitan-district-council/wolverhampton","POST OFFICE COUNTER",8.7,"LAC Team","9402","Comms - Postage","22/07/2019"
"Wolverhampton City Council","http://opendatacommunities.org/id/metropolitan-district-council/wolverhampton","WP-CENTRAL TAXIS L",15.3,"LAC Team","4121","Client Transport","22/07/2019"
"Wolverhampton City Council","http://opendatacommunities.org/id/metropolitan-district-council/wolverhampton","ASDA GROCERIES ONLINE",-1,"Ernest Bold Court","5411","Provisions (Not for resale)","22/07/2019"
"Wolverhampton City Council","http://opendatacommunities.org/id/metropolitan-district-council/wolverhampton","ASDA GROCERIES ONLINE",57.25,"Ernest Bold Court","5411","Provisions (Not for resale)","22/07/2019"
"Wolverhampton City Council","http://opendatacommunities.org/id/metropolitan-district-council/wolverhampton","WM MORRISONS STORE",9.76,"Civic Centre Catering","5411","Provisions (Not for resale)","22/07/2019"
"Wolverhampton City Council","http://opendatacommunities.org/id/metropolitan-district-council/wolverhampton","atworkpartnership.co.u",450,"Central Training","7399","Training Expenses","22/07/2019"
"Wolverhampton City Council","http://opendatacommunities.org/id/metropolitan-district-council/wolverhampton","HOMEBASE LTD 103",12.5,"School Crossing Patrol","5200","Equipment - Purchase","22/07/2019"
"Wolverhampton City Council","http://opendatacommunities.org/id/metropolitan-district-council/wolverhampton","CARD FACTORY",1.9,"School Crossing Patrol","5947","Equipment - Purchase","22/07/2019"
"Wolverhampton City Council","http://opendatacommunities.org/id/metropolitan-district-council/wolverhampton","RD DAY TRIPS",17,"Adult Services - North","7991","Public Transport","22/07/2019"
"Wolverhampton City Council","http://opendatacommunities.org/id/metropolitan-district-council/wolverhampton","AMZNMktplace",16.07,"Parks - Ranger Service","5999","Equipment - Purchase","22/07/2019"
"Wolverhampton City Council","http://opendatacommunities.org/id/metropolitan-district-council/wolverhampton","NOVOTEL WOLVERHAMPTON",94.17,"Mayoral Expenses","7011","Accommodation Costs","22/07/2019"
"Wolverhampton City Council","http://opendatacommunities.org/id/metropolitan-district-council/wolverhampton","NOVOTEL WOLVERHAMPTON",94.17,"Mayoral Expenses","7011","Accommodation Costs","22/07/2019"
"Wolverhampton City Council","http://opendatacommunities.org/id/metropolitan-district-council/wolverhampton","NOVOTEL WOLVERHAMPTON",94.17,"Mayoral Expenses","7011","Accommodation Costs","22/07/2019"
"Wolverhampton City Council","http://opendatacommunities.org/id/metropolitan-district-council/wolverhampton","NOVOTEL WOLVERHAMPTON",94.17,"Mayoral Expenses","7011","Accommodation Costs","22/07/2019"
"Wolverhampton City Council","http://opendatacommunities.org/id/metropolitan-district-council/wolverhampton","WWW.SPARKENERGY.CO.UK",60.28,"LAC Transitions Team","4900","Accommodation Costs","19/07/2019"
"Wolverhampton City Council","http://opendatacommunities.org/id/metropolitan-district-council/wolverhampton","W HAMPTON1853",-149.97,"Strategic ICTS (ICT Serv Budget)","5211","Equipment - Purchase","19/07/2019"
"Wolverhampton City Council","http://opendatacommunities.org/id/metropolitan-district-council/wolverhampton","WOLVERHAMPTON T/O",117,"IMPACT","4112","Public Transport","19/07/2019"
"Wolverhampton City Council","http://opendatacommunities.org/id/metropolitan-district-council/wolverhampton","Amazon.co.uk MH3EF4ZS4",37.03,"Citizenship, Language & Learning","5969","Equipment - Purchase","19/07/2019"
"Wolverhampton City Council","http://opendatacommunities.org/id/metropolitan-district-council/wolverhampton","London Northwestern Ra",26.15,"NRPF","4112","Public Transport","19/07/2019"
"Wolverhampton City Council","http://opendatacommunities.org/id/metropolitan-district-council/wolverhampton","ASDA SUPERSTORE",27.08,"LAC Transitions Team","5411","Accommodation Costs","19/07/2019"
"Wolverhampton City Council","http://opendatacommunities.org/id/metropolitan-district-council/wolverhampton","Amazon.co.uk MH7AJ0NR4",21.44,"Regional Adoption Agency","5969","Equipment - Purchase","19/07/2019"
"Wolverhampton City Council","http://opendatacommunities.org/id/metropolitan-district-council/wolverhampton","TESCO STORES 5194",83.43,"Towers Outdoor Education Centre","5411","Provisions (Not for resale)","19/07/2019"
"Wolverhampton City Council","http://opendatacommunities.org/id/metropolitan-district-council/wolverhampton","WEST COAST TRAINS",3.58,"Economic Development","4112","Public Transport","19/07/2019"
"Wolverhampton City Council","http://opendatacommunities.org/id/metropolitan-district-council/wolverhampton","CENTRAL BATHS",6,"Youth Offending Team","8299","Educ Trips, Holidays, Outings, Activity","19/07/2019"
"Wolverhampton City Council","http://opendatacommunities.org/id/metropolitan-district-council/wolverhampton","Amazon.co.uk MH0N28ND4",13.99,"Youth Offending Team","5969","Equipment - Purchase","19/07/2019"
"Wolverhampton City Council","http://opendatacommunities.org/id/metropolitan-district-council/wolverhampton","AMZNMktplace",20.99,"EIP Locality 6","5999","Equipment - Purchase","19/07/2019"
"Wolverhampton City Council","http://opendatacommunities.org/id/metropolitan-district-council/wolverhampton","CT WOLVERHAMPTON",175,"Looked After Team 2","8398","Services - Supplies & Services to users","19/07/2019"
"Wolverhampton City Council","http://opendatacommunities.org/id/metropolitan-district-council/wolverhampton","Trainline.com",31.29,"Communications & Marketing - General","4112","Public Transport","19/07/2019"
"Wolverhampton City Council","http://opendatacommunities.org/id/metropolitan-district-council/wolverhampton","Trainline.com",36.38,"Mayor's Charity","4112","Public Transport","19/07/2019"
"Wolverhampton City Council","http://opendatacommunities.org/id/metropolitan-district-council/wolverhampton","Amazon.co.uk MH9NF8N64",40,"Bilston Market & Licensed Operations","5969","Accommodation Costs","19/07/2019"
"Wolverhampton City Council","http://opendatacommunities.org/id/metropolitan-district-council/wolverhampton","OXFORD W H SMITH",4.82,"Mayoral Expenses","5499","Subsistence","19/07/2019"
"Wolverhampton City Council","http://opendatacommunities.org/id/metropolitan-district-council/wolverhampton","M&S SIMPLY FOOD - SSP",8.33,"Mayoral Expenses","5499","Subsistence","19/07/2019"
"Wolverhampton City Council","http://opendatacommunities.org/id/metropolitan-district-council/wolverhampton","SAINSBURYS PFS (1340)",1.67,"Mayoral Expenses","5541","Vehicle Maintenance - Repairs","19/07/2019"
"Wolverhampton City Council","http://opendatacommunities.org/id/metropolitan-district-council/wolverhampton","CHESTER ZOO",112.7,"Youth Offending Team","7929","Educ Trips, Holidays, Outings, Activity","19/07/2019"
"Wolverhampton City Council","http://opendatacommunities.org/id/metropolitan-district-council/wolverhampton","SP   TOUCHPOINTEUROPE",134,"Telecare","5691","Equipment - Purchase","19/07/2019"
"Wolverhampton City Council","http://opendatacommunities.org/id/metropolitan-district-council/wolverhampton","ASDA GROCERIES ONLINE",166.22,"Duke Street Bungalows","5411","Provisions (Not for resale)","19/07/2019"
"Wolverhampton City Council","http://opendatacommunities.org/id/metropolitan-district-council/wolverhampton","CUMMINGS BROTHERS LOCK",14.17,"Global Budgets","7399","Equipment - Purchase","19/07/2019"
"Wolverhampton City Council","http://opendatacommunities.org/id/metropolitan-district-council/wolverhampton","HOMEBASE LTD 103",13.33,"Ernest Bold Court","5200","Equipment - Purchase","19/07/2019"
"Wolverhampton City Council","http://opendatacommunities.org/id/metropolitan-district-council/wolverhampton","PAYPAL  PRINTSSIGNS",56.76,"Ernest Bold Court","5719","Fixtures and Fittings - Purchases","19/07/2019"
"Wolverhampton City Council","http://opendatacommunities.org/id/metropolitan-district-council/wolverhampton","AMZNMktplace",33.24,"Parks - Ranger Service","5999","Equipment - Purchase","19/07/2019"
"Wolverhampton City Council","http://opendatacommunities.org/id/metropolitan-district-council/wolverhampton","TFM FARM   COUNTRY",33.78,"Northicote Farm","0763","Materials","19/07/2019"
"Wolverhampton City Council","http://opendatacommunities.org/id/metropolitan-district-council/wolverhampton","AMZNMKTPLACE AMAZON.CO",34.99,"Northicote Farm","5999","Materials","19/07/2019"
"Wolverhampton City Council","http://opendatacommunities.org/id/metropolitan-district-council/wolverhampton","AMZNMKTPLACE AMAZON.CO",9.19,"Northicote Farm","5999","Materials","19/07/2019"
"Wolverhampton City Council","http://opendatacommunities.org/id/metropolitan-district-council/wolverhampton","Trainline.com",17.86,"Corporate Parenting","4112","Public Transport","18/07/2019"
"Wolverhampton City Council","http://opendatacommunities.org/id/metropolitan-district-council/wolverhampton","WWW.ICELAND.CO.UK",96.75,"Bradley Resource Centre","5411","Provisions (Not for resale)","18/07/2019"
"Wolverhampton City Council","http://opendatacommunities.org/id/metropolitan-district-council/wolverhampton","highstreetvouchers",456.5,"IMPACT","8641","Equipment - Purchase","18/07/2019"
"Wolverhampton City Council","http://opendatacommunities.org/id/metropolitan-district-council/wolverhampton","TESCO STORES 6727",3,"Youth Offending Team","5411","Provisions (Not for resale)","18/07/2019"
"Wolverhampton City Council","http://opendatacommunities.org/id/metropolitan-district-council/wolverhampton","B&M RETAIL",19.95,"Safeguarding Admin Resource","5310","Equipment - Purchase","18/07/2019"
"Wolverhampton City Council","http://opendatacommunities.org/id/metropolitan-district-council/wolverhampton","POST OFFICE COUNTER",4.55,"Regional Adoption Agency","9402","Comms - Postage","18/07/2019"
"Wolverhampton City Council","http://opendatacommunities.org/id/metropolitan-district-council/wolverhampton","PREMIER INN",99.58,"Fostering Team","3811","Accommodation Costs","18/07/2019"
"Wolverhampton City Council","http://opendatacommunities.org/id/metropolitan-district-council/wolverhampton","POST OFFICE COUNTER",122,"Fostering Team & Allowances","9402","Comms - Postage","18/07/2019"
"Wolverhampton City Council","http://opendatacommunities.org/id/metropolitan-district-council/wolverhampton","WP-CENTRAL TAXIS L",211.9,"LAC Transitions Team","4121","Client Transport","18/07/2019"
"Wolverhampton City Council","http://opendatacommunities.org/id/metropolitan-district-council/wolverhampton","DECATHLON UK",154.95,"Healthy Life Expectancy","5941","Accommodation Costs","18/07/2019"
"Wolverhampton City Council","http://opendatacommunities.org/id/metropolitan-district-council/wolverhampton","WP-CENTRAL TAXIS L",211.9,"LAC Transitions Team","4121","Accommodation Costs","18/07/2019"
"Wolverhampton City Council","http://opendatacommunities.org/id/metropolitan-district-council/wolverhampton","AMZNMktplace",2.32,"Intensive Family Support Team","5999","Equipment - Purchase","18/07/2019"
"Wolverhampton City Council","http://opendatacommunities.org/id/metropolitan-district-council/wolverhampton","Virgin Trains",75.2,"LAC Team","4112","Public Transport","18/07/2019"
"Wolverhampton City Council","http://opendatacommunities.org/id/metropolitan-district-council/wolverhampton","Virgin Trains",82.35,"Looked After Team 2","4112","Public Transport","18/07/2019"
"Wolverhampton City Council","http://opendatacommunities.org/id/metropolitan-district-council/wolverhampton","AMZ Amazon.co.uk",-323.44,"Children & Young People Support Costs","5969","Equipment - Purchase","18/07/2019"
"Wolverhampton City Council","http://opendatacommunities.org/id/metropolitan-district-council/wolverhampton","AMZ Amazon.co.uk",-151.57,"Children & Young People Support Costs","5969","Equipment - Purchase","18/07/2019"
"Wolverhampton City Council","http://opendatacommunities.org/id/metropolitan-district-council/wolverhampton","AMZNMktplace",71.42,"MASH","5999","Equipment - Health and Safety","18/07/2019"
"Wolverhampton City Council","http://opendatacommunities.org/id/metropolitan-district-council/wolverhampton","IKEA LTD 142 BIRMINGHA",66.67,"Community Enablement","5712","R4007","18/07/2019"
"Wolverhampton City Council","http://opendatacommunities.org/id/metropolitan-district-council/wolverhampton","IKEA LTD 142 BIRMINGHA",133.33,"Community Enablement","5712","R4007","18/07/2019"
"Wolverhampton City Council","http://opendatacommunities.org/id/metropolitan-district-council/wolverhampton","POST OFFICE COUNTER",11,"LAC Team","9402","Comms - Postage","18/07/2019"
"Wolverhampton City Council","http://opendatacommunities.org/id/metropolitan-district-council/wolverhampton","HERON FOODS LTD",12.54,"Ernest Bold Court","5499","Provisions (Not for resale)","18/07/2019"
"Wolverhampton City Council","http://opendatacommunities.org/id/metropolitan-district-council/wolverhampton","T.A. HENN & SON LTD",450,"Long Service Awards","5944","Gratuities","18/07/2019"
"Wolverhampton City Council","http://opendatacommunities.org/id/metropolitan-district-council/wolverhampton","ENJOY WOLVERHAMPTON",2250,"Long Service Awards","5399","Gratuities","18/07/2019"
"Wolverhampton City Council","http://opendatacommunities.org/id/metropolitan-district-council/wolverhampton","MILLERS JEWELLERS",750,"Long Service Awards","5944","Gratuities","18/07/2019"
"Wolverhampton City Council","http://opendatacommunities.org/id/metropolitan-district-council/wolverhampton","PAST PRESENT AND FUTUR",104.17,"LAC Transitions Team","5732","Client Allowances","18/07/2019"
"Wolverhampton City Council","http://opendatacommunities.org/id/metropolitan-district-council/wolverhampton","Trainline.com",132.58,"CIN/CP Social Work Unit - Area 4","4112","Section 17","18/07/2019"
"Wolverhampton City Council","http://opendatacommunities.org/id/metropolitan-district-council/wolverhampton","KONICA MINOLTA BUSINES",258.91,"Music Support Team","7399","Equipment - R & M","18/07/2019"
"Wolverhampton City Council","http://opendatacommunities.org/id/metropolitan-district-council/wolverhampton","J EMERSON",85.97,"Music Support Team","2741","Books","18/07/2019"
"Wolverhampton City Council","http://opendatacommunities.org/id/metropolitan-district-council/wolverhampton","KEVIN MAYHEW LTD",55.95,"Music Support Team","5942","Books","18/07/2019"
"Wolverhampton City Council","http://opendatacommunities.org/id/metropolitan-district-council/wolverhampton","AMZNMktplace",7.9,"Members Expenses","5999","Equipment - Purchase","18/07/2019"
"Wolverhampton City Council","http://opendatacommunities.org/id/metropolitan-district-council/wolverhampton","IPS LIVERPOOL CONTACT",48.75,"LAC Transitions Team","9399","Client Allowances","17/07/2019"
"Wolverhampton City Council","http://opendatacommunities.org/id/metropolitan-district-council/wolverhampton","ONE STOP 2966",8.25,"Bradley Resource Centre","5411","Provisions (Not for resale)","17/07/2019"
"Wolverhampton City Council","http://opendatacommunities.org/id/metropolitan-district-council/wolverhampton","SIMPLY CONVENIENCE",24.48,"Bradley Resource Centre","5411","Provisions (Not for resale)","17/07/2019"
"Wolverhampton City Council","http://opendatacommunities.org/id/metropolitan-district-council/wolverhampton","SCREWFIX DIRECT",173.37,"Strategic ICTS (ICT Serv Budget)","5200","Equipment - Purchase","17/07/2019"
"Wolverhampton City Council","http://opendatacommunities.org/id/metropolitan-district-council/wolverhampton","SCREWFIX DIRECT",173.27,"Strategic ICTS (ICT Serv Budget)","5200","Equipment - Purchase","17/07/2019"
"Wolverhampton City Council","http://opendatacommunities.org/id/metropolitan-district-council/wolverhampton","COMMS EXPRESS LTD",391.14,"Strategic ICTS (ICT Serv Budget)","5732","Equipment - Purchase","17/07/2019"
"Wolverhampton City Council","http://opendatacommunities.org/id/metropolitan-district-council/wolverhampton","LUL TICKET MACHINE",15,"Technician","4112","Public Transport","17/07/2019"
"Wolverhampton City Council","http://opendatacommunities.org/id/metropolitan-district-council/wolverhampton","SPAR SUPERMARKETS",25,"Parent/Partnership Service","5411","Gratuities","17/07/2019"
"Wolverhampton City Council","http://opendatacommunities.org/id/metropolitan-district-council/wolverhampton","THE RANGE",47.03,"LAC Transitions Team","5311","Accommodation Costs","17/07/2019"
"Wolverhampton City Council","http://opendatacommunities.org/id/metropolitan-district-council/wolverhampton","MAJESTIC WINE",49.95,"Mayoral Expenses","5921","Hospitality","17/07/2019"
"Wolverhampton City Council","http://opendatacommunities.org/id/metropolitan-district-council/wolverhampton","000002200500000",100,"Safeguarding Admin Resource","6011","Financial Assistance In Exceptional Circ","17/07/2019"
"Wolverhampton City Council","http://opendatacommunities.org/id/metropolitan-district-council/wolverhampton","ROYAL BK OF SCOTLAND",40,"EIP Locality 2","6011","Grant Payments","17/07/2019"
"Wolverhampton City Council","http://opendatacommunities.org/id/metropolitan-district-council/wolverhampton","CITY DIRECT",40,"LAC Transitions Team","8299","Training Expenses","17/07/2019"
"Wolverhampton City Council","http://opendatacommunities.org/id/metropolitan-district-council/wolverhampton","POST OFFICE COUNTER",475,"Regional Adoption Agency","9402","Comms - Postage","17/07/2019"
"Wolverhampton City Council","http://opendatacommunities.org/id/metropolitan-district-council/wolverhampton","GOOGLE  ADS9680351324",500,"Communications & Marketing - General","5968","Subscriptions","17/07/2019"
"Wolverhampton City Council","http://opendatacommunities.org/id/metropolitan-district-council/wolverhampton","WWW.THEWORKS.CO.UK",71.67,"Wholly Owned Company - Operations","5310","Equipment - Purchase","17/07/2019"
"Wolverhampton City Council","http://opendatacommunities.org/id/metropolitan-district-council/wolverhampton","WISEPOPS",88.67,"City Direct","7372","Computing - Purchase of Software","17/07/2019"
"Wolverhampton City Council","http://opendatacommunities.org/id/metropolitan-district-council/wolverhampton","Amazon.co.uk MH89F8L94",17.53,"LAC Transitions Team","5969","Accommodation Costs","17/07/2019"
"Wolverhampton City Council","http://opendatacommunities.org/id/metropolitan-district-council/wolverhampton","ARGOS LTD",9.99,"Cemeteries","5310","Equipment - Purchase","17/07/2019"
"Wolverhampton City Council","http://opendatacommunities.org/id/metropolitan-district-council/wolverhampton","Cephas Public Policy",342,"Public Health Support Costs","8999","Services - Professional Fees","17/07/2019"
"Wolverhampton City Council","http://opendatacommunities.org/id/metropolitan-district-council/wolverhampton","W HAMPTON1109",3.91,"Mayor's Charity","5211","Accommodation Costs","17/07/2019"
"Wolverhampton City Council","http://opendatacommunities.org/id/metropolitan-district-council/wolverhampton","NATIONAL EXPRESS LIMIT",73.5,"LAC Transitions Team","4131","Client Allowances","17/07/2019"
"Wolverhampton City Council","http://opendatacommunities.org/id/metropolitan-district-council/wolverhampton","Virgin Trains",205.55,"Looked After Team 2","4112","Client Transport","17/07/2019"
"Wolverhampton City Council","http://opendatacommunities.org/id/metropolitan-district-council/wolverhampton","Amazon.co.uk MH3CQ24E4",333.33,"Children & Young People Support Costs","5969","Equipment - Purchase","17/07/2019"
"Wolverhampton City Council","http://opendatacommunities.org/id/metropolitan-district-council/wolverhampton","ALDI 78 772",23.48,"Foundation Studies","5411","Equipment - Purchase","17/07/2019"
"Wolverhampton City Council","http://opendatacommunities.org/id/metropolitan-district-council/wolverhampton","ARGOS RETAIL GROUP",279,"LAC Transitions Team","5310","Client Allowances","17/07/2019"
"Wolverhampton City Council","http://opendatacommunities.org/id/metropolitan-district-council/wolverhampton","WWW.WOLVERHAMPTON.GOV.",78.12,"LAC Transitions Team","9399","Client Allowances","17/07/2019"
"Wolverhampton City Council","http://opendatacommunities.org/id/metropolitan-district-council/wolverhampton","ASDA GROCERIES ONLINE",49.84,"EIP Locality 3","5411","Grant Payments","17/07/2019"
"Wolverhampton City Council","http://opendatacommunities.org/id/metropolitan-district-council/wolverhampton","HM PASSPORT OFFICE",202,"Looked After Team 2","9399","Financial Assistance In Exceptional Circ","17/07/2019"
"Wolverhampton City Council","http://opendatacommunities.org/id/metropolitan-district-council/wolverhampton","POST OFFICE COUNTER",7.4,"LAC Team","9402","Comms - Postage","17/07/2019"
"Wolverhampton City Council","http://opendatacommunities.org/id/metropolitan-district-council/wolverhampton","ASDA GROCERIES ONLINE",62.5,"Ernest Bold Court","5411","Provisions (Not for resale)","17/07/2019"
"Wolverhampton City Council","http://opendatacommunities.org/id/metropolitan-district-council/wolverhampton","ARGOS LTD",124.99,"LAC Transitions Team","5310","Client Allowances","17/07/2019"
"Wolverhampton City Council","http://opendatacommunities.org/id/metropolitan-district-council/wolverhampton","QUEENSWAY INTERIOR",283.33,"LAC Transitions Team","5712","Client Allowances","17/07/2019"
"Wolverhampton City Council","http://opendatacommunities.org/id/metropolitan-district-council/wolverhampton","SAINSBURYS SACAT (2340",9.4,"Civic Centre Catering","5411","Provisions (Not for resale)","17/07/2019"
"Wolverhampton City Council","http://opendatacommunities.org/id/metropolitan-district-council/wolverhampton","EB  INTRODUCTION TO CO",83.33,"Central Training","7399","Training Expenses","17/07/2019"
"Wolverhampton City Council","http://opendatacommunities.org/id/metropolitan-district-council/wolverhampton","CITY OF WOLVERHAMPTON",40,"Legal Services","9399","Services - Fees and Charges","17/07/2019"
"Wolverhampton City Council","http://opendatacommunities.org/id/metropolitan-district-council/wolverhampton","THE COAL AUTHORITY",48.77,"Legal Services","9399","Services - Fees and Charges","17/07/2019"
"Wolverhampton City Council","http://opendatacommunities.org/id/metropolitan-district-council/wolverhampton","AMZNMktplace",10.4,"Ernest Bold Court","5999","Equipment - Purchase","17/07/2019"
"Wolverhampton City Council","http://opendatacommunities.org/id/metropolitan-district-council/wolverhampton","HM PASSPORT OFFICE",58.5,"Court Team","9399","Section 17","17/07/2019"
"Wolverhampton City Council","http://opendatacommunities.org/id/metropolitan-district-council/wolverhampton","LOYD 37 CHURCH STREET",300,"EIP Locality 7","6011","Financial Assistance In Exceptional Circ","16/07/2019"
"Wolverhampton City Council","http://opendatacommunities.org/id/metropolitan-district-council/wolverhampton","ASDA GROCERIES ONLINE",72.78,"Bradley Resource Centre","5411","Provisions (Not for resale)","16/07/2019"
"Wolverhampton City Council","http://opendatacommunities.org/id/metropolitan-district-council/wolverhampton","2CO.com iban.com",2244.7,"Strategic ICTS (ICT Serv Budget)","5947","Computing - Purchase of Software","16/07/2019"
"Wolverhampton City Council","http://opendatacommunities.org/id/metropolitan-district-council/wolverhampton","WOLVERHAMPTON T/O",8.2,"IMPACT","4112","Public Transport","16/07/2019"
"Wolverhampton City Council","http://opendatacommunities.org/id/metropolitan-district-council/wolverhampton","FALCON INDUSTRIAL",68.85,"Passenger Transport - General","5137","Clothing / Uniforms","16/07/2019"
"Wolverhampton City Council","http://opendatacommunities.org/id/metropolitan-district-council/wolverhampton","ROYAL CARPETS",125,"LAC Transitions Team","5713","Client Allowances","16/07/2019"
"Wolverhampton City Council","http://opendatacommunities.org/id/metropolitan-district-council/wolverhampton","Virgin Trains",184,"Fostering Team","4112","Accommodation Costs","16/07/2019"
"Wolverhampton City Council","http://opendatacommunities.org/id/metropolitan-district-council/wolverhampton","MARKS&SPENCER PLC SACA",12.44,"Business Support Services","5411","Provisions (Not for resale)","16/07/2019"
"Wolverhampton City Council","http://opendatacommunities.org/id/metropolitan-district-council/wolverhampton","AMZNMktplace",15.82,"Business Support Services","5999","Equipment - Purchase","16/07/2019"
"Wolverhampton City Council","http://opendatacommunities.org/id/metropolitan-district-council/wolverhampton","Trainline",93.61,"LAC Transitions Team","4112","Public Transport","16/07/2019"
"Wolverhampton City Council","http://opendatacommunities.org/id/metropolitan-district-council/wolverhampton","W HAMPTON1109",9.41,"Mayor's Charity","5211","Accommodation Costs","16/07/2019"
"Wolverhampton City Council","http://opendatacommunities.org/id/metropolitan-district-council/wolverhampton","ADVENTURE SPORTS (WARW",150,"Upper Pendeford Farm Childrens Home","7032","Educ Trips, Holidays, Outings, Activity","16/07/2019"
"Wolverhampton City Council","http://opendatacommunities.org/id/metropolitan-district-council/wolverhampton","HM PASSPORT OFFICE",58.5,"Looked After Team 2","9399","Services - Fees and Charges","16/07/2019"
"Wolverhampton City Council","http://opendatacommunities.org/id/metropolitan-district-council/wolverhampton","Amazon.co.uk MH9DN6FR4",342.7,"Children & Young People Support Costs","5969","Equipment - Purchase","16/07/2019"
"Wolverhampton City Council","http://opendatacommunities.org/id/metropolitan-district-council/wolverhampton","Amazon.co.uk MH8R67FJ4",428.26,"Children & Young People Support Costs","5969","Equipment - Purchase","16/07/2019"
"Wolverhampton City Council","http://opendatacommunities.org/id/metropolitan-district-council/wolverhampton","Amazon.co.uk MH8RE3FT4",428.34,"Children & Young People Support Costs","5969","Equipment - Purchase","16/07/2019"
"Wolverhampton City Council","http://opendatacommunities.org/id/metropolitan-district-council/wolverhampton","Amazon.co.uk MH74W8FY4",270.99,"Children & Young People Support Costs","5969","Equipment - Purchase","16/07/2019"
"Wolverhampton City Council","http://opendatacommunities.org/id/metropolitan-district-council/wolverhampton","Amazon.co.uk MH52N4F04",333.5,"Children & Young People Support Costs","5969","Equipment - Purchase","16/07/2019"
"Wolverhampton City Council","http://opendatacommunities.org/id/metropolitan-district-council/wolverhampton","Amazon.co.uk MH2MN3F04",151.57,"Children & Young People Support Costs","5969","Equipment - Purchase","16/07/2019"
"Wolverhampton City Council","http://opendatacommunities.org/id/metropolitan-district-council/wolverhampton","AMZNMktplace",32.46,"Duke Street Bungalows","5999","Equipment - Purchase","16/07/2019"
"Wolverhampton City Council","http://opendatacommunities.org/id/metropolitan-district-council/wolverhampton","HM PASSPORT OFFICE",58.5,"LAC Team","9399","Financial Assistance In Exceptional Circ","16/07/2019"
"Wolverhampton City Council","http://opendatacommunities.org/id/metropolitan-district-council/wolverhampton","WM MORRISONS STORE",5,"Head of Service - LAC","5411","Accommodation Costs","16/07/2019"
"Wolverhampton City Council","http://opendatacommunities.org/id/metropolitan-district-council/wolverhampton","QUEENSWAY INTERIOR",-241.67,"LAC Transitions Team","5712","Client Allowances","16/07/2019"
"Wolverhampton City Council","http://opendatacommunities.org/id/metropolitan-district-council/wolverhampton","B&M RETAIL",137.39,"LAC Transitions Team","5310","Client Allowances","16/07/2019"
"Wolverhampton City Council","http://opendatacommunities.org/id/metropolitan-district-council/wolverhampton","QUEENSWAY INTERIOR",375,"LAC Transitions Team","5712","Client Allowances","16/07/2019"
"Wolverhampton City Council","http://opendatacommunities.org/id/metropolitan-district-council/wolverhampton","Trainline",41.51,"CIN/CP Social Work Unit - Area 4","4112","Section 17","16/07/2019"
"Wolverhampton City Council","http://opendatacommunities.org/id/metropolitan-district-council/wolverhampton","London Northwestern Ra",30,"Court Team","4112","Client Transport","16/07/2019"
"Wolverhampton City Council","http://opendatacommunities.org/id/metropolitan-district-council/wolverhampton","HMCOURTS-SERVICE.G",75,"Mental Health Assessment & Care Mgmt","9222","Services - Fees and Charges","16/07/2019"
"Wolverhampton City Council","http://opendatacommunities.org/id/metropolitan-district-council/wolverhampton","AMZNMktplace",2.08,"Ernest Bold Court","5999","Equipment - Purchase","16/07/2019"
"Wolverhampton City Council","http://opendatacommunities.org/id/metropolitan-district-council/wolverhampton","Amazon.co.uk M63NL5YT4",12.48,"Archives","5969","Books","15/07/2019"
"Wolverhampton City Council","http://opendatacommunities.org/id/metropolitan-district-council/wolverhampton","AMZNMktplace",9.62,"Archives","5999","Books","15/07/2019"
"Wolverhampton City Council","http://opendatacommunities.org/id/metropolitan-district-council/wolverhampton","Amazon.co.uk M65AK9Y34",40.18,"Archives","5969","Books","15/07/2019"
"Wolverhampton City Council","http://opendatacommunities.org/id/metropolitan-district-council/wolverhampton","POST OFFICE COUNTER",69.54,"Corporate Parenting","9402","Comms - Postage","15/07/2019"
"Wolverhampton City Council","http://opendatacommunities.org/id/metropolitan-district-council/wolverhampton","ROYAL CARPETS",209,"Children & Young People Support Costs","5713","Client Allowances","15/07/2019"
"Wolverhampton City Council","http://opendatacommunities.org/id/metropolitan-district-council/wolverhampton","AMZNMktplace",29.13,"Revenues","5999","Equipment - Purchase","15/07/2019"
"Wolverhampton City Council","http://opendatacommunities.org/id/metropolitan-district-council/wolverhampton","THE POST OFFICE",1.06,"Art Gallery","9402","Comms - Postage","15/07/2019"
"Wolverhampton City Council","http://opendatacommunities.org/id/metropolitan-district-council/wolverhampton","ASDA GROCERIES ONLINE",-0.5,"Key to Inspiration","5411","Provisions (Not for resale)","15/07/2019"
"Wolverhampton City Council","http://opendatacommunities.org/id/metropolitan-district-council/wolverhampton","ASDA GROCERIES ONLINE",147.02,"Key to Inspiration","5411","Provisions (Not for resale)","15/07/2019"
"Wolverhampton City Council","http://opendatacommunities.org/id/metropolitan-district-council/wolverhampton","ASDA GROCERIES ONLINE",102.73,"Bradley Resource Centre","5411","Provisions (Not for resale)","15/07/2019"
"Wolverhampton City Council","http://opendatacommunities.org/id/metropolitan-district-council/wolverhampton","Trainline.com",48.33,"LAC Transitions Team","4112","Public Transport","15/07/2019"
"Wolverhampton City Council","http://opendatacommunities.org/id/metropolitan-district-council/wolverhampton","CAPITAL H&B LTD",172.79,"IMPACT","7230","Equipment - Purchase","15/07/2019"
"Wolverhampton City Council","http://opendatacommunities.org/id/metropolitan-district-council/wolverhampton","WEST MID TRAVEL",236.35,"IMPACT","4131","Public Transport","15/07/2019"
"Wolverhampton City Council","http://opendatacommunities.org/id/metropolitan-district-council/wolverhampton","AMZNMktplace",46.22,"Patching","5999","Accommodation Costs","15/07/2019"
"Wolverhampton City Council","http://opendatacommunities.org/id/metropolitan-district-council/wolverhampton","GREGGS PLC",2.25,"Youth Offending Team","5812","Educ Trips, Holidays, Outings, Activity","15/07/2019"
"Wolverhampton City Council","http://opendatacommunities.org/id/metropolitan-district-council/wolverhampton","ASDA SUPERSTORE",2.57,"Mayoral Expenses","5411","Hospitality","15/07/2019"
"Wolverhampton City Council","http://opendatacommunities.org/id/metropolitan-district-council/wolverhampton","000002200500000",150,"Childrens with Disabilities Team","6011","Section 17","15/07/2019"
"Wolverhampton City Council","http://opendatacommunities.org/id/metropolitan-district-council/wolverhampton","Trainline.com",8.9,"Education Business Partnership","4112","Public Transport","15/07/2019"
"Wolverhampton City Council","http://opendatacommunities.org/id/metropolitan-district-council/wolverhampton","ITUNES.COM/BILL",2.07,"Corporate Parenting","5735","Computing - Purchase of Software","15/07/2019"
"Wolverhampton City Council","http://opendatacommunities.org/id/metropolitan-district-council/wolverhampton","ASDA SUPERSTORE",10.88,"Cemeteries","5411","Provisions (Not for resale)","15/07/2019"
"Wolverhampton City Council","http://opendatacommunities.org/id/metropolitan-district-council/wolverhampton","ASDA GROCERIES ONLINE",-1.3,"Upper Pendeford Farm Childrens Home","5411","Provisions (Not for resale)","15/07/2019"
"Wolverhampton City Council","http://opendatacommunities.org/id/metropolitan-district-council/wolverhampton","ASDA GROCERIES ONLINE",5,"Upper Pendeford Farm Childrens Home","5411","Provisions (Not for resale)","15/07/2019"
"Wolverhampton City Council","http://opendatacommunities.org/id/metropolitan-district-council/wolverhampton","ASDA GROCERIES ONLINE",172.59,"Upper Pendeford Farm Childrens Home","5411","Provisions (Not for resale)","15/07/2019"
"Wolverhampton City Council","http://opendatacommunities.org/id/metropolitan-district-council/wolverhampton","WWW.JA.NET",35,"ICT Services","8699","Computing - Purchase of Software","15/07/2019"
"Wolverhampton City Council","http://opendatacommunities.org/id/metropolitan-district-council/wolverhampton","Trainline.com",205.13,"Safeguarding Partnership Board","4112","Public Transport","15/07/2019"
"Wolverhampton City Council","http://opendatacommunities.org/id/metropolitan-district-council/wolverhampton","FLYBE.COM RIUIKO       0",80.31,"Research & Development","4511","Public Transport","15/07/2019"
"Wolverhampton City Council","http://opendatacommunities.org/id/metropolitan-district-council/wolverhampton","Trainline.com",8.5,"Research & Development","4112","Public Transport","15/07/2019"
"Wolverhampton City Council","http://opendatacommunities.org/id/metropolitan-district-council/wolverhampton","ROOKERY Sainsburys Ba",150,"Duke Street Bungalows","6011","Provisions (Not for resale)","15/07/2019"
"Wolverhampton City Council","http://opendatacommunities.org/id/metropolitan-district-council/wolverhampton","SAINSBURYS SACAT 2040",10.25,"Duke Street Bungalows","5411","R4010","15/07/2019"
"Wolverhampton City Council","http://opendatacommunities.org/id/metropolitan-district-council/wolverhampton","ASDA GROCERIES ONLINE",72.63,"Ernest Bold Court","5411","Provisions (Not for resale)","15/07/2019"
"Wolverhampton City Council","http://opendatacommunities.org/id/metropolitan-district-council/wolverhampton","AMZN Mktp UK MH86R5C04",24.96,"Welfare Rights","5942","R4400","15/07/2019"
"Wolverhampton City Council","http://opendatacommunities.org/id/metropolitan-district-council/wolverhampton","AMZNMktplace",19.52,"Ernest Bold Court","5999","Equipment - Purchase","15/07/2019"
"Wolverhampton City Council","http://opendatacommunities.org/id/metropolitan-district-council/wolverhampton","AMZNMktplace",11.16,"Ernest Bold Court","5999","Equipment - Purchase","15/07/2019"
"Wolverhampton City Council","http://opendatacommunities.org/id/metropolitan-district-council/wolverhampton","AMZNMktplace",3.32,"Ernest Bold Court","5999","Equipment - Purchase","15/07/2019"
"Wolverhampton City Council","http://opendatacommunities.org/id/metropolitan-district-council/wolverhampton","AMZNMktplace",4.81,"Ernest Bold Court","5999","Equipment - Purchase","15/07/2019"
"Wolverhampton City Council","http://opendatacommunities.org/id/metropolitan-district-council/wolverhampton","AMZNMktplace",9.47,"Community Enablement","5999","Equipment - Purchase","15/07/2019"
"Wolverhampton City Council","http://opendatacommunities.org/id/metropolitan-district-council/wolverhampton","WWW.ICO.ORG.UK",2900,"Members Expenses","9399","Subscriptions","15/07/2019"
"Wolverhampton City Council","http://opendatacommunities.org/id/metropolitan-district-council/wolverhampton","WWW.WMCA.CO.UK",56.5,"IMPACT","9399","Public Transport","12/07/2019"
"Wolverhampton City Council","http://opendatacommunities.org/id/metropolitan-district-council/wolverhampton","POUNDSTRETCHER",12.48,"Children & Young People Support Costs","5331","Client Allowances","12/07/2019"
"Wolverhampton City Council","http://opendatacommunities.org/id/metropolitan-district-council/wolverhampton","POST OFFICE COUNTER",1.58,"LAC Transitions Team","9402","Comms - Postage","12/07/2019"
"Wolverhampton City Council","http://opendatacommunities.org/id/metropolitan-district-council/wolverhampton","BAKER ROSS",83.85,"","5970","Materials","12/07/2019"
"Wolverhampton City Council","http://opendatacommunities.org/id/metropolitan-district-council/wolverhampton","AMZNMktplace",20.8,"","5999","Equipment - Purchase","12/07/2019"
"Wolverhampton City Council","http://opendatacommunities.org/id/metropolitan-district-council/wolverhampton","AMZNMktplace",4.85,"","5999","Equipment - Purchase","12/07/2019"
"Wolverhampton City Council","http://opendatacommunities.org/id/metropolitan-district-council/wolverhampton","AMZNMktplace",6.24,"","5999","Equipment - Purchase","12/07/2019"
"Wolverhampton City Council","http://opendatacommunities.org/id/metropolitan-district-council/wolverhampton","COMMS EXPRESS LTD",391.14,"Strategic ICTS (ICT Serv Budget)","5732","Equipment - Purchase","12/07/2019"
"Wolverhampton City Council","http://opendatacommunities.org/id/metropolitan-district-council/wolverhampton","NATWEST BANK",205,"NRPF","6011","Financial Assistance In Exceptional Circ","12/07/2019"
"Wolverhampton City Council","http://opendatacommunities.org/id/metropolitan-district-council/wolverhampton","EDMUNDSON ELECTRICAL L",70,"Street Lighting Maintenance","5065","Equipment - R & M","12/07/2019"
"Wolverhampton City Council","http://opendatacommunities.org/id/metropolitan-district-council/wolverhampton","NATWEST BANK",200,"CAT","6011","Client Allowances","12/07/2019"
"Wolverhampton City Council","http://opendatacommunities.org/id/metropolitan-district-council/wolverhampton","AMZNMktplace",43.62,"Street Lighting Maintenance","5999","Equipment - Purchase","12/07/2019"
"Wolverhampton City Council","http://opendatacommunities.org/id/metropolitan-district-council/wolverhampton","THE FLOWER STALL",75,"Mayoral Expenses","5992","Hospitality","12/07/2019"
"Wolverhampton City Council","http://opendatacommunities.org/id/metropolitan-district-council/wolverhampton","AMZNMKTPLACE AMAZON.CO",11.7,"Regional Adoption Agency","5999","Equipment - Purchase","12/07/2019"
"Wolverhampton City Council","http://opendatacommunities.org/id/metropolitan-district-council/wolverhampton","AMZNMKTPLACE AMAZON.CO",11.24,"Regional Adoption Agency","5999","Equipment - Purchase","12/07/2019"
"Wolverhampton City Council","http://opendatacommunities.org/id/metropolitan-district-council/wolverhampton","TESCO DELIVERY SAVER2",3.49,"Towers Outdoor Education Centre","5968","Provisions (Not for resale)","12/07/2019"
"Wolverhampton City Council","http://opendatacommunities.org/id/metropolitan-district-council/wolverhampton","WWW.ARGOS.CO.UK",36.62,"Aldersley Leisure Village","5310","Equipment - Purchase","12/07/2019"
"Wolverhampton City Council","http://opendatacommunities.org/id/metropolitan-district-council/wolverhampton","ALDI 94 772",23.78,"Business Support Services","5411","Provisions (Not for resale)","12/07/2019"
"Wolverhampton City Council","http://opendatacommunities.org/id/metropolitan-district-council/wolverhampton","POUNDLAND LTD 1463",5,"Business Support Services","5310","Equipment - Purchase","12/07/2019"
"Wolverhampton City Council","http://opendatacommunities.org/id/metropolitan-district-council/wolverhampton","IKEA LTD 142 BIRMINGHA",19.5,"LAC Transitions Team","5712","Equipment - Purchase","12/07/2019"
"Wolverhampton City Council","http://opendatacommunities.org/id/metropolitan-district-council/wolverhampton","AMZNMktplace",39.92,"Cemeteries","5999","Equipment - Purchase","12/07/2019"
"Wolverhampton City Council","http://opendatacommunities.org/id/metropolitan-district-council/wolverhampton","WWW.ROCKAWNINGS.CO.UK",183.99,"Healthy Life Expectancy","5200","Equipment - Purchase","12/07/2019"
"Wolverhampton City Council","http://opendatacommunities.org/id/metropolitan-district-council/wolverhampton","WWW.ROCKAWNINGS.CO.UK",183.99,"Healthy Life Expectancy","5200","Equipment - Purchase","12/07/2019"
"Wolverhampton City Council","http://opendatacommunities.org/id/metropolitan-district-council/wolverhampton","BARCLAYS",50,"Emergency Duty Team","6011","Financial Assistance In Exceptional Circ","12/07/2019"
"Wolverhampton City Council","http://opendatacommunities.org/id/metropolitan-district-council/wolverhampton","W HAMPTON1853",10.82,"Mayor's Charity","5211","Accommodation Costs","12/07/2019"
"Wolverhampton City Council","http://opendatacommunities.org/id/metropolitan-district-council/wolverhampton","JOHNSONS",6,"Business Support Services","7210","Laundry Expenses","12/07/2019"
"Wolverhampton City Council","http://opendatacommunities.org/id/metropolitan-district-council/wolverhampton","Amazon.co.uk M62SM7R24",13.75,"Telecare","5969","Books","12/07/2019"
"Wolverhampton City Council","http://opendatacommunities.org/id/metropolitan-district-council/wolverhampton","PAYPAL  RTPI",50,"Central Training","8398","Training Expenses","12/07/2019"
"Wolverhampton City Council","http://opendatacommunities.org/id/metropolitan-district-council/wolverhampton","ASDA GROCERIES ONLINE",35.5,"EIP Locality 7","5411","Educ Trips, Holidays, Outings, Activity","12/07/2019"
"Wolverhampton City Council","http://opendatacommunities.org/id/metropolitan-district-council/wolverhampton","NOVOTEL HOTELS",71.67,"Scrutiny & Transparency","3642","Accommodation Costs","12/07/2019"
"Wolverhampton City Council","http://opendatacommunities.org/id/metropolitan-district-council/wolverhampton","POSTURITE LTD",224.9,"Graduate Trainees","7399","Equipment - Purchase","12/07/2019"
"Wolverhampton City Council","http://opendatacommunities.org/id/metropolitan-district-council/wolverhampton","NATWEST BANK",100,"Mayoral Expenses","6011","Services - Professional Fees","12/07/2019"
"Wolverhampton City Council","http://opendatacommunities.org/id/metropolitan-district-council/wolverhampton","HORNERSHEARING.COM",150.22,"Northicote Farm","5251","Services - Professional Fees","12/07/2019"
"Wolverhampton City Council","http://opendatacommunities.org/id/metropolitan-district-council/wolverhampton","ASDA GROCERIES ONLINE",75.37,"Bradley Resource Centre","5411","Provisions (Not for resale)","11/07/2019"
"Wolverhampton City Council","http://opendatacommunities.org/id/metropolitan-district-council/wolverhampton","WWW.REED.CO.UK",175,"Strategic ICTS (ICT Serv Budget)","7361","R4317","11/07/2019"
"Wolverhampton City Council","http://opendatacommunities.org/id/metropolitan-district-council/wolverhampton","Amazon.co.uk M62MH2WC4",17.61,"Regional Adoption Agency","5969","Equipment - Purchase","11/07/2019"
"Wolverhampton City Council","http://opendatacommunities.org/id/metropolitan-district-council/wolverhampton","AMZNMktplace",11.48,"Regional Adoption Agency","5999","Accommodation Costs","11/07/2019"
"Wolverhampton City Council","http://opendatacommunities.org/id/metropolitan-district-council/wolverhampton","Amazon.co.uk M67CX6R54",12.87,"Regional Adoption Agency","5969","Equipment - Purchase","11/07/2019"
"Wolverhampton City Council","http://opendatacommunities.org/id/metropolitan-district-council/wolverhampton","AMZNMktplace",9.99,"Regional Adoption Agency","5999","Equipment - Purchase","11/07/2019"
"Wolverhampton City Council","http://opendatacommunities.org/id/metropolitan-district-council/wolverhampton","TEX MEADOWVALEGAR",91.41,"Towers Outdoor Education Centre","5541","Fixtures and Fittings - Purchases","11/07/2019"
"Wolverhampton City Council","http://opendatacommunities.org/id/metropolitan-district-council/wolverhampton","WHITEMORE REANS LTD",32.5,"Aldersley Leisure Village","5251","Equipment - Purchase","11/07/2019"
"Wolverhampton City Council","http://opendatacommunities.org/id/metropolitan-district-council/wolverhampton","GOOGLE  ADS9680351324",500,"Communications & Marketing - General","5968","Subscriptions","11/07/2019"
"Wolverhampton City Council","http://opendatacommunities.org/id/metropolitan-district-council/wolverhampton","MYPROTEIN.COM",55.96,"WV Active Marketing","5399","Equipment - Purchase","11/07/2019"
"Wolverhampton City Council","http://opendatacommunities.org/id/metropolitan-district-council/wolverhampton","MARKS&SPENCER PLC SACA",2.5,"Admin & Support","5411","Provisions (Not for resale)","11/07/2019"
"Wolverhampton City Council","http://opendatacommunities.org/id/metropolitan-district-council/wolverhampton","RESPONSTER PLUS PLAN",15.72,"Communications & Marketing - General","5734","Computing - Purchase of Software","11/07/2019"
"Wolverhampton City Council","http://opendatacommunities.org/id/metropolitan-district-council/wolverhampton","WP-CENTRAL TAXIS L",300,"Looked After Team 2","4121","Client Transport","11/07/2019"
"Wolverhampton City Council","http://opendatacommunities.org/id/metropolitan-district-council/wolverhampton","UTILITA ENERGY LIMITED",192.02,"Looked After Team 2","4900","Financial Assistance In Exceptional Circ","11/07/2019"
"Wolverhampton City Council","http://opendatacommunities.org/id/metropolitan-district-council/wolverhampton","Central Taxis Limited",7.6,"Looked After Team 2","4121","Client Transport","11/07/2019"
"Wolverhampton City Council","http://opendatacommunities.org/id/metropolitan-district-council/wolverhampton","Central Taxis Limited",7.7,"Looked After Team 2","4121","Client Transport","11/07/2019"
"Wolverhampton City Council","http://opendatacommunities.org/id/metropolitan-district-council/wolverhampton","MARKS&SPENCER PLC SACA",19.79,"Business Support Services","5411","Accommodation Costs","11/07/2019"
"Wolverhampton City Council","http://opendatacommunities.org/id/metropolitan-district-council/wolverhampton","HOME BARGAINS WOLVERHA",3.89,"LAC Transitions Team","5251","Client Allowances","11/07/2019"
"Wolverhampton City Council","http://opendatacommunities.org/id/metropolitan-district-council/wolverhampton","BRITISH STANDARDS",232,"Strategic Asset Management - General","7399","Equipment - Purchase","11/07/2019"
"Wolverhampton City Council","http://opendatacommunities.org/id/metropolitan-district-council/wolverhampton","Amazon.co.uk M63PE3R04",28.73,"Learning Disabilities Management","5969","Equipment - Purchase","11/07/2019"
"Wolverhampton City Council","http://opendatacommunities.org/id/metropolitan-district-council/wolverhampton","AMZNMktplace",47.34,"Duke Street Bungalows","5999","Equipment - Purchase","11/07/2019"
"Wolverhampton City Council","http://opendatacommunities.org/id/metropolitan-district-council/wolverhampton","RIBA SERVICES",443.2,"Statutory Services (10RM)","5942","Books","11/07/2019"
"Wolverhampton City Council","http://opendatacommunities.org/id/metropolitan-district-council/wolverhampton","WICKES WOLVERHAMPTON",3.25,"Specialist Support Service - North","5211","Equipment - R & M","11/07/2019"
"Wolverhampton City Council","http://opendatacommunities.org/id/metropolitan-district-council/wolverhampton","FS160 CLAREGATE",6.37,"Specialist Support Service - North","5541","Equipment - R & M","11/07/2019"
"Wolverhampton City Council","http://opendatacommunities.org/id/metropolitan-district-council/wolverhampton","Virgin Trains",43.9,"Looked After Team 2","4112","Public Transport","11/07/2019"
"Wolverhampton City Council","http://opendatacommunities.org/id/metropolitan-district-council/wolverhampton","CT WOLVERHAMPTON",135,"CIN/CP Social Work Unit - Area 4","8398","Section 17","11/07/2019"
"Wolverhampton City Council","http://opendatacommunities.org/id/metropolitan-district-council/wolverhampton","WWW.TELFORD.GOV.UK",86,"Central Training","9399","Training Expenses","11/07/2019"
"Wolverhampton City Council","http://opendatacommunities.org/id/metropolitan-district-council/wolverhampton","HM PASSPORT OFFICE",58.5,"Court Team","9399","Section 17","11/07/2019"
"Wolverhampton City Council","http://opendatacommunities.org/id/metropolitan-district-council/wolverhampton","GEN REGISTER OFFICE",15,"LAC Transitions Team","9399","Client Allowances","11/07/2019"
"Wolverhampton City Council","http://opendatacommunities.org/id/metropolitan-district-council/wolverhampton","TIMPSON LTD",24.92,"Democratic Support","7251","Services - Professional Fees","11/07/2019"
"Wolverhampton City Council","http://opendatacommunities.org/id/metropolitan-district-council/wolverhampton","SSE",25.97,"LAC Transitions Team","4900","Accommodation Costs","10/07/2019"
"Wolverhampton City Council","http://opendatacommunities.org/id/metropolitan-district-council/wolverhampton","SPORTSDIRECT 383",10.04,"Key to Inspiration","5941","Educ Trips, Holidays, Outings, Activity","10/07/2019"
"Wolverhampton City Council","http://opendatacommunities.org/id/metropolitan-district-council/wolverhampton","Trainline",20.1,"CAT","4112","Public Transport","10/07/2019"
"Wolverhampton City Council","http://opendatacommunities.org/id/metropolitan-district-council/wolverhampton","SPAR",411.12,"Towers Outdoor Education Centre","5411","Provisions (Not for resale)","10/07/2019"
"Wolverhampton City Council","http://opendatacommunities.org/id/metropolitan-district-council/wolverhampton","TESCO STORES 5194",116.99,"Towers Outdoor Education Centre","5411","Provisions (Not for resale)","10/07/2019"
"Wolverhampton City Council","http://opendatacommunities.org/id/metropolitan-district-council/wolverhampton","PHOENIX TRAILERS",166.67,"Towers Outdoor Education Centre","5561","Equipment - Purchase","10/07/2019"
"Wolverhampton City Council","http://opendatacommunities.org/id/metropolitan-district-council/wolverhampton","CardtronicsUK",41.67,"Ernest Bold Court","6011","Fixtures and Fittings - R&M","10/07/2019"
"Wolverhampton City Council","http://opendatacommunities.org/id/metropolitan-district-council/wolverhampton","WOLVERHAMPTON CITY COU",21,"Business Support Services","9399","Services - Fees and Charges","10/07/2019"
"Wolverhampton City Council","http://opendatacommunities.org/id/metropolitan-district-council/wolverhampton","Trainline.com",44.26,"Communications & Marketing - General","4112","Public Transport","10/07/2019"
"Wolverhampton City Council","http://opendatacommunities.org/id/metropolitan-district-council/wolverhampton","CardtronicsUK",200,"Intensive Family Support Team","6011","Financial Assistance In Exceptional Circ","10/07/2019"
"Wolverhampton City Council","http://opendatacommunities.org/id/metropolitan-district-council/wolverhampton","CITY OF WOLVERHAMPTON",16,"Looked After Team 2","9399","Services - Fees and Charges","10/07/2019"
"Wolverhampton City Council","http://opendatacommunities.org/id/metropolitan-district-council/wolverhampton","ASDA GROCERIES ONLINE",5,"Upper Pendeford Farm Childrens Home","5411","Provisions (Not for resale)","10/07/2019"
"Wolverhampton City Council","http://opendatacommunities.org/id/metropolitan-district-council/wolverhampton","Trainline.com",9.41,"Children & Young People Support Costs","4112","Public Transport","10/07/2019"
"Wolverhampton City Council","http://opendatacommunities.org/id/metropolitan-district-council/wolverhampton","ALDI 78 772",22.11,"Foundation Studies","5411","Accommodation Costs","10/07/2019"
"Wolverhampton City Council","http://opendatacommunities.org/id/metropolitan-district-council/wolverhampton","WOLVERHAMPTON T/O",5.9,"Curatorial - Cultural Learning","4112","Public Transport","10/07/2019"
"Wolverhampton City Council","http://opendatacommunities.org/id/metropolitan-district-council/wolverhampton","Virgin Trains",8.5,"Planning","4112","Public Transport","10/07/2019"
"Wolverhampton City Council","http://opendatacommunities.org/id/metropolitan-district-council/wolverhampton","AMZNMktplace",5.99,"Global Budgets","5999","Books","10/07/2019"
"Wolverhampton City Council","http://opendatacommunities.org/id/metropolitan-district-council/wolverhampton","WICKES WOLVERHAMPTON",8.33,"Duke Street Bungalows","5211","Equipment - R & M","10/07/2019"
"Wolverhampton City Council","http://opendatacommunities.org/id/metropolitan-district-council/wolverhampton","Complete Food Safety",19.95,"Food & Consumer Safety","5999","Equipment - Purchase","10/07/2019"
"Wolverhampton City Council","http://opendatacommunities.org/id/metropolitan-district-council/wolverhampton","SANDGATE WORCESTER LTD",298.83,"Central Training","7011","Accommodation Costs","10/07/2019"
"Wolverhampton City Council","http://opendatacommunities.org/id/metropolitan-district-council/wolverhampton","HM PASSPORT",127,"Court Team","9399","Section 17","10/07/2019"
"Wolverhampton City Council","http://opendatacommunities.org/id/metropolitan-district-council/wolverhampton","ASDA GROCERIES ONLINE",248.44,"Duke Street Bungalows","5411","Provisions (Not for resale)","10/07/2019"
"Wolverhampton City Council","http://opendatacommunities.org/id/metropolitan-district-council/wolverhampton","ENJOY WOLVERHAMPTON",40,"Mayoral Expenses","5399","Gratuities","10/07/2019"
"Wolverhampton City Council","http://opendatacommunities.org/id/metropolitan-district-council/wolverhampton","WWW.LABC.UK.COM",150,"City Centre","7399","Equipment - Purchase","09/07/2019"
"Wolverhampton City Council","http://opendatacommunities.org/id/metropolitan-district-council/wolverhampton","POST OFFICE COUNTER",29.28,"CIN/CP Social Work Unit - Area 7","9402","Comms - Postage","09/07/2019"
"Wolverhampton City Council","http://opendatacommunities.org/id/metropolitan-district-council/wolverhampton","Trainline",194.85,"Legal Services","4112","Public Transport","09/07/2019"
"Wolverhampton City Council","http://opendatacommunities.org/id/metropolitan-district-council/wolverhampton","Trainline.com",98.85,"Black Country Transport Director","4112","Public Transport","09/07/2019"
"Wolverhampton City Council","http://opendatacommunities.org/id/metropolitan-district-council/wolverhampton","CURRYS S/S",2.41,"Adult Services - East","5732","Equipment - Purchase","09/07/2019"
"Wolverhampton City Council","http://opendatacommunities.org/id/metropolitan-district-council/wolverhampton","CURRYS S/S",2.41,"Adult Services - East","5732","Equipment - Purchase","09/07/2019"
"Wolverhampton City Council","http://opendatacommunities.org/id/metropolitan-district-council/wolverhampton","CURRYS S/S",4.82,"Adult Services - East","5732","Equipment - Purchase","09/07/2019"
"Wolverhampton City Council","http://opendatacommunities.org/id/metropolitan-district-council/wolverhampton","Virgin Trains",45.5,"Members Expenses","4112","Public Transport","09/07/2019"
"Wolverhampton City Council","http://opendatacommunities.org/id/metropolitan-district-council/wolverhampton","ASDA SUPERSTORE",18.99,"Key to Inspiration","5411","Educ Trips, Holidays, Outings, Activity","09/07/2019"
"Wolverhampton City Council","http://opendatacommunities.org/id/metropolitan-district-council/wolverhampton","HOME BARGAINS WOLVERHA",35.49,"Key to Inspiration","5251","Equipment - Purchase","09/07/2019"
"Wolverhampton City Council","http://opendatacommunities.org/id/metropolitan-district-council/wolverhampton","ASDA GROCERIES ONLINE",-4,"Bradley Resource Centre","5411","Provisions (Not for resale)","09/07/2019"
"Wolverhampton City Council","http://opendatacommunities.org/id/metropolitan-district-council/wolverhampton","HOME BARGAINS",10.82,"LAC Transitions Team","5251","Client Allowances","09/07/2019"
"Wolverhampton City Council","http://opendatacommunities.org/id/metropolitan-district-council/wolverhampton","Amazon.co.uk M68CL3ID4",72,"Regional Adoption Agency","5969","Books","09/07/2019"
"Wolverhampton City Council","http://opendatacommunities.org/id/metropolitan-district-council/wolverhampton","Virgin Trains",40.2,"Regional Adoption Agency","4112","Public Transport","09/07/2019"
"Wolverhampton City Council","http://opendatacommunities.org/id/metropolitan-district-council/wolverhampton","Virgin Trains",323,"Regional Adoption Agency","4112","Public Transport","09/07/2019"
"Wolverhampton City Council","http://opendatacommunities.org/id/metropolitan-district-council/wolverhampton","POST OFFICE COUNTER",95.44,"Regional Adoption Agency","9402","Comms - Postage","09/07/2019"
"Wolverhampton City Council","http://opendatacommunities.org/id/metropolitan-district-council/wolverhampton","CHEMSOL CYMRU LTD",93,"Towers Outdoor Education Centre","5199","Fixtures and Fittings - Purchases","09/07/2019"
"Wolverhampton City Council","http://opendatacommunities.org/id/metropolitan-district-council/wolverhampton","UTILITA ENERGY LIMITED",20,"EIP Locality 4","4900","Electricity","09/07/2019"
"Wolverhampton City Council","http://opendatacommunities.org/id/metropolitan-district-council/wolverhampton","Virgin Trains",9.2,"Fostering Team & Allowances","4112","Public Transport","09/07/2019"
"Wolverhampton City Council","http://opendatacommunities.org/id/metropolitan-district-council/wolverhampton","Virgin Trains",190,"Fostering Team & Allowances","4112","Public Transport","09/07/2019"
"Wolverhampton City Council","http://opendatacommunities.org/id/metropolitan-district-council/wolverhampton","Virgin Trains",187,"Fostering Team & Allowances","4112","Public Transport","09/07/2019"
"Wolverhampton City Council","http://opendatacommunities.org/id/metropolitan-district-council/wolverhampton","ASDA GROCERIES ONLINE",128.64,"Bradley Resource Centre","5411","Provisions (Not for resale)","09/07/2019"
"Wolverhampton City Council","http://opendatacommunities.org/id/metropolitan-district-council/wolverhampton","B&M RETAIL LTD",16.66,"LAC Transitions Team","5310","Client Allowances","09/07/2019"
"Wolverhampton City Council","http://opendatacommunities.org/id/metropolitan-district-council/wolverhampton","NAMESCO",34.99,"Communications & Marketing - General","4816","Computing - Purchase of Software","09/07/2019"
"Wolverhampton City Council","http://opendatacommunities.org/id/metropolitan-district-council/wolverhampton","W HAMPTON1797",16.64,"Cemeteries","5211","Materials","09/07/2019"
"Wolverhampton City Council","http://opendatacommunities.org/id/metropolitan-district-council/wolverhampton","Trainline.com",115.49,"Starting and Developing Well(0-24 group)","4112","Public Transport","09/07/2019"
"Wolverhampton City Council","http://opendatacommunities.org/id/metropolitan-district-council/wolverhampton","AMZNMktplace",198.94,"LAC Transitions Team","5999","Equipment - Purchase","09/07/2019"
"Wolverhampton City Council","http://opendatacommunities.org/id/metropolitan-district-council/wolverhampton","Virgin Trains",37.5,"Delivery & OCE Development","4112","Public Transport","09/07/2019"
"Wolverhampton City Council","http://opendatacommunities.org/id/metropolitan-district-council/wolverhampton","AMZNMKTPLACE AMAZON.CO",26.1,"Upper Pendeford Farm Childrens Home","5999","Equipment - Purchase","09/07/2019"
"Wolverhampton City Council","http://opendatacommunities.org/id/metropolitan-district-council/wolverhampton","ALDI 73 772",12.93,"LAC Transitions Team","5411","Client Allowances","09/07/2019"
"Wolverhampton City Council","http://opendatacommunities.org/id/metropolitan-district-council/wolverhampton","Trainline.com",99.77,"Travelwise","4112","Public Transport","09/07/2019"
"Wolverhampton City Council","http://opendatacommunities.org/id/metropolitan-district-council/wolverhampton","DUNELM (SOFT FURNISHIN",-93.39,"LAC Transitions Team","5714","Client Allowances","09/07/2019"
"Wolverhampton City Council","http://opendatacommunities.org/id/metropolitan-district-council/wolverhampton","DUNELM ONLINE ORDER",100,"LAC Transitions Team","5714","Client Allowances","09/07/2019"
"Wolverhampton City Council","http://opendatacommunities.org/id/metropolitan-district-council/wolverhampton","DUNELM (SOFT FURNISHIN",94.54,"LAC Transitions Team","5714","Client Allowances","09/07/2019"
"Wolverhampton City Council","http://opendatacommunities.org/id/metropolitan-district-council/wolverhampton","ASDA SUPERSTORE",4.76,"Ernest Bold Court","5411","Provisions (Not for resale)","09/07/2019"
"Wolverhampton City Council","http://opendatacommunities.org/id/metropolitan-district-council/wolverhampton","ASDA GROCERIES ONLINE",-0.36,"Key to Inspiration","5411","Provisions (Not for resale)","08/07/2019"
"Wolverhampton City Council","http://opendatacommunities.org/id/metropolitan-district-council/wolverhampton","ASDA GROCERIES ONLINE",226.87,"Key to Inspiration","5411","Provisions (Not for resale)","08/07/2019"
"Wolverhampton City Council","http://opendatacommunities.org/id/metropolitan-district-council/wolverhampton","ARGOS WOLVERHAMPTO",15.99,"Key to Inspiration","5310","Equipment - Purchase","08/07/2019"
"Wolverhampton City Council","http://opendatacommunities.org/id/metropolitan-district-council/wolverhampton","SAINSBURYS (2340)",8.25,"Key to Inspiration","5411","Provisions (Not for resale)","08/07/2019"
"Wolverhampton City Council","http://opendatacommunities.org/id/metropolitan-district-council/wolverhampton","AMZNMktplace",89.87,"Key to Inspiration","5999","Equipment - Purchase","08/07/2019"
"Wolverhampton City Council","http://opendatacommunities.org/id/metropolitan-district-council/wolverhampton","WWW.ARGOS.CO.UK",34.93,"Key to Inspiration","5310","Equipment - Purchase","08/07/2019"
"Wolverhampton City Council","http://opendatacommunities.org/id/metropolitan-district-council/wolverhampton","WWW.ICELAND.CO.UK",116.3,"Bradley Resource Centre","5411","Provisions (Not for resale)","08/07/2019"
"Wolverhampton City Council","http://opendatacommunities.org/id/metropolitan-district-council/wolverhampton","ASDA GROCERIES ONLINE",154.83,"Bradley Resource Centre","5411","Provisions (Not for resale)","08/07/2019"
"Wolverhampton City Council","http://opendatacommunities.org/id/metropolitan-district-council/wolverhampton","London Northwestern Ra",18.9,"Court Team","4112","Public Transport","08/07/2019"
"Wolverhampton City Council","http://opendatacommunities.org/id/metropolitan-district-council/wolverhampton","BEATSABAR MUSIC PROJEC",189.96,"Youth Offending Team","5733","Equipment - Purchase","08/07/2019"
"Wolverhampton City Council","http://opendatacommunities.org/id/metropolitan-district-council/wolverhampton","BEATSABAR MUSIC PROJEC",158.3,"Youth Offending Team","5733","Equipment - Purchase","08/07/2019"
"Wolverhampton City Council","http://opendatacommunities.org/id/metropolitan-district-council/wolverhampton","AMZNMktplace",11.81,"Towers Outdoor Education Centre","5999","Fixtures and Fittings - Purchases","08/07/2019"
"Wolverhampton City Council","http://opendatacommunities.org/id/metropolitan-district-council/wolverhampton","SCREWFIX DIRECT",141.65,"Towers Outdoor Education Centre","5200","Equipment - Purchase","08/07/2019"
"Wolverhampton City Council","http://opendatacommunities.org/id/metropolitan-district-council/wolverhampton","MONARCH CLEANERS LTD",539.25,"Towers Outdoor Education Centre","7216","Laundry Expenses","08/07/2019"
"Wolverhampton City Council","http://opendatacommunities.org/id/metropolitan-district-council/wolverhampton","STERMAT CAR AND VA",4686.94,"Towers Outdoor Education Centre","5541","Hire of Vehicles","08/07/2019"
"Wolverhampton City Council","http://opendatacommunities.org/id/metropolitan-district-council/wolverhampton","MARKS&SPENCER PLC SACA",6.5,"Business Support Services","5411","Provisions (Not for resale)","08/07/2019"
"Wolverhampton City Council","http://opendatacommunities.org/id/metropolitan-district-council/wolverhampton","MARKS&SPENCER PLC SACA",39.29,"Business Support Services","5411","Provisions (Not for resale)","08/07/2019"
"Wolverhampton City Council","http://opendatacommunities.org/id/metropolitan-district-council/wolverhampton","Amazon.co.uk M68VG7914",46.34,"LAC Transitions Team","5969","Equipment - Purchase","08/07/2019"
"Wolverhampton City Council","http://opendatacommunities.org/id/metropolitan-district-council/wolverhampton","AMZNMktplace",15.03,"Upper Pendeford Farm Childrens Home","5999","Equipment - Purchase","08/07/2019"
"Wolverhampton City Council","http://opendatacommunities.org/id/metropolitan-district-council/wolverhampton","ASDA GROCERIES ONLINE",-8.29,"Upper Pendeford Farm Childrens Home","5411","Provisions (Not for resale)","08/07/2019"
"Wolverhampton City Council","http://opendatacommunities.org/id/metropolitan-district-council/wolverhampton","ASDA GROCERIES ONLINE",219.52,"Upper Pendeford Farm Childrens Home","5411","Provisions (Not for resale)","08/07/2019"
"Wolverhampton City Council","http://opendatacommunities.org/id/metropolitan-district-council/wolverhampton","CUMMINGS BROTHERS LOCK",38,"Upper Pendeford Farm Childrens Home","7399","Equipment - Purchase","08/07/2019"
"Wolverhampton City Council","http://opendatacommunities.org/id/metropolitan-district-council/wolverhampton","AMZNMKTPLACE AMAZON.CO",29.99,"Upper Pendeford Farm Childrens Home","5999","Equipment - Purchase","08/07/2019"
"Wolverhampton City Council","http://opendatacommunities.org/id/metropolitan-district-council/wolverhampton","AMZNMKTPLACE AMAZON.CO",26.97,"Upper Pendeford Farm Childrens Home","5999","Equipment - Purchase","08/07/2019"
"Wolverhampton City Council","http://opendatacommunities.org/id/metropolitan-district-council/wolverhampton","AMZNMktplace",69.72,"Upper Pendeford Farm Childrens Home","5999","Equipment - Purchase","08/07/2019"
"Wolverhampton City Council","http://opendatacommunities.org/id/metropolitan-district-council/wolverhampton","Central Taxis Limited",7.7,"Looked After Team 2","4121","Client Transport","08/07/2019"
"Wolverhampton City Council","http://opendatacommunities.org/id/metropolitan-district-council/wolverhampton","Central Taxis Limited",7.6,"Looked After Team 2","4121","Client Transport","08/07/2019"
"Wolverhampton City Council","http://opendatacommunities.org/id/metropolitan-district-council/wolverhampton","Central Taxis Limited",7.7,"Looked After Team 2","4121","Client Transport","08/07/2019"
"Wolverhampton City Council","http://opendatacommunities.org/id/metropolitan-district-council/wolverhampton","IZ  D & K TRADING (MID",72,"Bilston Market & Licensed Operations","5999","Equipment - Purchase","08/07/2019"
"Wolverhampton City Council","http://opendatacommunities.org/id/metropolitan-district-council/wolverhampton","PAYPAL  PRINTEDMUGS",179,"Technical Support","2741","Publications","08/07/2019"
"Wolverhampton City Council","http://opendatacommunities.org/id/metropolitan-district-council/wolverhampton","AMZNMktplace",13,"Global Budgets","5999","Equipment - Purchase","08/07/2019"
"Wolverhampton City Council","http://opendatacommunities.org/id/metropolitan-district-council/wolverhampton","ASDA GROCERIES ONLINE",64.24,"Ernest Bold Court","5411","Provisions (Not for resale)","08/07/2019"
"Wolverhampton City Council","http://opendatacommunities.org/id/metropolitan-district-council/wolverhampton","AMZNMKTPLACE AMAZON.CO",-17.96,"Management Support","5999","Equipment - Purchase","08/07/2019"
"Wolverhampton City Council","http://opendatacommunities.org/id/metropolitan-district-council/wolverhampton","SCREWFIX DIRECT",39.99,"Car Parks Operational Staff","5200","Equipment - Purchase","08/07/2019"
"Wolverhampton City Council","http://opendatacommunities.org/id/metropolitan-district-council/wolverhampton","CUMMINGS BROTHERS LOCK",4.17,"Duke Street Bungalows","7399","Equipment - Purchase","08/07/2019"
"Wolverhampton City Council","http://opendatacommunities.org/id/metropolitan-district-council/wolverhampton","LOYD 37 CHURCH STREET",200,"Duke Street Bungalows","6011","Provisions (Not for resale)","08/07/2019"
"Wolverhampton City Council","http://opendatacommunities.org/id/metropolitan-district-council/wolverhampton","ARGOS RETAIL GROUP",23.98,"EIP Locality 7","5310","Grant Payments","08/07/2019"
"Wolverhampton City Council","http://opendatacommunities.org/id/metropolitan-district-council/wolverhampton","TFM FARM   COUNTRY",19,"Northicote Farm","0763","Materials","08/07/2019"
"Wolverhampton City Council","http://opendatacommunities.org/id/metropolitan-district-council/wolverhampton","PAYPAL  CARVERS",200.76,"Northicote Farm","5085","Materials","08/07/2019"
"Wolverhampton City Council","http://opendatacommunities.org/id/metropolitan-district-council/wolverhampton","WWW.BRISTOWSUTOR.C",0,"Parking Enforcement","9399","Services - Fees and Charges","05/07/2019"
"Wolverhampton City Council","http://opendatacommunities.org/id/metropolitan-district-council/wolverhampton","AMZNMktplace",12,"Key to Inspiration","5999","Equipment - Purchase","05/07/2019"
"Wolverhampton City Council","http://opendatacommunities.org/id/metropolitan-district-council/wolverhampton","PARENTPAY MOTO R",26.4,"Key to Inspiration","8220","School Meals","05/07/2019"
"Wolverhampton City Council","http://opendatacommunities.org/id/metropolitan-district-council/wolverhampton","WOLVERHAMPTON T/O",100.2,"IMPACT","4112","Public Transport","05/07/2019"
"Wolverhampton City Council","http://opendatacommunities.org/id/metropolitan-district-council/wolverhampton","SAFETOTS",-2.95,"Technician","5641","Equipment - Purchase","05/07/2019"
"Wolverhampton City Council","http://opendatacommunities.org/id/metropolitan-district-council/wolverhampton","BCC REGISTER OFFIC",13.5,"Court Team","9399","Services - Fees and Charges","05/07/2019"
"Wolverhampton City Council","http://opendatacommunities.org/id/metropolitan-district-council/wolverhampton","NATWEST BANK",250,"CAT","6011","Financial Assistance In Exceptional Circ","05/07/2019"
"Wolverhampton City Council","http://opendatacommunities.org/id/metropolitan-district-council/wolverhampton","Virgin Trains",96.55,"Private Hire Vehicles","4112","Public Transport","05/07/2019"
"Wolverhampton City Council","http://opendatacommunities.org/id/metropolitan-district-council/wolverhampton","JACKS CAFE & BAR LTD",3.5,"Youth Offending Team","5812","Educ Trips, Holidays, Outings, Activity","05/07/2019"
"Wolverhampton City Council","http://opendatacommunities.org/id/metropolitan-district-council/wolverhampton","CITY OF WOLVERHAMPTON",49,"Court Team","9399","Section 17","05/07/2019"
"Wolverhampton City Council","http://opendatacommunities.org/id/metropolitan-district-council/wolverhampton","NATWEST BANK",200,"NRPF","6011","No Recourse to Public Funds","05/07/2019"
"Wolverhampton City Council","http://opendatacommunities.org/id/metropolitan-district-council/wolverhampton","WP-CENTRAL TAXIS L",25,"Court Team","4121","Client Transport","05/07/2019"
"Wolverhampton City Council","http://opendatacommunities.org/id/metropolitan-district-council/wolverhampton","NORTHERN POTTERY LTD",31.24,"Towers Outdoor Education Centre","5999","Equipment - Purchase","05/07/2019"
"Wolverhampton City Council","http://opendatacommunities.org/id/metropolitan-district-council/wolverhampton","HARLECH FOODSERVICE LT",291.05,"Towers Outdoor Education Centre","5422","Provisions (Not for resale)","05/07/2019"
"Wolverhampton City Council","http://opendatacommunities.org/id/metropolitan-district-council/wolverhampton","FUEL CARD SERVICES LTD",609.35,"Towers Outdoor Education Centre","7399","Petrol","05/07/2019"
"Wolverhampton City Council","http://opendatacommunities.org/id/metropolitan-district-council/wolverhampton","HN NUTTALL LTD",640.48,"Towers Outdoor Education Centre","5085","Provisions (Not for resale)","05/07/2019"
"Wolverhampton City Council","http://opendatacommunities.org/id/metropolitan-district-council/wolverhampton","C L JONES HEAD OFFICE",58.63,"Towers Outdoor Education Centre","5211","Fixtures and Fittings - Purchases","05/07/2019"
"Wolverhampton City Council","http://opendatacommunities.org/id/metropolitan-district-council/wolverhampton","POST OFFICE COUNTER",140,"Fostering Team & Allowances","9402","Comms - Postage","05/07/2019"
"Wolverhampton City Council","http://opendatacommunities.org/id/metropolitan-district-council/wolverhampton","POUNDLAND LTD 1463",13,"Business Support Services","5310","Catering","05/07/2019"
"Wolverhampton City Council","http://opendatacommunities.org/id/metropolitan-district-council/wolverhampton","MARKS&SPENCER PLC SACA",4,"Business Support Services","5411","Provisions (Not for resale)","05/07/2019"
"Wolverhampton City Council","http://opendatacommunities.org/id/metropolitan-district-council/wolverhampton","Amazon.co.uk M66A16KV4",16.63,"Business Support Services","5969","Equipment - Purchase","05/07/2019"
"Wolverhampton City Council","http://opendatacommunities.org/id/metropolitan-district-council/wolverhampton","ADDSEARCH",81.08,"Communications & Marketing - General","7372","Computing - Purchase of Software","05/07/2019"
"Wolverhampton City Council","http://opendatacommunities.org/id/metropolitan-district-council/wolverhampton","AMZNMktplace",5.41,"Youth Offending Team","5999","Equipment - Purchase","05/07/2019"
"Wolverhampton City Council","http://opendatacommunities.org/id/metropolitan-district-council/wolverhampton","WWW.ARGOS.CO.UK",119.99,"Intensive Family Support Team","5310","Equipment - Purchase","05/07/2019"
"Wolverhampton City Council","http://opendatacommunities.org/id/metropolitan-district-council/wolverhampton","AMZNMktplace",8.77,"Upper Pendeford Farm Childrens Home","5999","Equipment - Purchase","05/07/2019"
"Wolverhampton City Council","http://opendatacommunities.org/id/metropolitan-district-council/wolverhampton","AMZNMktplace",11.9,"Upper Pendeford Farm Childrens Home","5999","Equipment - Purchase","05/07/2019"
"Wolverhampton City Council","http://opendatacommunities.org/id/metropolitan-district-council/wolverhampton","AMZNMktplace",68.54,"Upper Pendeford Farm Childrens Home","5999","Equipment - Purchase","05/07/2019"
"Wolverhampton City Council","http://opendatacommunities.org/id/metropolitan-district-council/wolverhampton","AMZNMktplace",10.91,"Upper Pendeford Farm Childrens Home","5999","Equipment - Purchase","05/07/2019"
"Wolverhampton City Council","http://opendatacommunities.org/id/metropolitan-district-council/wolverhampton","AMZNMktplace",11.9,"Upper Pendeford Farm Childrens Home","5999","Equipment - Purchase","05/07/2019"
"Wolverhampton City Council","http://opendatacommunities.org/id/metropolitan-district-council/wolverhampton","ROYAL CARPETS",125,"LAC Transitions Team","5713","Client Allowances","05/07/2019"
"Wolverhampton City Council","http://opendatacommunities.org/id/metropolitan-district-council/wolverhampton","CARVER/WOLVERHAMPTON/L",22.08,"Hickman Avenue Depot","5211","Materials","05/07/2019"
"Wolverhampton City Council","http://opendatacommunities.org/id/metropolitan-district-council/wolverhampton","CUMMINGS BROTHERS LOCK",5,"Community Enablement","7399","Materials","05/07/2019"
"Wolverhampton City Council","http://opendatacommunities.org/id/metropolitan-district-council/wolverhampton","ADVANCED CARD BURE",10,"Technical Support","5099","Equipment - Purchase","05/07/2019"
"Wolverhampton City Council","http://opendatacommunities.org/id/metropolitan-district-council/wolverhampton","IDC WRISTBANDS",273.6,"Technical Support","5699","Equipment - Purchase","05/07/2019"
"Wolverhampton City Council","http://opendatacommunities.org/id/metropolitan-district-council/wolverhampton","AMZNMktplace",4.12,"Management Support","5999","Equipment - Purchase","05/07/2019"
"Wolverhampton City Council","http://opendatacommunities.org/id/metropolitan-district-council/wolverhampton","MARS DRINKS UK",244.03,"Community Enablement","5441","R4408","05/07/2019"
"Wolverhampton City Council","http://opendatacommunities.org/id/metropolitan-district-council/wolverhampton","MARS DRINKS UK",277.79,"Community Enablement","5441","R4408","05/07/2019"
"Wolverhampton City Council","http://opendatacommunities.org/id/metropolitan-district-council/wolverhampton","SCREWFIX DIRECT",39.99,"Car Parks Operational Staff","5200","Equipment - Purchase","05/07/2019"
"Wolverhampton City Council","http://opendatacommunities.org/id/metropolitan-district-council/wolverhampton","Trainline",9.41,"SEN Early Years Team","4112","Public Transport","05/07/2019"
"Wolverhampton City Council","http://opendatacommunities.org/id/metropolitan-district-council/wolverhampton","THE HELPING HAND COMPA",182,"Street Cleansing Overheads","5047","Equipment - Purchase","05/07/2019"
"Wolverhampton City Council","http://opendatacommunities.org/id/metropolitan-district-council/wolverhampton","HILTON",4.17,"Delivery & OCE Development","3504","Conference Expenses","05/07/2019"
"Wolverhampton City Council","http://opendatacommunities.org/id/metropolitan-district-council/wolverhampton","E C STRAITON",102.49,"Northicote Farm","0742","Services - Professional Fees","05/07/2019"
"Wolverhampton City Council","http://opendatacommunities.org/id/metropolitan-district-council/wolverhampton","LOYD 37 CHURCH STREET",80,"EIP Locality 8","6011","Equipment - Purchase","04/07/2019"
"Wolverhampton City Council","http://opendatacommunities.org/id/metropolitan-district-council/wolverhampton","ARGOS RETAIL GROUP",150.99,"Key to Inspiration","5310","Equipment - Purchase","04/07/2019"
"Wolverhampton City Council","http://opendatacommunities.org/id/metropolitan-district-council/wolverhampton","AMZNMktplace",12.08,"Key to Inspiration","5999","Equipment - Purchase","04/07/2019"
"Wolverhampton City Council","http://opendatacommunities.org/id/metropolitan-district-council/wolverhampton","AMZNMktplace",18.27,"Key to Inspiration","5999","Equipment - Purchase","04/07/2019"
"Wolverhampton City Council","http://opendatacommunities.org/id/metropolitan-district-council/wolverhampton","SAINSBURYS SACAT (2340",4.25,"Key to Inspiration","5411","Provisions (Not for resale)","04/07/2019"
"Wolverhampton City Council","http://opendatacommunities.org/id/metropolitan-district-council/wolverhampton","SAINSBURYS LOC4471",6,"Key to Inspiration","5411","Provisions (Not for resale)","04/07/2019"
"Wolverhampton City Council","http://opendatacommunities.org/id/metropolitan-district-council/wolverhampton","ASDA GROCERIES ONLINE",-8.91,"Bradley Resource Centre","5411","Provisions (Not for resale)","04/07/2019"
"Wolverhampton City Council","http://opendatacommunities.org/id/metropolitan-district-council/wolverhampton","ASDA GROCERIES ONLINE",131.19,"Bradley Resource Centre","5411","Provisions (Not for resale)","04/07/2019"
"Wolverhampton City Council","http://opendatacommunities.org/id/metropolitan-district-council/wolverhampton","London Northwestern Ra",148.85,"Court Team","4112","Public Transport","04/07/2019"
"Wolverhampton City Council","http://opendatacommunities.org/id/metropolitan-district-council/wolverhampton","ALDI 94 772",24.36,"Central Costs","5411","Provisions (Not for resale)","04/07/2019"
"Wolverhampton City Council","http://opendatacommunities.org/id/metropolitan-district-council/wolverhampton","PAYPAL  SOFTWAREMOD",41.17,"Central Costs","4816","Computing - Purchase of Software","04/07/2019"
"Wolverhampton City Council","http://opendatacommunities.org/id/metropolitan-district-council/wolverhampton","HOMEBASE LTD 103",34.98,"LAC Transitions Team","5211","Client Allowances","04/07/2019"
"Wolverhampton City Council","http://opendatacommunities.org/id/metropolitan-district-council/wolverhampton","LATIFS",13.12,"LAC Transitions Team","5310","Client Allowances","04/07/2019"
"Wolverhampton City Council","http://opendatacommunities.org/id/metropolitan-district-council/wolverhampton","CURRYS ONLINE",122.5,"Technical Support","5732","Equipment - Purchase","04/07/2019"
"Wolverhampton City Council","http://opendatacommunities.org/id/metropolitan-district-council/wolverhampton","PAYPAL  PRINTEDMUGS",357.5,"Technical Support","2741","Publications","04/07/2019"
"Wolverhampton City Council","http://opendatacommunities.org/id/metropolitan-district-council/wolverhampton","Virgin Trains",81.4,"Information Governance Team","4112","Accommodation Costs","04/07/2019"
"Wolverhampton City Council","http://opendatacommunities.org/id/metropolitan-district-council/wolverhampton","AMZNMKTPLACE AMAZON.CO",11.65,"Management Support","5999","Equipment - Purchase","04/07/2019"
"Wolverhampton City Council","http://opendatacommunities.org/id/metropolitan-district-council/wolverhampton","VIRGIN MEDIA PYMTS",7.5,"Community Enablement","4814","Comms - Telephone Call charges","04/07/2019"
"Wolverhampton City Council","http://opendatacommunities.org/id/metropolitan-district-council/wolverhampton","ROYAL BK OF SCOTLAND",50,"Ernest Bold Court","6011","Equipment - R & M","04/07/2019"
"Wolverhampton City Council","http://opendatacommunities.org/id/metropolitan-district-council/wolverhampton","J VAN VLIET BIRMINGHAM",39.05,"Creative Studies Delivery Area","5399","Materials","04/07/2019"
"Wolverhampton City Council","http://opendatacommunities.org/id/metropolitan-district-council/wolverhampton","POST OFFICE COUNTER",210,"Inclusion Support","9402","Comms - Postage","04/07/2019"
"Wolverhampton City Council","http://opendatacommunities.org/id/metropolitan-district-council/wolverhampton","NATWEST BANK",250,"NRPF","6011","Financial Assistance In Exceptional Circ","04/07/2019"
"Wolverhampton City Council","http://opendatacommunities.org/id/metropolitan-district-council/wolverhampton","ARGOS RETAIL GROUP",49.99,"Outdoor Events Admin","5310","Equipment - Purchase","04/07/2019"
"Wolverhampton City Council","http://opendatacommunities.org/id/metropolitan-district-council/wolverhampton","Trainline.com",17.04,"Safeguarding Admin Resource","4112","Public Transport","04/07/2019"
"Wolverhampton City Council","http://opendatacommunities.org/id/metropolitan-district-council/wolverhampton","LOYD 89 CHURCH STREET",200,"EIP Locality 2","6011","Grant Payments","04/07/2019"
"Wolverhampton City Council","http://opendatacommunities.org/id/metropolitan-district-council/wolverhampton","000002200500000",250,"CIN/CP Social Work Unit - Area 6","6011","Section 17","04/07/2019"
"Wolverhampton City Council","http://opendatacommunities.org/id/metropolitan-district-council/wolverhampton","PREMIER INN",67,"Regional Adoption Agency","3811","Accommodation Costs","04/07/2019"
"Wolverhampton City Council","http://opendatacommunities.org/id/metropolitan-district-council/wolverhampton","CO-OP GROUP 070228",20.6,"Towers Outdoor Education Centre","5411","Provisions (Not for resale)","04/07/2019"
"Wolverhampton City Council","http://opendatacommunities.org/id/metropolitan-district-council/wolverhampton","POST OFFICE COUNTER",15.72,"Towers Outdoor Education Centre","9402","Comms - Postage","04/07/2019"
"Wolverhampton City Council","http://opendatacommunities.org/id/metropolitan-district-council/wolverhampton","TVLICENSING.CO.UK",128.75,"Aldersley Leisure Village","7392","Services - Consultants","04/07/2019"
"Wolverhampton City Council","http://opendatacommunities.org/id/metropolitan-district-council/wolverhampton","WEST COAST TRAINS",3.58,"Economic Development","4112","Public Transport","04/07/2019"
"Wolverhampton City Council","http://opendatacommunities.org/id/metropolitan-district-council/wolverhampton","WM MORRISONS STORE",20.7,"Fostering Team & Allowances","5411","Provisions (Not for resale)","04/07/2019"
"Wolverhampton City Council","http://opendatacommunities.org/id/metropolitan-district-council/wolverhampton","HOME BARGAINS",7.98,"Bert Williams Leisure Centre","5251","Equipment - Purchase","04/07/2019"
"Wolverhampton City Council","http://opendatacommunities.org/id/metropolitan-district-council/wolverhampton","POST OFFICE COUNTER",140,"Inclusion Support","9402","Comms - Postage","04/07/2019"
"Wolverhampton City Council","http://opendatacommunities.org/id/metropolitan-district-council/wolverhampton","CITY OF WOLVERHAMPTON",31.67,"LAC Transitions Team","9399","Client Allowances","04/07/2019"
"Wolverhampton City Council","http://opendatacommunities.org/id/metropolitan-district-council/wolverhampton","HM PASSPORT OFFICE",75.5,"LAC Transitions Team","9399","Client Allowances","04/07/2019"
"Wolverhampton City Council","http://opendatacommunities.org/id/metropolitan-district-council/wolverhampton","CO-OP GROUP 070362",8.7,"Northicote Farm","5411","Provisions (Not for resale)","04/07/2019"
"Wolverhampton City Council","http://opendatacommunities.org/id/metropolitan-district-council/wolverhampton","THE POST OFFICE",19.5,"Northicote Farm","9402","Comms - Postage","04/07/2019"
"Wolverhampton City Council","http://opendatacommunities.org/id/metropolitan-district-council/wolverhampton","Central Taxis Limited",31.2,"LAC Education Team (LACE)","4121","Client Transport","04/07/2019"
"Wolverhampton City Council","http://opendatacommunities.org/id/metropolitan-district-council/wolverhampton","Central Taxis Limited",31.2,"LAC Education Team (LACE)","4121","Client Transport","04/07/2019"
"Wolverhampton City Council","http://opendatacommunities.org/id/metropolitan-district-council/wolverhampton","Central Taxis Limited",20,"LAC Education Team (LACE)","4121","Accommodation Costs","04/07/2019"
"Wolverhampton City Council","http://opendatacommunities.org/id/metropolitan-district-council/wolverhampton","Trainline",19.23,"Youth Offending Team","4112","Public Transport","04/07/2019"
"Wolverhampton City Council","http://opendatacommunities.org/id/metropolitan-district-council/wolverhampton","ASDA SUPERSTORE",14.08,"Starting and Developing Well(0-24 group)","5411","Catering","04/07/2019"
"Wolverhampton City Council","http://opendatacommunities.org/id/metropolitan-district-council/wolverhampton","POST OFFICE COUNTER",11,"LAC Team","9402","Comms - Postage","04/07/2019"
"Wolverhampton City Council","http://opendatacommunities.org/id/metropolitan-district-council/wolverhampton","CITY OF WOLVERHAMPTON",16,"Looked After Team 2","9399","Services - Fees and Charges","04/07/2019"
"Wolverhampton City Council","http://opendatacommunities.org/id/metropolitan-district-council/wolverhampton","CITY OF WOLVERHAMPTON",16,"Looked After Team 2","9399","Services - Fees and Charges","04/07/2019"
"Wolverhampton City Council","http://opendatacommunities.org/id/metropolitan-district-council/wolverhampton","GEN REGISTER OFFICE",50,"LAC Team","9399","Services - Fees and Charges","04/07/2019"
"Wolverhampton City Council","http://opendatacommunities.org/id/metropolitan-district-council/wolverhampton","FULL THROTTLE RACEWAY",120,"Upper Pendeford Farm Childrens Home","7032","Educ Trips, Holidays, Outings, Activity","04/07/2019"
"Wolverhampton City Council","http://opendatacommunities.org/id/metropolitan-district-council/wolverhampton","Virgin Trains",29.35,"Looked After Team 2","4112","Public Transport","04/07/2019"
"Wolverhampton City Council","http://opendatacommunities.org/id/metropolitan-district-council/wolverhampton","WILKO RETAIL LIMIT",3.65,"Central Costs","5722","Equipment - Purchase","04/07/2019"
"Wolverhampton City Council","http://opendatacommunities.org/id/metropolitan-district-council/wolverhampton","ARGOS RETAIL GROUP",46.99,"EIP Locality 8","5310","Grant Payments","03/07/2019"
"Wolverhampton City Council","http://opendatacommunities.org/id/metropolitan-district-council/wolverhampton","PRIMARK",62.2,"Key to Inspiration","5651","Clothing / Uniforms","03/07/2019"
"Wolverhampton City Council","http://opendatacommunities.org/id/metropolitan-district-council/wolverhampton","WWW.ASHBTRADE.NET",730.57,"Document Centre - General","5039","Materials","03/07/2019"
"Wolverhampton City Council","http://opendatacommunities.org/id/metropolitan-district-council/wolverhampton","WWW.PMGLTD.CO.UK",395,"LEP - Leadership & Management Programme","7399","Equipment - Purchase","03/07/2019"
"Wolverhampton City Council","http://opendatacommunities.org/id/metropolitan-district-council/wolverhampton","Trainline.com",56.93,"School Improvement","4112","Public Transport","03/07/2019"
"Wolverhampton City Council","http://opendatacommunities.org/id/metropolitan-district-council/wolverhampton","Trainline.com",73.87,"LEP - Leadership & Management Programme","4112","Public Transport","03/07/2019"
"Wolverhampton City Council","http://opendatacommunities.org/id/metropolitan-district-council/wolverhampton","WM MORRISON FOOD.COM",55.09,"Discretionary Fund","5411","Materials","03/07/2019"
"Wolverhampton City Council","http://opendatacommunities.org/id/metropolitan-district-council/wolverhampton","Amazon.co.uk M63099D04",18.73,"Bradley Resource Centre","5969","Equipment - Purchase","03/07/2019"
"Wolverhampton City Council","http://opendatacommunities.org/id/metropolitan-district-council/wolverhampton","MARKS&SPENCER PLC SACA",2.58,"Mayoral Expenses","5411","Hospitality","03/07/2019"
"Wolverhampton City Council","http://opendatacommunities.org/id/metropolitan-district-council/wolverhampton","PREMIER INN",350,"Regional Adoption Agency","3811","Accommodation Costs","03/07/2019"
"Wolverhampton City Council","http://opendatacommunities.org/id/metropolitan-district-council/wolverhampton","TESCO STORES 5194",-1.1,"Towers Outdoor Education Centre","5411","Provisions (Not for resale)","03/07/2019"
"Wolverhampton City Council","http://opendatacommunities.org/id/metropolitan-district-council/wolverhampton","TESCO STORES 5194",91.6,"Towers Outdoor Education Centre","5411","Provisions (Not for resale)","03/07/2019"
"Wolverhampton City Council","http://opendatacommunities.org/id/metropolitan-district-council/wolverhampton","GOOGLE  ADS9680351324",500,"Communications & Marketing - General","5968","Subscriptions","03/07/2019"
"Wolverhampton City Council","http://opendatacommunities.org/id/metropolitan-district-council/wolverhampton","Amazon.co.uk M64EO3SB4",4.37,"Headstart - Young People Engagement","5969","Stationery","03/07/2019"
"Wolverhampton City Council","http://opendatacommunities.org/id/metropolitan-district-council/wolverhampton","Trainline",408.73,"Headstart Phase 3","4112","Public Transport","03/07/2019"
"Wolverhampton City Council","http://opendatacommunities.org/id/metropolitan-district-council/wolverhampton","AMZNMktplace",2.15,"Bert Williams Leisure Centre","5999","Equipment - Purchase","03/07/2019"
"Wolverhampton City Council","http://opendatacommunities.org/id/metropolitan-district-council/wolverhampton","AMZNMktplace",2.16,"Bert Williams Leisure Centre","5999","Equipment - Purchase","03/07/2019"
"Wolverhampton City Council","http://opendatacommunities.org/id/metropolitan-district-council/wolverhampton","AMZNMktplace",29.15,"Bert Williams Leisure Centre","5999","Equipment - Purchase","03/07/2019"
"Wolverhampton City Council","http://opendatacommunities.org/id/metropolitan-district-council/wolverhampton","AMZNMktplace",15.82,"Business Support Services","5999","Catering","03/07/2019"
"Wolverhampton City Council","http://opendatacommunities.org/id/metropolitan-district-council/wolverhampton","WEST MID TRAVEL",75.35,"Youth Offending Team","4131","Public Transport","03/07/2019"
"Wolverhampton City Council","http://opendatacommunities.org/id/metropolitan-district-council/wolverhampton","BOURNEMOUTH STEAK HOUS",155.8,"Managing Director","5812","Educ Trips, Holidays, Outings, Activity","03/07/2019"
"Wolverhampton City Council","http://opendatacommunities.org/id/metropolitan-district-council/wolverhampton","JAMES LISTER & SONS LT",14.83,"Public Conveniences","5085","Equipment - Purchase","03/07/2019"
"Wolverhampton City Council","http://opendatacommunities.org/id/metropolitan-district-council/wolverhampton","ACTION ON HEARING LOSS",31.93,"Intensive Family Support Team","8398","Services - Supplies & Services to users","03/07/2019"
"Wolverhampton City Council","http://opendatacommunities.org/id/metropolitan-district-council/wolverhampton","POST OFFICE COUNTER",11,"Looked After Team 2","9402","Comms - Postage","03/07/2019"
"Wolverhampton City Council","http://opendatacommunities.org/id/metropolitan-district-council/wolverhampton","ASDA SUPERSTORE",17.71,"LAC Transitions Team","5411","Client Allowances","03/07/2019"
"Wolverhampton City Council","http://opendatacommunities.org/id/metropolitan-district-council/wolverhampton","ARGOS LTD",82.97,"LAC Transitions Team","5310","Equipment - Purchase","03/07/2019"
"Wolverhampton City Council","http://opendatacommunities.org/id/metropolitan-district-council/wolverhampton","2MAA010447695 TD E-PMT",75,"LAC Transitions Team","9399","Services - Fees and Charges","03/07/2019"
"Wolverhampton City Council","http://opendatacommunities.org/id/metropolitan-district-council/wolverhampton","HOME BARGAINS",51.96,"Wolverhampton Indoor and Open Market","5251","Equipment - Purchase","03/07/2019"
"Wolverhampton City Council","http://opendatacommunities.org/id/metropolitan-district-council/wolverhampton","WWW.TRANSPORTXTRA.COM",120,"Travelwise","7399","Subscriptions","03/07/2019"
"Wolverhampton City Council","http://opendatacommunities.org/id/metropolitan-district-council/wolverhampton","1&1 INTERNET LIMITED",16.1,"Technical Support","4816","Computing - Purchase of Software","03/07/2019"
"Wolverhampton City Council","http://opendatacommunities.org/id/metropolitan-district-council/wolverhampton","Trainline.com",27.17,"CIN/CP Social Work Unit - Area 4","4112","Public Transport","03/07/2019"
"Wolverhampton City Council","http://opendatacommunities.org/id/metropolitan-district-council/wolverhampton","CITY OF WOLVERHAMPTON",27,"Court Team","9399","Section 17","03/07/2019"
"Wolverhampton City Council","http://opendatacommunities.org/id/metropolitan-district-council/wolverhampton","HM PASSPORT OFFICE",170,"LAC Transitions Team","9399","Client Allowances","03/07/2019"
"Wolverhampton City Council","http://opendatacommunities.org/id/metropolitan-district-council/wolverhampton","WWW.ERONOMICS.CO.",580.75,"Graduate Trainees","5021","Furniture","03/07/2019"
"Wolverhampton City Council","http://opendatacommunities.org/id/metropolitan-district-council/wolverhampton","ASDA GROCERIES ONLINE",200.16,"Bradley Resource Centre","5411","Provisions (Not for resale)","02/07/2019"
"Wolverhampton City Council","http://opendatacommunities.org/id/metropolitan-district-council/wolverhampton","WWW.ARGOS.CO.UK",73.94,"LAC Transitions Team","5310","Equipment - Purchase","02/07/2019"
"Wolverhampton City Council","http://opendatacommunities.org/id/metropolitan-district-council/wolverhampton","SOUTHERN HEALTH & SOCI",120,"Assessment Team (West)","9399","Services - Professional Fees","02/07/2019"
"Wolverhampton City Council","http://opendatacommunities.org/id/metropolitan-district-council/wolverhampton","B&M RETAIL LTD",14.16,"LAC Transitions Team","5310","Accommodation Costs","02/07/2019"
"Wolverhampton City Council","http://opendatacommunities.org/id/metropolitan-district-council/wolverhampton","REDWINGS LODGE",50,"Emergency Duty Team","7011","Services - Supplies & Services to users","02/07/2019"
"Wolverhampton City Council","http://opendatacommunities.org/id/metropolitan-district-council/wolverhampton","WALSALL COUNCIL",28.43,"Regional Adoption Agency","9399","Services - Fees and Charges","02/07/2019"
"Wolverhampton City Council","http://opendatacommunities.org/id/metropolitan-district-council/wolverhampton","000002200500000",250,"CIN/CP Social Work Unit - Area 6","6011","Section 17","02/07/2019"
"Wolverhampton City Council","http://opendatacommunities.org/id/metropolitan-district-council/wolverhampton","Trainline",228.43,"Headstart Phase 3","4112","Public Transport","02/07/2019"
"Wolverhampton City Council","http://opendatacommunities.org/id/metropolitan-district-council/wolverhampton","Trainline",124.14,"Business Support Services","4112","Public Transport","02/07/2019"
"Wolverhampton City Council","http://opendatacommunities.org/id/metropolitan-district-council/wolverhampton","POST OFFICE COUNTER",70,"LAC Education Team (LACE)","9402","Comms - Postage","02/07/2019"
"Wolverhampton City Council","http://opendatacommunities.org/id/metropolitan-district-council/wolverhampton","POST OFFICE COUNTER",210,"Corporate Parenting","9402","Comms - Postage","02/07/2019"
"Wolverhampton City Council","http://opendatacommunities.org/id/metropolitan-district-council/wolverhampton","CARVER/WOLVERHAMPTON/L",14.62,"Cemeteries","5211","Materials","02/07/2019"
"Wolverhampton City Council","http://opendatacommunities.org/id/metropolitan-district-council/wolverhampton","TRAVELODGE",219.72,"Looked After Team 2","3615","Financial Assistance In Exceptional Circ","02/07/2019"
"Wolverhampton City Council","http://opendatacommunities.org/id/metropolitan-district-council/wolverhampton","Trainline",19.49,"Looked After Team 2","4112","Public Transport","02/07/2019"
"Wolverhampton City Council","http://opendatacommunities.org/id/metropolitan-district-council/wolverhampton","POST OFFICE COUNTER",11,"Looked After Team 2","9402","Comms - Postage","02/07/2019"
"Wolverhampton City Council","http://opendatacommunities.org/id/metropolitan-district-council/wolverhampton","ALDI 94 772",10.15,"Central Costs","5411","Materials","02/07/2019"
"Wolverhampton City Council","http://opendatacommunities.org/id/metropolitan-district-council/wolverhampton","ASDA GROCERIES ONLINE",35.02,"Central Costs","5411","Provisions (Not for resale)","02/07/2019"
"Wolverhampton City Council","http://opendatacommunities.org/id/metropolitan-district-council/wolverhampton","EB  SUBCONTRACTING FUN",354,"Central Costs","7399","Equipment - Purchase","02/07/2019"
"Wolverhampton City Council","http://opendatacommunities.org/id/metropolitan-district-council/wolverhampton","Trainline",66.25,"LAC Transitions Team","4112","Public Transport","02/07/2019"
"Wolverhampton City Council","http://opendatacommunities.org/id/metropolitan-district-council/wolverhampton","Cross Country Trains",9,"Head of Strategic Commissioning � People","4112","Public Transport","02/07/2019"
"Wolverhampton City Council","http://opendatacommunities.org/id/metropolitan-district-council/wolverhampton","Wix.com",43.57,"Technical Support","5817","Computing - Purchase of Software","02/07/2019"
"Wolverhampton City Council","http://opendatacommunities.org/id/metropolitan-district-council/wolverhampton","Wix.com",43.57,"Technical Support","5817","Computing - Purchase of Software","02/07/2019"
"Wolverhampton City Council","http://opendatacommunities.org/id/metropolitan-district-council/wolverhampton","TRAVELODGE",304.72,"Looked After Team 2","3615","Financial Assistance In Exceptional Circ","02/07/2019"
"Wolverhampton City Council","http://opendatacommunities.org/id/metropolitan-district-council/wolverhampton","POST OFFICE COUNTER",11,"LAC Team","9402","Comms - Postage","02/07/2019"
"Wolverhampton City Council","http://opendatacommunities.org/id/metropolitan-district-council/wolverhampton","ASDA GROCERIES ONLINE",0.09,"Ernest Bold Court","5411","Provisions (Not for resale)","02/07/2019"
"Wolverhampton City Council","http://opendatacommunities.org/id/metropolitan-district-council/wolverhampton","ASDA GROCERIES ONLINE",47.66,"Ernest Bold Court","5411","Provisions (Not for resale)","02/07/2019"
"Wolverhampton City Council","http://opendatacommunities.org/id/metropolitan-district-council/wolverhampton","NATWEST BANK",200,"Democratic Support","6011","Financial Assistance In Exceptional Circ","02/07/2019"
"Wolverhampton City Council","http://opendatacommunities.org/id/metropolitan-district-council/wolverhampton","TVLICENSING.CO.UK",154.5,"Duke Street Bungalows","7392","Services - Consultants","02/07/2019"
"Wolverhampton City Council","http://opendatacommunities.org/id/metropolitan-district-council/wolverhampton","TVLICENSING.CO.UK",154.5,"Community Enablement","7392","Services - Consultants","02/07/2019"
"Wolverhampton City Council","http://opendatacommunities.org/id/metropolitan-district-council/wolverhampton","TVLICENSING.CO.UK",154.5,"Duke Street Bungalows","7392","Services - Consultants","02/07/2019"
"Wolverhampton City Council","http://opendatacommunities.org/id/metropolitan-district-council/wolverhampton","HILTON",27.5,"Delivery & OCE Development","3504","Conference Expenses","02/07/2019"
"Wolverhampton City Council","http://opendatacommunities.org/id/metropolitan-district-council/wolverhampton","HILTON",27.5,"Delivery & OCE Development","3504","Conference Expenses","02/07/2019"
"Wolverhampton City Council","http://opendatacommunities.org/id/metropolitan-district-council/wolverhampton","WWW.ARGOS.CO.UK",149.99,"EIP Locality 7","5310","Grant Payments","02/07/2019"
"Wolverhampton City Council","http://opendatacommunities.org/id/metropolitan-district-council/wolverhampton","Virgin Trains",416.4,"Members Expenses","4112","Public Transport","02/07/2019"
"Wolverhampton City Council","http://opendatacommunities.org/id/metropolitan-district-council/wolverhampton","SAINSBURYS (2340)",26.1,"Key to Inspiration","5411","Provisions (Not for resale)","02/07/2019"
"Wolverhampton City Council","http://opendatacommunities.org/id/metropolitan-district-council/wolverhampton","POUNDLAND LTD 1463",7,"Key to Inspiration","5310","Equipment - Purchase","02/07/2019"
"Wolverhampton City Council","http://opendatacommunities.org/id/metropolitan-district-council/wolverhampton","NCP LIMITED",1,"Key to Inspiration","7523","Car Allowances","02/07/2019"
"Wolverhampton City Council","http://opendatacommunities.org/id/metropolitan-district-council/wolverhampton","WWW.LABELSANDTAGS.CO.U",31.9,"Key to Inspiration","2741","Publications","02/07/2019"
"Wolverhampton City Council","http://opendatacommunities.org/id/metropolitan-district-council/wolverhampton","SAINSBURYS SACAT (2340",22.5,"Key to Inspiration","5411","Equipment - Purchase","02/07/2019"
"Wolverhampton City Council","http://opendatacommunities.org/id/metropolitan-district-council/wolverhampton","TIMPSON LTD",4.8,"Key to Inspiration","7251","Fixtures and Fittings - R&M","02/07/2019"
"Wolverhampton City Council","http://opendatacommunities.org/id/metropolitan-district-council/wolverhampton","ASDA GROCERIES ONLINE",-3.94,"Bradley Resource Centre","5411","Provisions (Not for resale)","02/07/2019"
"Wolverhampton City Council","http://opendatacommunities.org/id/metropolitan-district-council/wolverhampton","AMZNMKTPLACE AMAZON.CO",12.49,"Vulnerable Young Persons Team","5999","Equipment - Purchase","01/07/2019"
"Wolverhampton City Council","http://opendatacommunities.org/id/metropolitan-district-council/wolverhampton","LIFESWONDERFUL LTD",14.99,"Caretakers Community Centre","5999","Equipment - Purchase","01/07/2019"
"Wolverhampton City Council","http://opendatacommunities.org/id/metropolitan-district-council/wolverhampton","WIX.COM",-2,"Technical Support","5968","Subscriptions","01/07/2019"
"Wolverhampton City Council","http://opendatacommunities.org/id/metropolitan-district-council/wolverhampton","Wix.com",-2,"Technical Support","5817","Computing - Purchase of Software","01/07/2019"
"Wolverhampton City Council","http://opendatacommunities.org/id/metropolitan-district-council/wolverhampton","Amazon.co.uk M69OO15C4",15.45,"Global Budgets","5969","Books","01/07/2019"
"Wolverhampton City Council","http://opendatacommunities.org/id/metropolitan-district-council/wolverhampton","ASDA GROCERIES ONLINE",-0.22,"Ernest Bold Court","5411","Provisions (Not for resale)","01/07/2019"
"Wolverhampton City Council","http://opendatacommunities.org/id/metropolitan-district-council/wolverhampton","ASDA GROCERIES ONLINE",81.17,"Ernest Bold Court","5411","Provisions (Not for resale)","01/07/2019"
"Wolverhampton City Council","http://opendatacommunities.org/id/metropolitan-district-council/wolverhampton","AMZNMKTPLACE AMAZON.CO",17.96,"Management Support","5999","Equipment - Purchase","01/07/2019"
"Wolverhampton City Council","http://opendatacommunities.org/id/metropolitan-district-council/wolverhampton","AMZNMKTPLACE AMAZON.CO",4.12,"Licensing - General","5999","Equipment - Purchase","01/07/2019"
"Wolverhampton City Council","http://opendatacommunities.org/id/metropolitan-district-council/wolverhampton","Virgin Trains",191.7,"Management Support","4112","Public Transport","01/07/2019"
"Wolverhampton City Council","http://opendatacommunities.org/id/metropolitan-district-council/wolverhampton","AMZNMKTPLACE AMAZON.CO",5.82,"Licensing - General","5999","Equipment - Purchase","01/07/2019"
"Wolverhampton City Council","http://opendatacommunities.org/id/metropolitan-district-council/wolverhampton","Trainline",203.19,"General Housing Administration","4112","Public Transport","01/07/2019"
"Wolverhampton City Council","http://opendatacommunities.org/id/metropolitan-district-council/wolverhampton","AMZNMktplace",32,"Education Catering - General Overheads","5999","Catering","01/07/2019"
"Wolverhampton City Council","http://opendatacommunities.org/id/metropolitan-district-council/wolverhampton","WWW.WMCA.CO.UK",1220,"Delivery & OCE Development","4112","Public Transport","01/07/2019"
"Wolverhampton City Council","http://opendatacommunities.org/id/metropolitan-district-council/wolverhampton","PRIMARK",4.37,"Members Expenses","5651","Equipment - Purchase","01/07/2019"
"Wolverhampton City Council","http://opendatacommunities.org/id/metropolitan-district-council/wolverhampton","NATWEST BANK",180,"Mayoral Expenses","6011","Services - Professional Fees","01/07/2019"
"Wolverhampton City Council","http://opendatacommunities.org/id/metropolitan-district-council/wolverhampton","AMZNMKTPLACE AMAZON.CO",11.78,"Archives","5999","Books","01/07/2019"
"Wolverhampton City Council","http://opendatacommunities.org/id/metropolitan-district-council/wolverhampton","PAYPAL  MNAMEDIA",13.24,"Archives","5999","Books","01/07/2019"
"Wolverhampton City Council","http://opendatacommunities.org/id/metropolitan-district-council/wolverhampton","ARGOS WOLVERHAMPTO",21.23,"LAC Transitions Team","5310","Client Allowances","01/07/2019"
"Wolverhampton City Council","http://opendatacommunities.org/id/metropolitan-district-council/wolverhampton","CURRYS ONLINE",165.83,"LAC Transitions Team","5732","Client Allowances","01/07/2019"
"Wolverhampton City Council","http://opendatacommunities.org/id/metropolitan-district-council/wolverhampton","ASDA SUPERSTORE",38.91,"Key to Inspiration","5411","Provisions (Not for resale)","01/07/2019"
"Wolverhampton City Council","http://opendatacommunities.org/id/metropolitan-district-council/wolverhampton","ASDA SUPERSTORE",77.64,"Key to Inspiration","5411","Provisions (Not for resale)","01/07/2019"
"Wolverhampton City Council","http://opendatacommunities.org/id/metropolitan-district-council/wolverhampton","SAINSBURYS SACAT (2340",15.45,"Key to Inspiration","5411","Provisions (Not for resale)","01/07/2019"
"Wolverhampton City Council","http://opendatacommunities.org/id/metropolitan-district-council/wolverhampton","ASDA STORE",67.5,"Bradley Resource Centre","5411","Provisions (Not for resale)","01/07/2019"
"Wolverhampton City Council","http://opendatacommunities.org/id/metropolitan-district-council/wolverhampton","WWW.ICELAND.CO.UK",97.57,"Bradley Resource Centre","5411","Provisions (Not for resale)","01/07/2019"
"Wolverhampton City Council","http://opendatacommunities.org/id/metropolitan-district-council/wolverhampton","WWW.WMCA.CO.UK",18,"Strategic ICTS (ICT Serv Budget)","9399","Public Transport","01/07/2019"
"Wolverhampton City Council","http://opendatacommunities.org/id/metropolitan-district-council/wolverhampton","WWW.REED.CO.UK",298,"Strategic ICTS (ICT Serv Budget)","7361","R4317","01/07/2019"
"Wolverhampton City Council","http://opendatacommunities.org/id/metropolitan-district-council/wolverhampton","Trainline",48.33,"LAC Transitions Team","4112","Public Transport","01/07/2019"
"Wolverhampton City Council","http://opendatacommunities.org/id/metropolitan-district-council/wolverhampton","Amazon.co.uk M67GR16D4",8.73,"IMPACT","5969","Equipment - Purchase","01/07/2019"
"Wolverhampton City Council","http://opendatacommunities.org/id/metropolitan-district-council/wolverhampton","MRS REKHA'S KITCHEN",8,"Mayoral Expenses","5811","Subsistence","01/07/2019"
"Wolverhampton City Council","http://opendatacommunities.org/id/metropolitan-district-council/wolverhampton","IZ  BARE BONES PIZZA",8.5,"Mayoral Expenses","5812","Hospitality","01/07/2019"
"Wolverhampton City Council","http://opendatacommunities.org/id/metropolitan-district-council/wolverhampton","IZ  BARE BONES PIZZA",7,"Mayoral Expenses","5812","Hospitality","01/07/2019"
"Wolverhampton City Council","http://opendatacommunities.org/id/metropolitan-district-council/wolverhampton","AMZNMktplace",26.21,"Street Lighting Maintenance","5999","Equipment - Purchase","01/07/2019"
"Wolverhampton City Council","http://opendatacommunities.org/id/metropolitan-district-council/wolverhampton","Central Taxis Limited",30,"Court Team","4121","Client Transport","01/07/2019"
"Wolverhampton City Council","http://opendatacommunities.org/id/metropolitan-district-council/wolverhampton","Central Taxis Limited",50,"Court Team","4121","Client Transport","01/07/2019"
"Wolverhampton City Council","http://opendatacommunities.org/id/metropolitan-district-council/wolverhampton","Amazon.co.uk M674I16N4",14.99,"Bradley Resource Centre","5969","Equipment - Purchase","01/07/2019"
"Wolverhampton City Council","http://opendatacommunities.org/id/metropolitan-district-council/wolverhampton","Amazon.co.uk M69GR66Q4",20.19,"Bradley Resource Centre","5969","Equipment - Purchase","01/07/2019"
"Wolverhampton City Council","http://opendatacommunities.org/id/metropolitan-district-council/wolverhampton","Amazon.co.uk M65RJ56W4",14.99,"Bradley Resource Centre","5969","Equipment - Purchase","01/07/2019"
"Wolverhampton City Council","http://opendatacommunities.org/id/metropolitan-district-council/wolverhampton","PREMIER INN",674,"Regional Adoption Agency","3811","Accommodation Costs","01/07/2019"
"Wolverhampton City Council","http://opendatacommunities.org/id/metropolitan-district-council/wolverhampton","Virgin Trains",177.5,"Regional Adoption Agency","4112","Public Transport","01/07/2019"
"Wolverhampton City Council","http://opendatacommunities.org/id/metropolitan-district-council/wolverhampton","Virgin Trains",158.1,"Regional Adoption Agency","4112","Public Transport","01/07/2019"
"Wolverhampton City Council","http://opendatacommunities.org/id/metropolitan-district-council/wolverhampton","FACEBK BRNWANJAR2",268.51,"Communications & Marketing - General","7311","Marketing \ Non-staff advertising","01/07/2019"
"Wolverhampton City Council","http://opendatacommunities.org/id/metropolitan-district-council/wolverhampton","FACEBK SWNB6KNA82",203.76,"Communications & Marketing - General","7311","Marketing \ Non-staff advertising","01/07/2019"
"Wolverhampton City Council","http://opendatacommunities.org/id/metropolitan-district-council/wolverhampton","Amazon.co.uk M63GH7824",21.24,"Corporate Parenting","5969","Stationery","01/07/2019"
"Wolverhampton City Council","http://opendatacommunities.org/id/metropolitan-district-council/wolverhampton","CROSSCOUNTRY PLY",128.85,"LAC Transitions Team","4112","Public Transport","01/07/2019"
"Wolverhampton City Council","http://opendatacommunities.org/id/metropolitan-district-council/wolverhampton","POST OFFICE COUNTER",2.96,"Cemeteries","9402","Comms - Postage","01/07/2019"
"Wolverhampton City Council","http://opendatacommunities.org/id/metropolitan-district-council/wolverhampton","Trainline",54.59,"LAC Transitions Team","4112","Client Allowances","01/07/2019"
"Wolverhampton City Council","http://opendatacommunities.org/id/metropolitan-district-council/wolverhampton","ASDA GROCERIES ONLINE",-0.16,"Upper Pendeford Farm Childrens Home","5411","Provisions (Not for resale)","01/07/2019"
"Wolverhampton City Council","http://opendatacommunities.org/id/metropolitan-district-council/wolverhampton","ASDA GROCERIES ONLINE",210.19,"Upper Pendeford Farm Childrens Home","5411","Provisions (Not for resale)","01/07/2019"
"Wolverhampton City Council","http://opendatacommunities.org/id/metropolitan-district-council/wolverhampton","AMZNMKTPLACE AMAZON.CO",31.66,"Vulnerable Young Persons Team","5999","Equipment - Purchase","01/07/2019"
